Body Name,Service Label,Expense Category,Date,Transaction Number,Net Amount,Supplier Name
TfGM,Transport,Vehicle Fuel Costs,02/04/2012,1200019984,1088.36,ALLSTAR
TfGM,Transport,Vehicle Costs,03/04/2012,5100037537,500,ACTIA UK LTD
TfGM,Transport,Capital Costs - Programme and Project Management Services,03/04/2012,5100037602,8360,ACUITY PROGRAMME MANAGEMENT LTD
TfGM,Transport,Capital Costs - Light Rail Support Services,03/04/2012,5100037507,13200,AD2 LTD
TfGM,Transport,Capital Costs - Mechanical & Engineering Support Services,03/04/2012,5100037462,1000,AECOM LTD
TfGM,Transport,Capital Costs - Research Services,03/04/2012,5100037533,11029,AECOM LTD
TfGM,Transport,Capital Costs - Architectural Services,03/04/2012,5100037527,6336,AEDAS ARCHITECTS LTD
TfGM,Transport,Smart Ticketing,03/04/2012,5100037660,7500,AMSACOM LIMITED
TfGM,Transport,Paper and Printing Consumables,03/04/2012,5100037170,1446.7,ANTALIS MCNAUGHTON LTD
TfGM,Transport,Paper and Printing Consumables,03/04/2012,5100037359,11721.6,ANTALIS MCNAUGHTON LTD
TfGM,Transport,Paper and Printing Consumables,03/04/2012,5100037360,723.35,ANTALIS MCNAUGHTON LTD
TfGM,Transport,Printing Services,03/04/2012,5100037648,497.44,ARRIVA MANCHESTER
TfGM,Transport,Capital Costs - Signage Costs,03/04/2012,5100037380,4600,ASTRA SIGNS
TfGM,Transport,Environmental & Ecological Support Services,03/04/2012,5100037106,5323.33,ATKINS LTD
TfGM,Transport,Capital Costs - Mechanical & Engineering Support Services,03/04/2012,5100037642,4290,ATKINS LTD
TfGM,Transport,IS Support Services,03/04/2012,5100037659,515,ATKINS LTD
TfGM,Transport,Capital Costs - Programme and Project Management Services,03/04/2012,5100039824,8656.75,ATKINS LTD
TfGM,Transport,Financial and Contract Management Services,03/04/2012,5100037611,10215.3,AUTUS LTD
TfGM,Transport,"Rent, Rates & Service Charges",03/04/2012,1900020464,960.32,BOLTON METROPOLITAN BOROUGH COUNCIL
TfGM,Transport,"Rent, Rates & Service Charges",03/04/2012,1900020465,1725.32,BOLTON METROPOLITAN BOROUGH COUNCIL
TfGM,Transport,"Rent, Rates & Service Charges",03/04/2012,1900020467,6169.35,BOLTON METROPOLITAN BOROUGH COUNCIL
TfGM,Transport,"Rent, Rates & Service Charges",03/04/2012,1900020469,39577.39,BOLTON METROPOLITAN BOROUGH COUNCIL
TfGM,Transport,Capital Costs - LRT Vehicles,03/04/2012,5100036961,193360.03,BOMBARDIER TRANSPORTATION UK LTD
TfGM,Transport,Capital Costs - Computer & Communications Hardware,03/04/2012,5100037433,26550.65,BT ENGAGE IT
TfGM,Corporate Services,IS Support Services,03/04/2012,5100037434,4500,BT ENGAGE IT
TfGM,Corporate Services,IS Support Services,03/04/2012,5100037662,950,BT ENGAGE IT
TfGM,Transport,Staff Uniforms,03/04/2012,5100037347,5565.29,BURLINGTON UNIFORMS LTD
TfGM,Transport,Staff Uniforms,03/04/2012,5100037650,425,BURLINGTON UNIFORMS LTD
TfGM,Transport,"Rent, Rates & Service Charges",03/04/2012,1900020491,39429.46,BURY MBC
TfGM,Transport,Capital Costs - Programme and Project Management Services,03/04/2012,5100037603,2027.6,CDI ANDERSELITE LTD
TfGM,Transport,Capital Costs - Programme and Project Management Services,03/04/2012,5100037604,528,CDI ANDERSELITE LTD
TfGM,Transport,Capital Costs - Programme and Project Management Services,03/04/2012,5100037605,748,CDI ANDERSELITE LTD
TfGM,Transport,Planning Support Services,03/04/2012,5100037385,3250,CHESHIRE WEST & CHESTER COUNCIL
TfGM,Transport,"Rent, Rates & Service Charges",03/04/2012,1900020460,2730.36,CITY OF SALFORD
TfGM,Transport,"Rent, Rates & Service Charges",03/04/2012,1900020462,1800,CITY OF SALFORD
TfGM,Corporate Services,Procurement Services,03/04/2012,5100037609,15860.16,CNC PERFORMANCE LTD
TfGM,Corporate Services,IS Software & Maintenance,03/04/2012,5100035883,4000,CODE COMPUTER LOVE
TfGM,Transport,Temporary Vacancy Cover,03/04/2012,1900020368,4563.66,COMENSURA LTD
TfGM,Transport,Transport Planning & Monitoring Services,03/04/2012,5100037296,1401.75,CRANBORNE DATA COUNT
TfGM,Corporate Services,Legal Services,03/04/2012,5100037568,611.9,DLA PIPER UK LLP
TfGM,Corporate Services,Wide Area Network,03/04/2012,5100036548,21770,EASYNET GLOBAL SERVICES
TfGM,Transport,Capital Costs - Engineering Support Services,03/04/2012,5100037471,8738.07,EC HARRIS LLP
TfGM,Transport,Capital Costs - Utility & Service Diversion Costs,03/04/2012,5100037505,25652,ELECTRICITY NORTH WEST EHV
TfGM,Transport,Capital Costs - Utility & Service Diversion Costs,03/04/2012,5100037506,1994.63,ELECTRICITY NORTH WEST EHV
TfGM,Transport,Driver Intervention Course Delivery Costs,03/04/2012,5100037636,1970,ENTERPRISE SOLUTIONS (NW) LTD
TfGM,Transport,Concessionary Support Services,03/04/2012,5100037446,1455,ESP SYSTEX LTD
TfGM,Transport,Concessionary Support Services,03/04/2012,5100037447,1697.5,ESP SYSTEX LTD
TfGM,Transport,Paper and Printing Consumables,03/04/2012,5100037448,970,ESP SYSTEX LTD
TfGM,Transport,Driver Intervention Course Delivery Costs,03/04/2012,5100037640,1203.4,GARY WHITWORTH
TfGM,Transport,Supported Bus Services,03/04/2012,5100037501,5250,GB COACHES
TfGM,Transport,Smart Ticketing,03/04/2012,5100037468,2941.2,HAYS SPECIALIST RECRUITMENT LTD
TfGM,Corporate Services,Print & Stationery ,03/04/2012,5100037539,525,HUDSON AND PEARSON LTD
TfGM,Transport,Capital Costs - Printing Services,03/04/2012,5100037540,423,HUDSON AND PEARSON LTD
TfGM,Corporate Services,IS Support Services,03/04/2012,5100037641,6450,IGROUP LTD
TfGM,Transport,Project Management Services,03/04/2012,5100037379,4000,INCITE SOLUTIONS LTD
TfGM,Corporate Services,Procurement Services,03/04/2012,5100037608,11500,J BENSON ASSOCIATES LTD
TfGM,Transport,Capital Costs - Capital Project Main Contract Works,03/04/2012,5100037589,196762.96,J MURPHY & SONS LTD
TfGM,Transport,Capital Costs - Capital Project Main Contract Works,03/04/2012,5100037590,184401.72,J MURPHY & SONS LTD
TfGM,Transport,Capital Costs - Planning Support Services,03/04/2012,5100036897,1666.81,JACOBS UK LTD
TfGM,Transport,Capital Costs - Programme and Project Management Services,03/04/2012,5100037129,12000,JACOBS UK LTD
TfGM,Transport,Capital Costs - Programme and Project Management Services,03/04/2012,5100037637,9000,JSLM PROGRAMME SERVICES LTD
TfGM,Transport,Driver Intervention Course Delivery Costs,03/04/2012,5100037508,650,KAROL EKERT
TfGM,Corporate Services,Property Support Services,03/04/2012,5100037263,-6415.28,LAMBERT SMITH HAMPTON
TfGM,Corporate Services,Property Support Services,03/04/2012,5100037436,2560,LAMBERT SMITH HAMPTON
TfGM,Corporate Services,Property Support Services,03/04/2012,5100037437,8017.28,LAMBERT SMITH HAMPTON
TfGM,Transport,Research Services,03/04/2012,5100037470,3000,LEARNING POOL LTD
TfGM,Transport,Print & Media,03/04/2012,5100037477,500,Lesley Chalmers Photography
TfGM,Transport,Capital Costs - Land Acquisition and Compensation Costs,03/04/2012,5100037381,1062,LESLIE ROBERTS AND CO LTD
TfGM,Transport,Capital Costs - Land Acquisition and Compensation Costs,03/04/2012,5100037382,903.75,LESLIE ROBERTS AND CO LTD
TfGM,Transport,Estates Services,03/04/2012,5100037401,3027,LESLIE ROBERTS AND CO LTD
TfGM,Transport,Capital Costs - Light Rail Support Services,03/04/2012,5100037503,8610,LIGHT RAIL LTD
TfGM,Transport,Capital Costs - Project Management Services,03/04/2012,5100037518,8550,MACE LTD
TfGM,Transport,Capital Costs - Property Support Services,03/04/2012,5100037383,2150,MAD ABOUT TREES
TfGM,Transport,Vehicle Repairs & Maintenance,03/04/2012,5100036545,601.47,MANCHESTER CAR REFURBISHMENT LTD
TfGM,Transport,Property & Equipment Maintenance,03/04/2012,5100037374,21761.19,MANCHESTER WORKING LTD
TfGM,Corporate Services,Legal Services,03/04/2012,5100037585,900,MARKS AND CLERK
TfGM,Transport,Capital Costs - Light Rail Support Services,03/04/2012,5100037502,13650,MASON LTD
TfGM,Transport,Print & Media,03/04/2012,5100037532,6772.72,MEN MEDIA
TfGM,Transport,Street Furniture Equipment,03/04/2012,5100036544,5064.9,METFAST LTD
TfGM,Transport,Metrolink Operating Costs,03/04/2012,5100037368,2835,METROLINK RATP DEV LTD
TfGM,Transport,Metrolink Operating Costs,03/04/2012,5100037369,2250,METROLINK RATP DEV LTD
TfGM,Transport,Capital Costs - Programme and Project Management Services,03/04/2012,5100037529,1950,MORSON INTERNATIONAL
TfGM,Transport,Capital Costs - Programme and Project Management Services,03/04/2012,5100037530,1664,MORSON INTERNATIONAL
TfGM,Transport,Capital Costs - Programme and Project Management Services,03/04/2012,5100037531,1881.25,MORSON INTERNATIONAL
TfGM,Transport,Property & Equipment Maintenance,03/04/2012,5100037519,2331.52,MOTT MACDONALD LTD
TfGM,Transport,Concessionary Support Services,03/04/2012,5100037569,500,MR CHARLES BOURNE
TfGM,Transport,Engineering Support Services,03/04/2012,5100037651,5760,NEIL CLARKE LTD
TfGM,Transport,Exhibitions and Conferences,03/04/2012,5100037354,12083.4,NEXUS
TfGM,Transport,Capital Costs - Programme and Project Management Services,03/04/2012,5100037467,1750,NURTURE PEOPLE LTD
TfGM,Transport,"Rent, Rates & Service Charges",03/04/2012,1900020479,870.2,OLDHAM MBC
TfGM,Transport,"Rent, Rates & Service Charges",03/04/2012,1900020481,28616.3,OLDHAM MBC
TfGM,Transport,Capital Costs - Vehicle Costs,03/04/2012,5100037677,137635,OPTARE LTD
TfGM,Transport,Capital Costs - Vehicle Costs,03/04/2012,5100037678,110575,OPTARE LTD
TfGM,Transport,Capital Costs - Vehicle Costs,03/04/2012,5100037679,137635,OPTARE LTD
TfGM,Transport,Capital Costs - LRT Vehicles,03/04/2012,5100037229,10313.6,ORION PROJECTS LTD
TfGM,Transport,Print & Media,03/04/2012,5100037534,3450.8,ORION SECURE PRINT SYSTEMS
TfGM,Transport,Capital Costs - Legal Services,03/04/2012,1900020377,2563.2,PEEL INVESTMENTS (NORTH) LTD
TfGM,Transport,Transport Planning & Monitoring Services,03/04/2012,5100037478,1250.04,PLUSWORK LTD
TfGM,Transport,Transport Planning & Monitoring Services,03/04/2012,5100037479,676.06,PLUSWORK LTD
TfGM,Transport,Transport Planning & Monitoring Services,03/04/2012,5100037480,566.4,PLUSWORK LTD
TfGM,Transport,Transport Planning & Monitoring Services,03/04/2012,5100037481,3133.48,PLUSWORK LTD
TfGM,Transport,Transport Planning & Monitoring Services,03/04/2012,5100037483,508.9,PLUSWORK LTD
TfGM,Transport,Temporary Vacancy Cover,03/04/2012,5100037655,566.4,PLUSWORK LTD
TfGM,Transport,Concessionary Reimbursement,03/04/2012,1900020495,0,RADIO CABS ASHTON LTD
TfGM,Transport,Travel and Accommodation,03/04/2012,1900020378,539.67,REDACTED
TfGM,Transport,Driver Intervention Course Delivery Costs,03/04/2012,5100037663,1243.4,RICHARD JOHN MOTT
TfGM,Transport,Driver Intervention Course Delivery Costs,03/04/2012,5100037638,1741.96,RICHARD LORD
TfGM,Transport,Bus Support Services,03/04/2012,5100037593,750,ROCHDALE COMMUNITY TRANSPORT
TfGM,Transport,Bus Support Services,03/04/2012,5100037594,1000,ROCHDALE COMMUNITY TRANSPORT
TfGM,Transport,Bus Support Services,03/04/2012,5100037599,1723.33,ROCHDALE COMMUNITY TRANSPORT
TfGM,Transport,"Rent, Rates & Service Charges",03/04/2012,1900020483,1580.1,ROCHDALE MBC
TfGM,Transport,"Rent, Rates & Service Charges",03/04/2012,1900020485,37601.91,ROCHDALE MBC
TfGM,Transport,"Rent, Rates & Service Charges",03/04/2012,1900020487,32343.33,ROCHDALE MBC
TfGM,Transport,Traffic Signal Works,03/04/2012,5100037496,1478.5,ROSGAL LTD
TfGM,Transport,"Rent, Rates & Service Charges",03/04/2012,1900020506,2500,ROYAL MAIL GROUP PLC
TfGM,Transport,Capital Costs - Light Rail Support Services,03/04/2012,5100037601,10320,SB PROJECT MANAGEMENT LTD
TfGM,Transport,"Rent, Rates & Service Charges",03/04/2012,1900020505,6250,SEGRO FINANCE PLC
TfGM,Transport,Capital Costs - Print & Media,03/04/2012,5100037215,1911.65,SERVICEPOINT UK
TfGM,Transport,Capital Costs - Print & Media,03/04/2012,5100037217,2698.83,SERVICEPOINT UK
TfGM,Transport,Bus Station & Shelter Consumables,03/04/2012,5100037443,616.24,SHORROCK TRICHEM
TfGM,Transport,Bus Station & Shelter Consumables,03/04/2012,5100037463,549.87,SHORROCK TRICHEM
TfGM,Transport,Traffic and Transportation Surveys,03/04/2012,5100037375,813.59,SKY HIGH PLC
TfGM,Transport,Traffic and Transportation Surveys,03/04/2012,5100037376,832.22,SKY HIGH PLC
TfGM,Transport,Capital Costs - Legal Services,03/04/2012,1900020507,2363.82,SNR DENTON UK LLP
TfGM,Transport,Bus Support Services,03/04/2012,5100037596,1210,SO COACHES
TfGM,Transport,Bus Support Services,03/04/2012,5100037597,950,SO COACHES
TfGM,Transport,IS Support Services,03/04/2012,5100037591,6000,STARDOTSTAR
TfGM,Transport,Print & Media,03/04/2012,5100037535,1882,STEFFPRINT LTD
TfGM,Transport,Capital Costs - Health & Safety Support Services,03/04/2012,5100037378,1350,STEPHEN J FIRTH
TfGM,Transport,"Rent, Rates & Service Charges",03/04/2012,1900020493,43276.37,STOCKPORT MBC
TfGM,Transport,Planning Support Services,03/04/2012,5100037466,3250,STOCKPORT MBC
TfGM,Transport,Property & Equipment Maintenance,03/04/2012,5100037510,461.11,STOCKPORT MBC
TfGM,Corporate Services,Computer Support and Licences,03/04/2012,5100037355,9726.78,SUNGARD AVAILABILITY SERVICES UK LT
TfGM,Transport,"Rent, Rates & Service Charges",03/04/2012,1900020471,1106.81,TAMESIDE MBC
TfGM,Transport,"Rent, Rates & Service Charges",03/04/2012,1900020473,1464.9,TAMESIDE MBC
TfGM,Transport,"Rent, Rates & Service Charges",03/04/2012,1900020475,20602.47,TAMESIDE MBC
TfGM,Transport,"Rent, Rates & Service Charges",03/04/2012,1900020477,31651.5,TAMESIDE MBC
TfGM,Transport,Property & Equipment Maintenance,03/04/2012,5100037509,9000,TAMESIDE MBC
TfGM,Transport,CCTV Support Services,03/04/2012,5100037043,790.4,TECHNOLOGY SOLUTIONS LTD
TfGM,Transport,CCTV Support Services,03/04/2012,5100037173,763,TECHNOLOGY SOLUTIONS LTD
TfGM,Transport,Training,03/04/2012,5100037504,2700,THE NATIONWIDE CYCLING ACADEMY
TfGM,Transport,"Rent, Rates & Service Charges",03/04/2012,1900020489,12360.7,TRAFFORD MBC
TfGM,Transport,Subscriptions,03/04/2012,5100037646,4222,TRIBAL EDUCATION LTD
TfGM,Transport,Cleaning,03/04/2012,5100037196,12648.25,TUDOR CONTRACT CLEANERS LTD
TfGM,Transport,Utilities & Energy,03/04/2012,1900020412,3125.01,UNITED UTILITIES WATER PLC
TfGM,Transport,Utilities & Energy,03/04/2012,1900020413,3125.01,UNITED UTILITIES WATER PLC
TfGM,Transport,Utilities & Energy,03/04/2012,1900020414,3125.01,UNITED UTILITIES WATER PLC
TfGM,Transport,Utilities & Energy,03/04/2012,1900020415,3125.01,UNITED UTILITIES WATER PLC
TfGM,Transport,Utilities & Energy,03/04/2012,1900020416,5937.23,UNITED UTILITIES WATER PLC
TfGM,Transport,Utilities & Energy,03/04/2012,1900020417,671.94,UNITED UTILITIES WATER PLC
TfGM,Transport,Utilities & Energy,03/04/2012,1900020418,3125.01,UNITED UTILITIES WATER PLC
TfGM,Transport,Utilities & Energy,03/04/2012,1900020419,671.94,UNITED UTILITIES WATER PLC
TfGM,Transport,Utilities & Energy,03/04/2012,1900020420,702.81,UNITED UTILITIES WATER PLC
TfGM,Transport,Utilities & Energy,03/04/2012,1900020421,1405.62,UNITED UTILITIES WATER PLC
TfGM,Transport,Utilities & Energy,03/04/2012,1900020422,671.94,UNITED UTILITIES WATER PLC
TfGM,Transport,Utilities & Energy,03/04/2012,1900020423,5937.23,UNITED UTILITIES WATER PLC
TfGM,Transport,Utilities & Energy,03/04/2012,1900020424,671.94,UNITED UTILITIES WATER PLC
TfGM,Transport,Utilities & Energy,03/04/2012,1900020425,13437.21,UNITED UTILITIES WATER PLC
TfGM,Transport,Utilities & Energy,03/04/2012,1900020427,671.94,UNITED UTILITIES WATER PLC
TfGM,Transport,Utilities & Energy,03/04/2012,1900020429,1405.62,UNITED UTILITIES WATER PLC
TfGM,Transport,Vehicle Repairs & Maintenance,03/04/2012,5100037543,444.94,Walton Summit Truck Centre
TfGM,Transport,Supported Bus Services,03/04/2012,5100037386,4457.7,WARRINGTON BOROUGH COUNCIL
TfGM,Corporate Services,Legal Services,03/04/2012,5100037513,22036.45,WEIGHTMANS LLP
TfGM,Corporate Services,Legal Services,03/04/2012,5100037514,33360.48,WEIGHTMANS LLP
TfGM,Corporate Services,Legal Services,03/04/2012,5100037515,-5383.5,WEIGHTMANS LLP
TfGM,Corporate Services,Legal Services,03/04/2012,5100037516,-8621.5,WEIGHTMANS LLP
TfGM,Transport,Speed Camera Support Services,03/04/2012,5100037610,709.45,WORK SOLUTIONS
TfGM,Corporate Services,Employee Reimbursed Costs,04/04/2012,5100037680,5797,CHILDCARE VOUCHERS LTD
TfGM,Transport,"Rent, Rates & Service Charges",04/04/2012,1900020432,10534,MANCHESTER CITY COUNCIL
TfGM,Transport,"Rent, Rates & Service Charges",04/04/2012,1900020434,206100,MANCHESTER CITY COUNCIL
TfGM,Transport,"Rent, Rates & Service Charges",04/04/2012,1900020436,62345.24,MANCHESTER CITY COUNCIL
TfGM,Transport,"Rent, Rates & Service Charges",04/04/2012,1900020438,503800,MANCHESTER CITY COUNCIL
TfGM,Transport,"Rent, Rates & Service Charges",04/04/2012,1900020440,1794.27,MANCHESTER CITY COUNCIL
TfGM,Transport,"Rent, Rates & Service Charges",04/04/2012,1900020442,1727.97,MANCHESTER CITY COUNCIL
TfGM,Transport,"Rent, Rates & Service Charges",04/04/2012,1900020444,813.83,MANCHESTER CITY COUNCIL
TfGM,Transport,"Rent, Rates & Service Charges",04/04/2012,1900020446,11944.81,MANCHESTER CITY COUNCIL
TfGM,Transport,"Rent, Rates & Service Charges",04/04/2012,1900020448,10362.25,MANCHESTER CITY COUNCIL
TfGM,Transport,"Rent, Rates & Service Charges",04/04/2012,1900020450,618.75,MANCHESTER CITY COUNCIL
TfGM,Transport,"Rent, Rates & Service Charges",04/04/2012,1900020452,698.45,MANCHESTER CITY COUNCIL
TfGM,Transport,"Rent, Rates & Service Charges",04/04/2012,1900020454,10476.75,MANCHESTER CITY COUNCIL
TfGM,Transport,"Rent, Rates & Service Charges",04/04/2012,1900020456,744.25,MANCHESTER CITY COUNCIL
TfGM,Transport,"Rent, Rates & Service Charges",04/04/2012,1900020458,731.25,MANCHESTER CITY COUNCIL
TfGM,Transport,"Rent, Rates & Service Charges",04/04/2012,1900020522,11649.69,MANCHESTER CITY COUNCIL
TfGM,Transport,"Rent, Rates & Service Charges",04/04/2012,1900020523,24740.28,MANCHESTER CITY COUNCIL
TfGM,Transport,"Rent, Rates & Service Charges",04/04/2012,1900020524,24773.66,MANCHESTER CITY COUNCIL
TfGM,Transport,"Rent, Rates & Service Charges",04/04/2012,1900020525,24679.98,MANCHESTER CITY COUNCIL
TfGM,Transport,"Rent, Rates & Service Charges",04/04/2012,1900020526,24551.74,MANCHESTER CITY COUNCIL
TfGM,Transport,"Rent, Rates & Service Charges",04/04/2012,1900020527,24936.12,MANCHESTER CITY COUNCIL
TfGM,Transport,"Rent, Rates & Service Charges",04/04/2012,1900020528,13230,MANCHESTER CITY COUNCIL
TfGM,Transport,Supported Bus Services,04/04/2012,1900020510,30000,MAYTREE TRAVEL LTD
TfGM,Transport,Capital Costs - Engineering Support Services,05/04/2012,5100037761,12756.5,AECOM LTD
TfGM,Transport,Driver Intervention Course Delivery Costs,05/04/2012,1900020594,2163.68,AIM TO PASS SCHOOL OF MOTORING
TfGM,Transport,Driver Intervention Course Delivery Costs,05/04/2012,1900020573,607.75,ANTHONY MACK
TfGM,Transport,Capital Costs - Project Management Services,05/04/2012,5100037697,7481.25,ATKINS LTD
TfGM,Transport,Capital Costs - Project Management Services,05/04/2012,5100037698,630,ATKINS LTD
TfGM,Transport,Capital Costs - Engineering Support Services,05/04/2012,5100037699,2244.38,ATKINS LTD
TfGM,Transport,Driver Intervention Course Delivery Costs,05/04/2012,1900020556,1984.87,AVRILS DRIVING SCHOOL
TfGM,Transport,Driver Intervention Course Delivery Costs,05/04/2012,1900020571,607.75,BERNARD LONERGAN
TfGM,Transport,"Rent, Rates & Service Charges",05/04/2012,1900020516,4320,BOLTON METROPOLITAN BOROUGH COUNCIL
TfGM,Transport,"Rent, Rates & Service Charges",05/04/2012,1900020517,24990,BOLTON METROPOLITAN BOROUGH COUNCIL
TfGM,Transport,Cleaning,05/04/2012,5100037735,1084.4,BOLTON METROPOLITAN BOROUGH COUNCIL
TfGM,Transport,Driver Intervention Course Delivery Costs,05/04/2012,1900020550,2115.04,BRECK SCHOOL OF MOTORING
TfGM,Transport,Capital Costs - Computer & Communications Hardware,05/04/2012,5100037727,44610.18,BT ENGAGE IT
TfGM,Transport,"Rent, Rates & Service Charges",05/04/2012,1900020515,9180,BURY MBC
TfGM,Transport,"Rent, Rates & Service Charges",05/04/2012,1900020529,3103.8,BURY MBC
TfGM,Transport,"Rent, Rates & Service Charges",05/04/2012,1900020635,5249.61,BURY MBC
TfGM,Transport,"Rent, Rates & Service Charges",05/04/2012,1900020636,5249.6,BURY MBC
TfGM,Transport,"Rent, Rates & Service Charges",05/04/2012,1900020637,765,BURY MBC
TfGM,Transport,"Rent, Rates & Service Charges",05/04/2012,1900020638,888.75,BURY MBC
TfGM,Transport,"Rent, Rates & Service Charges",05/04/2012,1900020639,888.75,BURY MBC
TfGM,Transport,Printing Services,05/04/2012,5100037725,1088,CHAPEL PRESS LTD
TfGM,Transport,Printing Services,05/04/2012,5100037726,5637,CHAPEL PRESS LTD
TfGM,Transport,"Rent, Rates & Service Charges",05/04/2012,1900020530,7560,CITY OF SALFORD
TfGM,Transport,Driver Intervention Course Delivery Costs,05/04/2012,5100037770,1972.72,COLIN JEFFREY
TfGM,Corporate Services,Temporary Vacancy Cover,05/04/2012,1900020536,7751.83,COMENSURA LTD
TfGM,Transport,Driver Intervention Course Delivery Costs,05/04/2012,1900020572,1462.2,CORRIE MACCORMACK
TfGM,Transport,Driver Intervention Course Delivery Costs,05/04/2012,1900020554,1616.67,COWLEY DRIVING SCHOOL
TfGM,Transport,Driver Intervention Course Delivery Costs,05/04/2012,1900020555,2483.24,CRUISE DRIVER TRAINING
TfGM,Transport,Driver Intervention Course Delivery Costs,05/04/2012,1900020558,607.75,DAVID ELLIS
TfGM,Transport,Driver Intervention Course Delivery Costs,05/04/2012,1900020568,2248.76,DAVID HODGKINSON
TfGM,Transport,Driver Intervention Course Delivery Costs,05/04/2012,1900020595,1531.6,DAVID WALKER DRIVER TRAINING
TfGM,Transport,Driver Intervention Course Delivery Costs,05/04/2012,1900020596,2398.15,DAVID WALSH
TfGM,Transport,Driver Intervention Course Delivery Costs,05/04/2012,1900020580,1657.2,DRAGON DRIVING
TfGM,Transport,Driver Intervention Course Delivery Costs,05/04/2012,1900020583,2604.78,DRIVER ACADEMY
TfGM,Transport,Driver Intervention Course Delivery Costs,05/04/2012,1900020552,1352.8,DRIVERSKILLS
TfGM,Transport,Driver Intervention Course Delivery Costs,05/04/2012,1900020584,2167.2,DSM SCHOOL OF MOTORING
TfGM,Transport,Driver Intervention Course Delivery Costs,05/04/2012,1900020593,729.3,E TURTON
TfGM,Transport,Wide Area Network,05/04/2012,5100037565,13384,EASYNET GLOBAL SERVICES
TfGM,Transport,Wide Area Network,05/04/2012,5100037566,15279,EASYNET GLOBAL SERVICES
TfGM,Transport,Capital Costs - Engineering Support Services,05/04/2012,5100037472,7428.9,EC HARRIS LLP
TfGM,Transport,Capital Costs - Engineering Support Services,05/04/2012,5100037473,21554.49,EC HARRIS LLP
TfGM,Transport,IS Support Services,05/04/2012,5100037722,9500,EP MORRIS
TfGM,Transport,Engineering Support Services,05/04/2012,5100037469,1200,FREMONT LTD
TfGM,Transport,Driver Intervention Course Delivery Costs,05/04/2012,1900020547,1753.91,GARY CAMPBELL LTD
TfGM,Transport,Driver Intervention Course Delivery Costs,05/04/2012,5100037720,1045.36,GEOFF WEBSTER
TfGM,Transport,Capital Costs - Design Support Services,05/04/2012,5100037670,3500,GILLESPIES
TfGM,Transport,Driver Intervention Course Delivery Costs,05/04/2012,1900020587,1312.8,GILLIAN ROBINSON
TfGM,Transport,Driver Intervention Course Delivery Costs,05/04/2012,1900020551,1640.97,GRAHAM CLIFFE
TfGM,Transport,External Support Services - Safety & Security,05/04/2012,5100037706,1500,GREATER MANCHESTER POLICE
TfGM,Transport,External Support Services - Gateway Checks,05/04/2012,5100037707,1286,GREATER MANCHESTER POLICE
TfGM,Transport,Driver Intervention Course Delivery Costs,05/04/2012,1900020543,607.75,H BIRLEY SCHOOL OF MOTORING
TfGM,Transport,Rail Support Services,05/04/2012,5100037708,5385.19,HALCROW GROUP LTD
TfGM,Transport,Street Furniture Equipment,05/04/2012,5100037221,5897.44,HALSALL SIGNS LTD
TfGM,Transport,Street Furniture Equipment,05/04/2012,5100037634,4116,HALSALL SIGNS LTD
TfGM,Transport,Driver Intervention Course Delivery Costs,05/04/2012,1900020567,2710.65,HOGHTON DRIVING SCHOOL
TfGM,Transport,Project Management Services,05/04/2012,5100037752,1900,INCITE SOLUTIONS LTD
TfGM,Transport,Driver Intervention Course Delivery Costs,05/04/2012,1900020565,1656.68,INSIGHT 2 DRIVE
TfGM,Transport,Driver Intervention Course Delivery Costs,05/04/2012,1900020585,656.4,JANET RIGGS
TfGM,Transport,Driver Intervention Course Delivery Costs,05/04/2012,1900020577,729.3,JOHN A MILNE
TfGM,Transport,Driver Intervention Course Delivery Costs,05/04/2012,1900020542,1689.6,JOHN AIREY
TfGM,Transport,Vehicle Costs,05/04/2012,5100037736,1029.88,LEX AUTOLEASE LTD
TfGM,Transport,"Rent, Rates & Service Charges",05/04/2012,1900020606,516.05,MANCHESTER CITY COUNCIL
TfGM,Transport,"Rent, Rates & Service Charges",05/04/2012,1900020608,1272.62,MANCHESTER CITY COUNCIL
TfGM,Transport,"Rent, Rates & Service Charges",05/04/2012,1900020609,1272.61,MANCHESTER CITY COUNCIL
TfGM,Transport,"Rent, Rates & Service Charges",05/04/2012,1900020642,1068.75,MANCHESTER CITY COUNCIL
TfGM,Transport,"Rent, Rates & Service Charges",05/04/2012,1900020643,1068.75,MANCHESTER CITY COUNCIL
TfGM,Transport,"Rent, Rates & Service Charges",05/04/2012,1900020644,1822.5,MANCHESTER CITY COUNCIL
TfGM,Transport,"Rent, Rates & Service Charges",05/04/2012,1900020645,1822.5,MANCHESTER CITY COUNCIL
TfGM,Transport,"Rent, Rates & Service Charges",05/04/2012,1900020646,1597.5,MANCHESTER CITY COUNCIL
TfGM,Transport,"Rent, Rates & Service Charges",05/04/2012,1900020647,1597.5,MANCHESTER CITY COUNCIL
TfGM,Transport,"Rent, Rates & Service Charges",05/04/2012,1900020648,1822.5,MANCHESTER CITY COUNCIL
TfGM,Transport,"Rent, Rates & Service Charges",05/04/2012,1900020649,1822.5,MANCHESTER CITY COUNCIL
TfGM,Transport,Capital Costs - Engineering Support Services,05/04/2012,1900020537,808.15,MANCHESTER METROPOLITAN UNIVERSITY
TfGM,Transport,Capital Costs - Cycle Facilities Improvement Grants,05/04/2012,1900020538,11905,MANCHESTER SCIENCE PARK
TfGM,Transport,Driver Intervention Course Delivery Costs,05/04/2012,1900020546,1681,MARK BRENNAN
TfGM,Transport,Street Furniture Equipment,05/04/2012,5100037767,5450,METFAST LTD
TfGM,Transport,Driver Intervention Course Delivery Costs,05/04/2012,1900020545,2155.04,MICHAEL BOLTON DRIVER TRAINING
TfGM,Corporate Services,IS Consumables,05/04/2012,5100037700,739.8,MISCO
TfGM,Corporate Services,IS Consumables,05/04/2012,5100037701,1170.54,MISCO
TfGM,Transport,Cleaning,05/04/2012,5100037772,535.82,MITIE CLEANING & SUPPORT SERVS LTD
TfGM,Transport,Driver Intervention Course Delivery Costs,05/04/2012,1900020581,2248.76,MOORTOWN SCHOOL OF MOTORING
TfGM,Transport,"Rent, Rates & Service Charges",05/04/2012,1900020514,22194.8,OLDHAM MBC
TfGM,Transport,Printing Services,05/04/2012,5100037682,10883.6,OMEGA PRINT AND DESIGN LTD
TfGM,Transport,Capital Costs - Vehicle Costs,05/04/2012,5100037709,109075,OPTARE LTD
TfGM,Transport,Capital Costs - Vehicle Costs,05/04/2012,5100037710,109575,OPTARE LTD
TfGM,Transport,Capital Costs - Vehicle Costs,05/04/2012,5100037711,111325,OPTARE LTD
TfGM,Transport,Capital Costs - Vehicle Costs,05/04/2012,5100037712,111325,OPTARE LTD
TfGM,Transport,Capital Costs - Vehicle Costs,05/04/2012,5100037713,110825,OPTARE LTD
TfGM,Transport,Capital Costs - Vehicle Costs,05/04/2012,5100037714,110825,OPTARE LTD
TfGM,Transport,Capital Costs - Vehicle Costs,05/04/2012,5100037715,111325,OPTARE LTD
TfGM,Transport,Smart Ticketing,05/04/2012,5100037692,1470.5,OSCAR ASSOCIATES (UK) LTD
TfGM,Transport,Smart Ticketing,05/04/2012,5100037734,1470.5,OSCAR ASSOCIATES (UK) LTD
TfGM,Transport,Traffic Signal Services,05/04/2012,5100037704,1135,P J MARKHAM ELECTRONICS MAINTENANCE
TfGM,Transport,Traffic Signal Services,05/04/2012,5100037716,1015,P J MARKHAM ELECTRONICS MAINTENANCE
TfGM,Transport,Traffic Signal Services,05/04/2012,5100037717,577.5,P J MARKHAM ELECTRONICS MAINTENANCE
TfGM,Transport,Capital Costs - Legal Services,05/04/2012,5100037676,1995,PANNONE AND PARTNERS
TfGM,Transport,Legal Services,05/04/2012,5100037689,1071.9,PANNONE AND PARTNERS
TfGM,Transport,Capital Costs - Legal Services,05/04/2012,5100037690,2044.8,PANNONE AND PARTNERS
TfGM,Transport,Driver Intervention Course Delivery Costs,05/04/2012,1900020589,2446.8,PAS DRIVING
TfGM,Transport,Driver Intervention Course Delivery Costs,05/04/2012,1900020591,2625.57,PATRICIA STANDRING
TfGM,Transport,Driver Intervention Course Delivery Costs,05/04/2012,1900020549,2080.24,PAUL CLARKE
TfGM,Transport,Print & Stationery ,05/04/2012,5100037771,1050,PEDAL MCR CO-OPERATIVE
TfGM,Transport,"Rent, Rates & Service Charges",05/04/2012,1900020535,74125,PEEL SOUTH EAST LTD
TfGM,Transport,Driver Intervention Course Delivery Costs,05/04/2012,1900020563,632.08,PETER HARGREAVES SCHOOL OF MOTORING
TfGM,Transport,Driver Intervention Course Delivery Costs,05/04/2012,1900020590,1389.24,PETERS DRIVING SCHOOL
TfGM,Corporate Services,Training,05/04/2012,1900020632,1819,R W Parker
TfGM,Transport,Distribution Support Services,05/04/2012,5100037536,6883.5,RCD
TfGM,Transport,"Rent, Rates & Service Charges",05/04/2012,1900020511,7920,ROCHDALE MBC
TfGM,Transport,Driver Intervention Course Delivery Costs,05/04/2012,1900020562,2629.1,ROY GREENOUGH
TfGM,Transport,Driver Intervention Course Delivery Costs,05/04/2012,1900020548,1681,S M CHARLSON
TfGM,Transport,Driver Intervention Course Delivery Costs,05/04/2012,1900020582,1179.08,SHELLIS SCHOOL OF MOTORING
TfGM,Transport,Driver Intervention Course Delivery Costs,05/04/2012,1900020561,1352.79,SHIRLEYS DRIVING SCHOOL
TfGM,Transport,Traffic and Transportation Surveys,05/04/2012,5100037766,737.35,SKY HIGH PLC
TfGM,Transport,Capital Costs - Cycle Facilities Improvement Grants,05/04/2012,1900020539,7928.6,SOUTHWAY HOUSING TRUST
TfGM,Transport,"Rent, Rates & Service Charges",05/04/2012,1900020518,720,STOCKPORT MBC
TfGM,Transport,"Rent, Rates & Service Charges",05/04/2012,1900020519,24903.19,STOCKPORT MBC
TfGM,Transport,"Rent, Rates & Service Charges",05/04/2012,1900020599,9900,STOCKPORT MBC
TfGM,Transport,"Rent, Rates & Service Charges",05/04/2012,1900020607,519.98,STOCKPORT MBC
TfGM,Transport,"Rent, Rates & Service Charges",05/04/2012,1900020513,19530,TAMESIDE MBC
TfGM,Transport,CCTV Support Services,05/04/2012,5100037718,6891.87,TECHNOLOGY SOLUTIONS LTD
TfGM,Transport,"Rent, Rates & Service Charges",05/04/2012,1900020512,12930,TRAFFORD MBC
TfGM,Transport,"Rent, Rates & Service Charges",05/04/2012,1900020531,5040,TRAFFORD MBC
TfGM,Transport,"Rent, Rates & Service Charges",05/04/2012,1900020627,3150,TRAFFORD MBC
TfGM,Transport,"Rent, Rates & Service Charges",05/04/2012,1900020628,3150,TRAFFORD MBC
TfGM,Transport,"Rent, Rates & Service Charges",05/04/2012,1900020629,2092.5,TRAFFORD MBC
TfGM,Transport,"Rent, Rates & Service Charges",05/04/2012,1900020630,2092.5,TRAFFORD MBC
TfGM,Transport,"Rent, Rates & Service Charges",05/04/2012,1900020631,888.75,TRAFFORD MBC
TfGM,Transport,"Rent, Rates & Service Charges",05/04/2012,1900020633,2812.5,TRAFFORD MBC
TfGM,Transport,"Rent, Rates & Service Charges",05/04/2012,1900020634,2812.5,TRAFFORD MBC
TfGM,Transport,Cleaning,05/04/2012,5100037739,587.31,TUDOR CONTRACT CLEANERS LTD
TfGM,Transport,Cleaning,05/04/2012,5100037743,532.26,TUDOR CONTRACT CLEANERS LTD
TfGM,Transport,Cleaning,05/04/2012,5100037746,532.26,TUDOR CONTRACT CLEANERS LTD
TfGM,Transport,Cleaning,05/04/2012,5100037754,443.55,TUDOR CONTRACT CLEANERS LTD
TfGM,Transport,Cleaning,05/04/2012,5100037757,622.53,TUDOR CONTRACT CLEANERS LTD
TfGM,Transport,Cleaning,05/04/2012,5100037763,830.04,TUDOR CONTRACT CLEANERS LTD
TfGM,Transport,Utilities & Energy,05/04/2012,1900020617,3125.01,UNITED UTILITIES WATER PLC
TfGM,Transport,Utilities & Energy,05/04/2012,1900020618,671.94,UNITED UTILITIES WATER PLC
TfGM,Transport,Capital Costs - Cycle Facilities Improvement Grants,05/04/2012,1900020541,6865.45,UNIVERSITY OF MANCHESTER
TfGM,Transport,Capital Costs - Cycle Facilities Improvement Grants,05/04/2012,1900020540,7008.5,UNIVERSITY OF SALFORD
TfGM,Transport,Driver Intervention Course Delivery Costs,05/04/2012,1900020560,2094.27,VINCENT'S DRIVING SCHOOL
TfGM,Corporate Services,Legal Services,05/04/2012,5100037517,34856.3,WEIGHTMANS LLP
TfGM,Transport,"Rent, Rates & Service Charges",05/04/2012,1900020520,13095,WIGAN COUNCIL
TfGM,Transport,"Rent, Rates & Service Charges",05/04/2012,1900020521,23670,WIGAN COUNCIL
TfGM,Transport,"Rent, Rates & Service Charges",05/04/2012,1900020610,21038.36,WIGAN COUNCIL
TfGM,Transport,"Rent, Rates & Service Charges",05/04/2012,1900020614,1507.5,WIGAN COUNCIL
TfGM,Transport,"Rent, Rates & Service Charges",05/04/2012,1900020640,720,WIGAN COUNCIL
TfGM,Transport,"Rent, Rates & Service Charges",05/04/2012,1900020641,720,WIGAN COUNCIL
TfGM,Transport,Concessionary Reimbursement,10/04/2012,1900020667,521,1919 TAXIS
TfGM,Transport,Vehicle Fuel Costs,10/04/2012,1200020128,1189.31,ALLSTAR
TfGM,Transport,Capital Costs - LRT Vehicles,10/04/2012,5100037790,483400.08,BOMBARDIER TRANSPORTATION UK LTD
TfGM,Transport,Capital Costs - Legal Services,10/04/2012,5100037705,13136.7,DLA PIPER UK LLP
TfGM,Transport,Concessionary Reimbursement,10/04/2012,1900020666,1898,H SHAKERI T/A EUROLYNX TAXIS
TfGM,Transport,Concessionary Reimbursement,10/04/2012,1900020658,570,MANTAX RADIO TAXIS LTD
TfGM,Transport,Supported Bus Services,10/04/2012,1900020679,20000,MAYTREE TRAVEL LTD
TfGM,Transport,Concessionary Reimbursement,10/04/2012,1900020665,2233,METRO TAXIS LTD
TfGM,Transport,Capital Costs - Vehicle Costs,10/04/2012,5100037805,112075,OPTARE LTD
TfGM,Transport,Capital Costs - Vehicle Costs,10/04/2012,5100037806,112075,OPTARE LTD
TfGM,Transport,Capital Costs - Vehicle Costs,10/04/2012,5100037807,112075,OPTARE LTD
TfGM,Transport,Capital Costs - Vehicle Costs,10/04/2012,5100037808,112075,OPTARE LTD
TfGM,Transport,Traffic Signal Works,10/04/2012,5100037388,5959.45,PEEK TRAFFIC LTD
TfGM,Transport,Traffic Signal Works,10/04/2012,5100037491,3460.91,PEEK TRAFFIC LTD
TfGM,Transport,Traffic Signal Works,10/04/2012,5100037493,22766.76,SIEMENS PLC
TfGM,Transport,Traffic Signal Works,10/04/2012,5100037592,28996.34,SIEMENS PLC
TfGM,Transport,Capital Costs - Vehicle Costs,11/04/2012,5100037811,108575,OPTARE LTD
TfGM,Transport,Capital Costs - Vehicle Costs,11/04/2012,5100037812,108575,OPTARE LTD
TfGM,Transport,Capital Costs - Land Acquisition and Compensation Costs,12/04/2012,1900020726,2775.39,DAVIS BLANK FURNISS SOLICITORS
TfGM,Transport,Capital Costs - Programme and Project Management Services,13/04/2012,5100037961,8360,ACUITY PROGRAMME MANAGEMENT LTD
TfGM,Transport,Capital Costs - Planning Support Services,13/04/2012,5100037836,4401,AECOM LTD
TfGM,Transport,Capital Costs - Planning Support Services,13/04/2012,5100037837,950,AECOM LTD
TfGM,Transport,Paper and Printing Consumables,13/04/2012,5100037858,1446.7,ANTALIS MCNAUGHTON LTD
TfGM,Corporate Services,IS Software & Maintenance,13/04/2012,5100037329,87367.28,APPLIED CARD TECHNOLOGIES
TfGM,Transport,Capital Costs - Property Support Services,13/04/2012,5100037821,3714,ARDENT MANAGEMENT LTD
TfGM,Transport,Capital Costs - Signage Costs,13/04/2012,5100037228,1010,ASTRA SIGNS
TfGM,Transport,Capital Costs - Light Rail Support Services,13/04/2012,5100037834,18890.94,ATKINS LTD
TfGM,Transport,Property & Equipment Maintenance,13/04/2012,5100037859,2004.5,ATKINS LTD
TfGM,Transport,Capital Costs - Programme and Project Management Services,13/04/2012,5100037900,7560,ATKINS LTD
TfGM,Transport,Printing Services,13/04/2012,5100037916,483,BLUETREE DESIGN AND PRINT LTD
TfGM,Transport,Other Operational Costs,13/04/2012,5100037883,1472.82,BRAKE BROS LTD
TfGM,Transport,Other Operational Costs,13/04/2012,5100037884,854,BRAKE BROS LTD
TfGM,Transport,Print & Media,13/04/2012,5100037899,551.05,BRANDZ LTD
TfGM,Transport,External Support Services - Gateway Checks,13/04/2012,5100037816,5376,BRITISH TRANSPORT POLICE NORTH WEST
TfGM,Transport,External Support Services - Gateway Checks,13/04/2012,5100037817,3584,BRITISH TRANSPORT POLICE NORTH WEST
TfGM,Transport,Security Services,13/04/2012,5100037799,8083.41,CARLISLE SECURITY SERVICES LTD
TfGM,Transport,Print & Media,13/04/2012,5100037942,6457,CBS OUTDOOR LTD
TfGM,Transport,Capital Costs - Programme and Project Management Services,13/04/2012,5100037932,1698.8,CDI ANDERSELITE LTD
TfGM,Transport,Printing Services,13/04/2012,5100037849,6062,CHAPEL PRESS LTD
TfGM,Transport,"Rent, Rates & Service Charges",13/04/2012,1900020707,1755.85,CITY OF SALFORD
TfGM,Transport,Temporary Vacancy Cover,13/04/2012,1900020722,4100.38,COMENSURA LTD
TfGM,Transport,Transport Planning & Monitoring Services,13/04/2012,5100037877,710.5,CRANBORNE DATA COUNT
TfGM,Transport,Maintenance,13/04/2012,5100037180,8571.13,D.H.Welton & Co. Ltd
TfGM,Transport,Capital Costs - Light Rail Rolling Stock Works,13/04/2012,5100037732,25098,DEPOT RAIL LTD
TfGM,Corporate Services,Communications Consumables,13/04/2012,5100037901,5650,DIGITAL EXCHANGE PRODUCTS LTD
TfGM,Transport,Property & Equipment Maintenance,13/04/2012,5100037861,1625,DISABLED LIVING (TRAINING & EXHIBIT
TfGM,Transport,Capital Costs - Legal Services,13/04/2012,5100037839,18478.2,DLA PIPER UK LLP
TfGM,Transport,Driver Intervention Course Delivery Costs,13/04/2012,1900020597,1701.75,DS WILLIAMS LTD
TfGM,Transport,"Rent, Rates & Service Charges",13/04/2012,5100037813,1162.5,EURO CAR PARKS LTD
TfGM,Transport,Property & Equipment Maintenance,13/04/2012,5100037586,46378.37,G & J SEDDON
TfGM,Transport,Research Services,13/04/2012,5100037931,11054,GFK NOP LTD
TfGM,Transport,Accessible Transport,13/04/2012,1200020128,450000,GMATT
TfGM,Transport,External Support Services - Gateway Checks,13/04/2012,5100037912,8013,GREATER MANCHESTER POLICE
TfGM,Transport,Capital Costs - Engineering Support Services,13/04/2012,5100037934,12100,GUTTERIDGE HASKINS AND DAVEY LTD
TfGM,Transport,Street Furniture Equipment,13/04/2012,5100037647,9682.2,HALSALL SIGNS LTD
TfGM,Transport,Capital Costs - Environmental Feasibility Support,13/04/2012,5100037823,1241.39,HYDER LTD
TfGM,Transport,Driver Intervention Course Delivery Costs,13/04/2012,1900020557,2665.6,IAN DUFF
TfGM,Corporate Services,Computer Support and Licences,13/04/2012,5100037974,701.67,ITSO LTD
TfGM,Transport,Capital Costs - Infrastructure Support Services,13/04/2012,5100037826,10803.71,JACOBS UK LTD
TfGM,Transport,Capital Costs - Infrastructure Support Services,13/04/2012,5100037827,9876.34,JACOBS UK LTD
TfGM,Transport,Recruitment Services,13/04/2012,5100037893,7000,JGP RESOURCING
TfGM,Transport,Capital Costs - Programme and Project Management Services,13/04/2012,5100037922,17850,JJD LTD
TfGM,Transport,Capital Costs - Programme and Project Management Services,13/04/2012,5100037923,17850,JJD LTD
TfGM,Transport,Driver Intervention Course Delivery Costs,13/04/2012,1900020575,2106.43,JOHN MCGREAL
TfGM,Transport,Programme and Project Management Services,13/04/2012,5100037953,10805.29,KPMG
TfGM,Corporate Services,Programme and Project Management Services,13/04/2012,5100037954,1325,KPMG
TfGM,Corporate Services,Programme and Project Management Services,13/04/2012,5100037955,1520,KPMG
TfGM,Transport,Capital Costs - Property Support Services,13/04/2012,1900020711,9050,LAMBERT SMITH HAMPTON
TfGM,Transport,Capital Costs - Property Support Services,13/04/2012,5100037845,1000,LAMBERT SMITH HAMPTON
TfGM,Transport,Capital Costs - Legal Services,13/04/2012,1900020710,2000,LANDMARK CHAMBERS
TfGM,Transport,Capital Costs - Light Rail Support Services,13/04/2012,5100037835,7380,LIGHT RAIL LTD
TfGM,Transport,Driver Intervention Course Delivery Costs,13/04/2012,5100037825,2665.58,LISA ATKINSON DTS
TfGM,Corporate Services,Insurance,13/04/2012,5100037930,49359.57,LOCKTON LTD
TfGM,Transport,Capital Costs - Programme and Project Management Services,13/04/2012,5100037973,5087.5,MACE LTD
TfGM,Transport,"Rent, Rates & Service Charges",13/04/2012,1900020705,976.59,MANCHESTER CITY COUNCIL
TfGM,Transport,Print & Stationery ,13/04/2012,5100037286,7800,MANCHESTER CITY COUNCIL
TfGM,Transport,Staff Secondments,13/04/2012,5100037792,24766.95,MANCHESTER CITY COUNCIL
TfGM,Transport,Print & Stationery ,13/04/2012,5100037793,-720,MANCHESTER CITY COUNCIL
TfGM,Transport,Bus Support Services,13/04/2012,5100037824,8000,MANCHESTER COMMUNITY TRANSPORT
TfGM,Corporate Services,IS Support Services,13/04/2012,5100037833,8100,MAPSAR LTD
TfGM,Corporate Services,Printer Consumables,13/04/2012,5100037925,1162.46,MISCO
TfGM,Transport,Cleaning,13/04/2012,5100037809,7734.61,MITIE CLEANING & SUPPORT SERVS LTD
TfGM,Transport,Street Furniture Consumables,13/04/2012,5100037528,30240,MLPS
TfGM,Transport,Driver Intervention Course Delivery Costs,13/04/2012,1900020578,729.3,MORRIS SCHOOL OF MOTORING
TfGM,Transport,Capital Costs - Programme and Project Management Services,13/04/2012,5100037889,1664,MORSON INTERNATIONAL
TfGM,Transport,Capital Costs - Programme and Project Management Services,13/04/2012,5100037914,1950,MORSON INTERNATIONAL
TfGM,Transport,Capital Costs - Topographical Feasibility Support,13/04/2012,5100037852,3529.12,NETWORK RAIL
TfGM,Transport,Capital Costs - Programme and Project Management Services,13/04/2012,5100037819,1575,NURTURE PEOPLE LTD
TfGM,Transport,Vehicle Repairs & Maintenance,13/04/2012,5100036642,2402.49,OPTARE LTD
TfGM,Transport,Vehicle Repairs & Maintenance,13/04/2012,5100036643,2402.49,OPTARE LTD
TfGM,Transport,Vehicle Repairs & Maintenance,13/04/2012,5100036644,3203.32,OPTARE LTD
TfGM,Transport,Vehicle Repairs & Maintenance,13/04/2012,5100036645,2583.32,OPTARE LTD
TfGM,Transport,Vehicle Repairs & Maintenance,13/04/2012,5100036646,5220,OPTARE LTD
TfGM,Transport,Financial and Commercial Support Services,13/04/2012,5100037939,12967.5,P KELLY
TfGM,Transport,Capital Costs - Legal Services,13/04/2012,1900020709,25304.1,PANNONE AND PARTNERS
TfGM,Transport,Capital Costs - Legal Services,13/04/2012,5100037920,1500,PANNONE AND PARTNERS
TfGM,Transport,Legal Services,13/04/2012,5100037965,750,PANNONE AND PARTNERS
TfGM,Transport,Traffic Signal Works,13/04/2012,5100037485,3091.48,PEEK TRAFFIC LTD
TfGM,Transport,Traffic Signal Works,13/04/2012,5100037486,2763.67,PEEK TRAFFIC LTD
TfGM,Transport,Traffic Signal Works,13/04/2012,5100037487,706.47,PEEK TRAFFIC LTD
TfGM,Transport,Traffic Signal Works,13/04/2012,5100037488,739.93,PEEK TRAFFIC LTD
TfGM,Transport,Traffic Signal Works,13/04/2012,5100037489,963.91,PEEK TRAFFIC LTD
TfGM,Transport,Traffic Signal Works,13/04/2012,5100037490,2287.34,PEEK TRAFFIC LTD
TfGM,Transport,Traffic Signal Works,13/04/2012,5100037500,26942.58,PEEK TRAFFIC LTD
TfGM,Transport,Traffic Signal Works,13/04/2012,5100037624,2197.14,PEEK TRAFFIC LTD
TfGM,Transport,Traffic Signal Works,13/04/2012,5100037625,1827.53,PEEK TRAFFIC LTD
TfGM,Transport,Print & Stationery ,13/04/2012,5100037959,1650,PINDAR CREATIVE
TfGM,Transport,Temporary Vacancy Cover,13/04/2012,5100037895,566.4,PLUSWORK LTD
TfGM,Transport,Transport Planning & Monitoring Services,13/04/2012,5100037967,608.46,PLUSWORK LTD
TfGM,Transport,Transport Planning & Monitoring Services,13/04/2012,5100037968,566.4,PLUSWORK LTD
TfGM,Transport,Transport Planning & Monitoring Services,13/04/2012,5100037970,508.9,PLUSWORK LTD
TfGM,Transport,Transport Planning & Monitoring Services,13/04/2012,5100037972,2996.86,PLUSWORK LTD
TfGM,Transport,Bus Support Services,13/04/2012,5100037943,865,ROCHDALE COMMUNITY TRANSPORT
TfGM,Transport,Bus Support Services,13/04/2012,5100037944,1100,ROCHDALE COMMUNITY TRANSPORT
TfGM,Transport,Bus Support Services,13/04/2012,5100037945,1795.85,ROCHDALE COMMUNITY TRANSPORT
TfGM,Transport,Security Services,13/04/2012,5100037840,9349.98,ROCHDALE MBC
TfGM,Transport,Security Services,13/04/2012,5100037841,3066.67,ROCHDALE MBC
TfGM,Transport,Security Services,13/04/2012,5100037842,3066.67,ROCHDALE MBC
TfGM,Transport,Security Services,13/04/2012,5100037844,3066.67,ROCHDALE MBC
TfGM,Transport,Capital Costs - Print & Media,13/04/2012,5100037820,750,SAXON VIDEO PRODUCTIONS
TfGM,Transport,Capital Costs - Civil & Structural Engineering Services,13/04/2012,5100037938,6800,SCOTT WILSON LTD
TfGM,Transport,Capital Costs - Print & Media,13/04/2012,5100037674,927.39,SERVICEPOINT UK
TfGM,Corporate Services,Programme Management Services,13/04/2012,5100037918,11340,SG6 LTD
TfGM,Transport,Traffic and Transportation Surveys,13/04/2012,5100037797,1514.76,SKY HIGH PLC
TfGM,Transport,Bus Support Services,13/04/2012,5100037951,805,SO COACHES
TfGM,Corporate Services,Computer Support and Licences,13/04/2012,5100037847,985.32,SQUIDCARD LTD
TfGM,Transport,Driver Intervention Course Delivery Costs,13/04/2012,5100037919,5024.66,SUITE HOTEL KNOWSLEY
TfGM,Transport,Driver Intervention Course Delivery Costs,13/04/2012,1900020586,2297.4,TOM RIMMER
TfGM,Transport,Property & Equipment Maintenance,13/04/2012,5100037917,1832.94,TRAFFORD MBC
TfGM,Transport,Smart Ticketing,13/04/2012,5100037956,10200,TRANSPORT REVENUE CONSULTANTS
TfGM,Corporate Services,Computer Support and Licences,13/04/2012,5100037538,24038.55,TRUSTMARQUE SOLUTIONS
TfGM,Transport,Grant Audit,13/04/2012,5100037882,1750,UHY HACKER YOUNG LLP
TfGM,Transport,Utilities & Energy,13/04/2012,1900020703,600.75,UNITED UTILITIES WATER PLC
TfGM,Transport,Vehicle Repairs & Maintenance,13/04/2012,5100037985,699.99,Walton Summit Truck Centre
TfGM,Transport,"Rent, Rates & Service Charges",13/04/2012,1900020684,36534.19,WIGAN COUNCIL
TfGM,Transport,Capital Costs - Planning Support Services,13/04/2012,5100037848,930.63,WIGAN COUNCIL
TfGM,Transport,Speed Camera Support Services,13/04/2012,5100037818,709.45,WORK SOLUTIONS
TfGM,Transport,Supported Bus Services,16/04/2012,1900020846,2433.33,5 STAR PRIVATE HIRE
TfGM,Transport,Vehicle Fuel Costs,16/04/2012,1200020187,1453.2,ALLSTAR
TfGM,Transport,Concessionary Reimbursement,16/04/2012,1900020746,372583,ARRIVA MANCHESTER
TfGM,Transport,Supported Bus Services,16/04/2012,1900020858,5502.88,ARRIVA MANCHESTER
TfGM,Transport,Supported Bus Services,16/04/2012,1900020861,199586.5,ARRIVA MANCHESTER
TfGM,Transport,Concessionary Reimbursement,16/04/2012,1900020747,5232,BAKERS COACHES
TfGM,Transport,Supported Bus Services,16/04/2012,1900020838,4439.37,BAKERS COACHES
TfGM,Transport,Supported Bus Services,16/04/2012,1900020840,59394.62,BELLE VUE (MANCHESTER) LTD
TfGM,Transport,Supported Bus Services,16/04/2012,1700013571,-12280.16,BLUEBIRD BUS AND COACH
TfGM,Transport,Concessionary Reimbursement,16/04/2012,1900020748,33649,BLUEBIRD BUS AND COACH
TfGM,Transport,Supported Bus Services,16/04/2012,1900020839,97082.93,BLUEBIRD BUS AND COACH
TfGM,Transport,Supported Bus Services,16/04/2012,1900020841,2020.83,BULLITT CARS
TfGM,Transport,Supported Bus Services,16/04/2012,1900020842,14040.77,BULLOCKS
TfGM,Transport,Concessionary Reimbursement,16/04/2012,1900020749,14247,BURNLEY AND PENDLE
TfGM,Transport,Concessionary Reimbursement,16/04/2012,1900020751,15092,CENTREBUS LTD
TfGM,Transport,Concessionary Reimbursement,16/04/2012,1900020752,3261,CHECKMATE TRANSPORT LTD
TfGM,Transport,Supported Bus Services,16/04/2012,1900020870,10004.87,CHECKMATE TRANSPORT LTD
TfGM,Transport,Supported Bus Services,16/04/2012,1900020843,9912.01,CHESTERS COACHES
TfGM,Transport,Supported Bus Services,16/04/2012,1900020867,7981.64,CI WALLEY TA RINGWAY MINIBUS HIRE
TfGM,Transport,Concessionary Reimbursement,16/04/2012,1900020750,3000,COURTESY COACHES
TfGM,Transport,Concessionary Reimbursement,16/04/2012,1900020753,7500,EUROBUS
TfGM,Transport,Concessionary Reimbursement,16/04/2012,1900020757,1500,FE FINCH
TfGM,Transport,Pass Withdrawal Scheme,16/04/2012,1900020715,570,FINGLANDS
TfGM,Transport,Concessionary Reimbursement,16/04/2012,1900020754,24000,FINGLANDS
TfGM,Transport,Supported Bus Services,16/04/2012,1900020844,56601.67,FINGLANDS
TfGM,Transport,Concessionary Reimbursement,16/04/2012,1900020756,7000,FIRST CALDERLINE
TfGM,Transport,Concessionary Reimbursement,16/04/2012,1900020755,5834,FIRST HUDDERSFIELD
TfGM,Transport,Pass Withdrawal Scheme,16/04/2012,1900020716,675,FIRST MANCHESTER
TfGM,Transport,Concessionary Reimbursement,16/04/2012,1900020758,150000,FIRST MANCHESTER
TfGM,Transport,Supported Bus Services,16/04/2012,1900020848,713880.13,FIRST MANCHESTER
TfGM,Transport,Supported Bus Services,16/04/2012,1900020847,20118.34,GB COACHES
TfGM,Transport,Supported Bus Services,16/04/2012,1900020845,3023.83,GMATL
TfGM,Transport,Supported Bus Services,16/04/2012,1900020850,9014.25,GMATL
TfGM,Transport,Concessionary Reimbursement,16/04/2012,1900020760,149000,GO GOODWINS COACHES LTD
TfGM,Transport,Supported Bus Services,16/04/2012,1900020851,133339.71,GO GOODWINS COACHES LTD
TfGM,Transport,Concessionary Reimbursement,16/04/2012,1900020759,77000,GREEN TRIANGLE BUSES LTD
TfGM,Transport,Supported Bus Services,16/04/2012,1900020852,67275.94,GREEN TRIANGLE BUSES LTD
TfGM,Transport,Supported Bus Services,16/04/2012,1900020853,2333.33,HORWICH PRIVATE HIRE LINK LIMITED
TfGM,Transport,Concessionary Reimbursement,16/04/2012,1900020762,28778,JIM STONES COACHES
TfGM,Transport,Supported Bus Services,16/04/2012,1900020855,17255.9,JIM STONES COACHES
TfGM,Transport,Supported Bus Services,16/04/2012,1700013576,-545.26,JP EXECUTIVE
TfGM,Transport,Concessionary Reimbursement,16/04/2012,1900020763,48114,JP EXECUTIVE
TfGM,Transport,Supported Bus Services,16/04/2012,1900020854,45783.87,JP EXECUTIVE
TfGM,Transport,Supported Bus Services,16/04/2012,1900020856,8923.61,LAINTON COACHES LTD
TfGM,Transport,Concessionary Reimbursement,16/04/2012,1900020764,17025,LANCASHIRE UTD
TfGM,Transport,Supported Bus Services,16/04/2012,1900020857,2771.64,LEISURE TRAVEL
TfGM,Transport,Supported Bus Services,16/04/2012,1900020859,31243.73,M TRAVEL
TfGM,Transport,Concessionary Reimbursement,16/04/2012,1900020743,5000,MANCHESTER COMMUNITY TRANSPORT
TfGM,Transport,Concessionary Reimbursement,16/04/2012,1900020768,16000,MANCHESTER COMMUNITY TRANSPORT
TfGM,Transport,Supported Bus Services,16/04/2012,1900020878,161002.28,MANCHESTER COMMUNITY TRANSPORT
TfGM,Transport,Supported Bus Services,16/04/2012,1700013577,-2658.2,MAYTREE TRAVEL LTD
TfGM,Transport,Supported Bus Services,16/04/2012,1700013613,-50000,MAYTREE TRAVEL LTD
TfGM,Transport,Concessionary Reimbursement,16/04/2012,1900020770,56518,MAYTREE TRAVEL LTD
TfGM,Transport,Supported Bus Services,16/04/2012,1900020860,110801.2,MAYTREE TRAVEL LTD
TfGM,Transport,Supported Bus Services,16/04/2012,1900020862,36488.49,OLYMPIA TRAVEL
TfGM,Transport,Supported Bus Services,16/04/2012,1900020873,12802.02,R S TYRER LTD
TfGM,Transport,Concessionary Reimbursement,16/04/2012,1900020744,4282,RADIO CABS ASHTON LTD
TfGM,Transport,Supported Bus Services,16/04/2012,1900020863,31262.67,RADIO CABS ASHTON LTD
TfGM,Transport,Supported Bus Services,16/04/2012,1900020864,24574.33,ROCHDALE COMMUNITY TRANSPORT
TfGM,Transport,Concessionary Reimbursement,16/04/2012,1900020781,2368,ROJAY SERVICES LTD T/A WIGAN COACHW
TfGM,Transport,Concessionary Reimbursement,16/04/2012,1900020772,97751,ROSSENDALE TRANSPORT
TfGM,Transport,Supported Bus Services,16/04/2012,1900020865,138568.9,ROSSENDALE TRANSPORT
TfGM,Transport,Supported Bus Services,16/04/2012,1900020868,38418.87,SELWYNS TRAVEL LTD
TfGM,Transport,Concessionary Reimbursement,16/04/2012,1900020774,1250000,STAGECOACH SERVICES LTD
TfGM,Transport,Concessionary Reimbursement,16/04/2012,1900020775,20000,STAGECOACH SERVICES LTD
TfGM,Transport,Supported Bus Services,16/04/2012,1900020849,397402.98,STAGECOACH SERVICES LTD
TfGM,Transport,Supported Bus Services,16/04/2012,1900020866,22699.89,STAGECOACH SERVICES LTD
TfGM,Transport,Supported Bus Services,16/04/2012,1700013582,-1587.83,STOTTS TOURS
TfGM,Transport,Concessionary Reimbursement,16/04/2012,1700013588,-10000,STOTTS TOURS
TfGM,Transport,Supported Bus Services,16/04/2012,1900020869,16428.33,STOTTS TOURS
TfGM,Transport,Concessionary Reimbursement,16/04/2012,1900020745,2112,TELECARS
TfGM,Transport,Supported Bus Services,16/04/2012,1900020871,11958.33,TELECARS
TfGM,Transport,Supported Bus Services,16/04/2012,1900020872,9482.82,TRAVELMASTER MCR LTD
TfGM,Transport,Concessionary Reimbursement,16/04/2012,1900020776,7600,TYRER TOURS LTD
TfGM,Transport,Supported Bus Services,16/04/2012,1900020874,12459.79,TYRER TOURS LTD
TfGM,Transport,Concessionary Reimbursement,16/04/2012,1900020777,1466,VALE OF LLANGOLLEN TRAVEL LTD
TfGM,Transport,Supported Bus Services,16/04/2012,1900020875,3272.72,VIKING COACHES
TfGM,Transport,Concessionary Reimbursement,16/04/2012,1900020779,11410,WARRINGTON BOROUGH TRANSPORT LTD
TfGM,Transport,Concessionary Reimbursement,16/04/2012,1900020780,2000,WIGAN BUSES LTD
TfGM,Transport,Supported Bus Services,16/04/2012,1900020876,34163.67,WIGAN BUSES LTD
TfGM,Transport,Supported Bus Services,16/04/2012,1900020877,6533.17,WIGAN COMMUNITY TRANSPORT
TfGM,Transport,Capital Costs - Topographical Feasibility Support,17/04/2012,5100037838,765,AECOM LTD
TfGM,Transport,Capital Costs - Computer & Communications Hardware,17/04/2012,5100037902,1678,ASTRA SIGNS
TfGM,Transport,"Rent, Rates & Service Charges",17/04/2012,1900020893,2267.1,BURY MBC
TfGM,Transport,Capital Costs - Environmental & Ecological Support Services,17/04/2012,5100037791,2010,CC GEOTECHNICAL LTD
TfGM,Transport,Capital Costs - Programme and Project Management Services,17/04/2012,5100038092,1561.8,CDI ANDERSELITE LTD
TfGM,Transport,Print & Media,17/04/2012,5100037940,11500,CHALLENGE FOR CHANGE
TfGM,Transport,Print & Media,17/04/2012,5100037941,11500,CHALLENGE FOR CHANGE
TfGM,Transport,"Rent, Rates & Service Charges",17/04/2012,1900020896,24390,CITY OF SALFORD
TfGM,Transport,"Rent, Rates & Service Charges",17/04/2012,1900020897,24839.99,CITY OF SALFORD
TfGM,Transport,"Rent, Rates & Service Charges",17/04/2012,1900020898,3960,CITY OF SALFORD
TfGM,Transport,Maintenance,17/04/2012,5100037458,5569.09,D.H.Welton & Co. Ltd
TfGM,Transport,Maintenance,17/04/2012,5100037460,4727.66,D.H.Welton & Co. Ltd
TfGM,Transport,Maintenance,17/04/2012,5100037474,15135.27,D.H.Welton & Co. Ltd
TfGM,Transport,Maintenance,17/04/2012,5100037908,5193,D.H.Welton & Co. Ltd
TfGM,Transport,Maintenance,17/04/2012,5100037978,2595,D.H.Welton & Co. Ltd
TfGM,Transport,Maintenance,17/04/2012,5100037979,1624.68,D.H.Welton & Co. Ltd
TfGM,Transport,Maintenance,17/04/2012,5100037980,1805.58,D.H.Welton & Co. Ltd
TfGM,Corporate Services,Wide Area Network,17/04/2012,5100038072,688.32,EASYNET GLOBAL SERVICES
TfGM,Transport,Property & Equipment Maintenance,17/04/2012,1900020886,604.06,EON ENERGY
TfGM,Transport,Utilities & Energy,17/04/2012,1900020890,2556.99,EON ENERGY
TfGM,Corporate Services,Programme Assurance Services,17/04/2012,5100037996,23747.5,ERNST & YOUNG
TfGM,Transport,Engineering Support Services,17/04/2012,5100037937,900,FREMONT LTD
TfGM,Transport,Capital Costs - Engineering Support Services,17/04/2012,1900020837,18850,GOODMAN DEVELOPMENT MANAGMENT LTD
TfGM,Transport,Smart Ticketing,17/04/2012,5100038019,2941.2,HAYS SPECIALIST RECRUITMENT LTD
TfGM,Transport,Planning Support Services,17/04/2012,5100037668,9360,HILTON RAIL
TfGM,Corporate Services,IS Software & Maintenance,17/04/2012,5100038077,7600,IBM UK LTD
TfGM,Transport,Capital Costs - Legal Services,17/04/2012,1900020835,46064.68,JONES DAY
TfGM,Corporate Services,IS Software & Maintenance,17/04/2012,5100037880,121125,LOGICA UK LTD
TfGM,Transport,Capital Costs - Property Support Services,17/04/2012,1900020836,2400,MACGREGOR SMITH
TfGM,Transport,Capital Costs - Print & Media,17/04/2012,5100037995,653.85,MEN MEDIA
TfGM,Transport,Smart Ticketing,17/04/2012,5100038029,17600,NORTHCLIFFE LTD
TfGM,Transport,Smart Ticketing,17/04/2012,5100037994,1176.4,OSCAR ASSOCIATES (UK) LTD
TfGM,Corporate Services,Legal Services,17/04/2012,5100038031,569.8,PANNONE AND PARTNERS
TfGM,Corporate Services,Legal Services,17/04/2012,5100038032,517.3,PANNONE AND PARTNERS
TfGM,Transport,Transport Planning & Monitoring Services,17/04/2012,5100038024,3628.24,PLUSWORK LTD
TfGM,Transport,Supported Bus Services,17/04/2012,1900020888,0,ROCHDALE COMMUNITY TRANSPORT
TfGM,Transport,Traffic Signal Works,17/04/2012,5100037492,2391.15,ROSGAL LTD
TfGM,Transport,Traffic Signal Works,17/04/2012,5100037549,22500,ROSGAL LTD
TfGM,Transport,Traffic Signal Works,17/04/2012,5100037564,11140.69,ROSGAL LTD
TfGM,Transport,Traffic Signal Works,17/04/2012,5100037627,14500,ROSGAL LTD
TfGM,Transport,Traffic Signal Works,17/04/2012,5100038108,15000,ROSGAL LTD
TfGM,Transport,Traffic Signal Works,17/04/2012,5100038109,35000,ROSGAL LTD
TfGM,Transport,Capital Costs - LRT Capital Costs,17/04/2012,5100037607,66894.09,SERCO LTD
TfGM,Transport,Capital Costs - Print & Media,17/04/2012,5100038104,1078.46,SERVICEPOINT UK
TfGM,Transport,Capital Costs - Print & Media,17/04/2012,5100038105,2260.67,SERVICEPOINT UK
TfGM,Transport,Capital Costs - Print & Media,17/04/2012,5100038106,1108.39,SERVICEPOINT UK
TfGM,Transport,Traffic Signal Works,17/04/2012,5100037387,3370.52,SIEMENS PLC
TfGM,Transport,Traffic Signal Works,17/04/2012,5100037389,1475.43,SIEMENS PLC
TfGM,Transport,Traffic Signal Works,17/04/2012,5100037390,8495.11,SIEMENS PLC
TfGM,Transport,Traffic Signal Works,17/04/2012,5100037392,25177.03,SIEMENS PLC
TfGM,Transport,Traffic Signal Works,17/04/2012,5100037393,440.72,SIEMENS PLC
TfGM,Transport,Traffic Signal Works,17/04/2012,5100037394,6541.7,SIEMENS PLC
TfGM,Transport,Traffic Signal Works,17/04/2012,5100037395,1699.83,SIEMENS PLC
TfGM,Transport,Traffic Signal Works,17/04/2012,5100037396,7829.4,SIEMENS PLC
TfGM,Transport,Traffic Signal Works,17/04/2012,5100037397,11729.3,SIEMENS PLC
TfGM,Transport,Traffic Signal Works,17/04/2012,5100037398,18163.33,SIEMENS PLC
TfGM,Transport,Traffic Signal Works,17/04/2012,5100037399,1975.52,SIEMENS PLC
TfGM,Transport,Traffic Signal Works,17/04/2012,5100037400,1975.52,SIEMENS PLC
TfGM,Transport,Traffic Signal Works,17/04/2012,5100037402,1587.88,SIEMENS PLC
TfGM,Transport,Traffic Signal Works,17/04/2012,5100037405,6725.58,SIEMENS PLC
TfGM,Transport,Traffic Signal Works,17/04/2012,5100037406,7164.68,SIEMENS PLC
TfGM,Transport,Traffic Signal Works,17/04/2012,5100037408,2399.31,SIEMENS PLC
TfGM,Transport,Traffic Signal Works,17/04/2012,5100037416,4590.31,SIEMENS PLC
TfGM,Transport,Traffic Signal Works,17/04/2012,5100037417,2399.31,SIEMENS PLC
TfGM,Transport,Traffic Signal Works,17/04/2012,5100037418,1417.21,SIEMENS PLC
TfGM,Transport,Traffic Signal Works,17/04/2012,5100037424,505.98,SIEMENS PLC
TfGM,Transport,Traffic Signal Works,17/04/2012,5100037431,505.98,SIEMENS PLC
TfGM,Transport,Traffic Signal Works,17/04/2012,5100037432,505.98,SIEMENS PLC
TfGM,Transport,Traffic Signal Works,17/04/2012,5100037464,1586.01,SIEMENS PLC
TfGM,Transport,Traffic Signal Works,17/04/2012,5100037465,2841.36,SIEMENS PLC
TfGM,Transport,Traffic Signal Works,17/04/2012,5100037475,17914.38,SIEMENS PLC
TfGM,Transport,Traffic Signal Works,17/04/2012,5100037494,14146.94,SIEMENS PLC
TfGM,Transport,Traffic Signal Works,17/04/2012,5100037495,21505.6,SIEMENS PLC
TfGM,Transport,Traffic Signal Works,17/04/2012,5100037497,1525.97,SIEMENS PLC
TfGM,Transport,Traffic Signal Works,17/04/2012,5100037499,120800,SIEMENS PLC
TfGM,Transport,Traffic Signal Works,17/04/2012,5100037545,6950.39,SIEMENS PLC
TfGM,Transport,Traffic Signal Works,17/04/2012,5100037546,2050.5,SIEMENS PLC
TfGM,Transport,Traffic Signal Works,17/04/2012,5100037547,12378.48,SIEMENS PLC
TfGM,Transport,Traffic Signal Works,17/04/2012,5100037548,10391.28,SIEMENS PLC
TfGM,Transport,Traffic Signal Works,17/04/2012,5100037550,18117.12,SIEMENS PLC
TfGM,Transport,Traffic Signal Works,17/04/2012,5100037551,2072.01,SIEMENS PLC
TfGM,Transport,Traffic Signal Works,17/04/2012,5100037553,9590.81,SIEMENS PLC
TfGM,Transport,Traffic Signal Works,17/04/2012,5100037554,8849.2,SIEMENS PLC
TfGM,Transport,Traffic Signal Works,17/04/2012,5100037555,10601.04,SIEMENS PLC
TfGM,Transport,Traffic Signal Works,17/04/2012,5100037556,791.23,SIEMENS PLC
TfGM,Transport,Traffic Signal Works,17/04/2012,5100037557,1526.41,SIEMENS PLC
TfGM,Transport,Traffic Signal Works,17/04/2012,5100037558,611.48,SIEMENS PLC
TfGM,Transport,Traffic Signal Works,17/04/2012,5100037559,846.25,SIEMENS PLC
TfGM,Transport,Traffic Signal Works,17/04/2012,5100037560,564.91,SIEMENS PLC
TfGM,Transport,Traffic Signal Works,17/04/2012,5100037561,1271.17,SIEMENS PLC
TfGM,Transport,Traffic Signal Works,17/04/2012,5100037567,112407.94,SIEMENS PLC
TfGM,Transport,Traffic Signal Works,17/04/2012,5100037588,9802.84,SIEMENS PLC
TfGM,Transport,Traffic Signal Works,17/04/2012,5100037626,1291.21,SIEMENS PLC
TfGM,Transport,Traffic Signal Works,17/04/2012,5100037628,7557.39,SIEMENS PLC
TfGM,Transport,Traffic Signal Works,17/04/2012,5100037630,37113.82,SIEMENS PLC
TfGM,Transport,Traffic Signal Works,17/04/2012,5100037635,15941.73,SIEMENS PLC
TfGM,Transport,Driver Intervention Course Delivery Costs,17/04/2012,1900020570,2313.07,STEVEN LLOYD APPROVED SCHOOL OF MOT
TfGM,Transport,IS Consumables,17/04/2012,5100037562,42894,TDC SYSTEMS LTD
TfGM,Transport,IS Consumables,17/04/2012,5100037563,-7566.73,TDC SYSTEMS LTD
TfGM,Transport,Traffic Signal Works,17/04/2012,5100038081,3490,TDC SYSTEMS LTD
TfGM,Transport,"Rent, Rates & Service Charges",17/04/2012,1900020611,21038.35,WIGAN COUNCIL
TfGM,Transport,"Rent, Rates & Service Charges",17/04/2012,1900020615,1507.5,WIGAN COUNCIL
TfGM,Transport,Supported Bus Services,18/04/2012,1900020899,35646.13,STOTTS TOURS
TfGM,Transport,Postage Costs,19/04/2012,1200020249,3514.4,FP TELESET
TfGM,Transport,Capital Costs - Vehicle Costs,19/04/2012,5100038136,109825,OPTARE LTD
TfGM,Transport,Capital Costs - Vehicle Costs,19/04/2012,5100038137,109825,OPTARE LTD
TfGM,Transport,Capital Costs - Vehicle Costs,19/04/2012,5100038138,111075,OPTARE LTD
TfGM,Transport,Capital Costs - Vehicle Costs,19/04/2012,5100038139,111075,OPTARE LTD
TfGM,Transport,Capital Costs - Vehicle Costs,19/04/2012,5100038140,111075,OPTARE LTD
TfGM,Transport,Capital Costs - Programme and Project Management Services,20/04/2012,5100038121,10172.3,ACUITY PROGRAMME MANAGEMENT LTD
TfGM,Transport,Capital Costs - Engineering Support Services,20/04/2012,5100037762,765,AECOM LTD
TfGM,Transport,Capital Costs - Infrastructure Support Services,20/04/2012,5100037866,3361.04,AECOM LTD
TfGM,Transport,Capital Costs - Health & Safety Support Services,20/04/2012,5100038128,3090,ATKINS LTD
TfGM,Transport,Supported Bus Services,20/04/2012,1900020919,6356.36,BLUEBIRD BUS AND COACH
TfGM,Transport,Research Services,20/04/2012,5100037673,991.98,CENTRO WMPTE
TfGM,Transport,Driver Intervention Course Delivery Costs,20/04/2012,1900020598,2151.52,CENTURION DRIVER TRAINING
TfGM,Corporate Services,IS Services,20/04/2012,5100038114,12320,CHALMERS BROWN
TfGM,Transport,Temporary Vacancy Cover,20/04/2012,1900020900,7496.85,COMENSURA LTD
TfGM,Corporate Services,Computer Support and Licences,20/04/2012,5100037910,9885,CONDECO LTD
TfGM,Transport,Print & Media,20/04/2012,5100038182,613.82,CONNECT PUBLIC AFFAIRS LTD
TfGM,Transport,Capital Costs - Utility & Service Diversion Costs,20/04/2012,5100038164,21562.5,ELECTRICITY NORTH WEST EHV
TfGM,Corporate Services,Taxation Services,20/04/2012,5100038131,4149.8,ERNST & YOUNG
TfGM,Transport,Capital Costs - Design Support Services,20/04/2012,5100038192,3636.35,GILLESPIES
TfGM,Transport,Driver Intervention Course Delivery Costs,20/04/2012,5100038122,1050,HOLIDAY INN MANCHESTER CENTRAL PARK
TfGM,Transport,Capital Costs - Mechanical & Engineering Support Services,20/04/2012,5100038145,5149.94,JACOBS UK LTD
TfGM,Transport,Capital Costs - Mechanical & Engineering Support Services,20/04/2012,5100038146,489.65,JACOBS UK LTD
TfGM,Transport,Capital Costs - Mechanical & Engineering Support Services,20/04/2012,5100038147,7484.3,JACOBS UK LTD
TfGM,Transport,Capital Costs - Mechanical & Engineering Support Services,20/04/2012,5100038148,1234.2,JACOBS UK LTD
TfGM,Transport,Capital Costs - Topographical Feasibility Support,20/04/2012,5100038150,475.83,JACOBS UK LTD
TfGM,Transport,Capital Costs - Land Acquisition and Compensation Costs,20/04/2012,5100038155,1098,LESLIE ROBERTS AND CO LTD
TfGM,Corporate Services,Payroll Support Services,20/04/2012,5100037992,1138.3,LOGICA UK LTD
TfGM,Corporate Services,Payroll Support Services,20/04/2012,5100038022,747.78,LOGICA UK LTD
TfGM,Transport,Subscriptions,20/04/2012,5100037733,10000,MARKETING MANCHESTER
TfGM,Transport,Supported Bus Services,20/04/2012,1900020918,4891.2,MAYTREE TRAVEL LTD
TfGM,Transport,Print & Media,20/04/2012,5100038160,750,Mere
TfGM,Transport,Print & Media,20/04/2012,5100038185,1800,Mere
TfGM,Transport,Print & Media,20/04/2012,5100038186,1729,Mere
TfGM,Transport,Customer Communications,20/04/2012,5100038187,4950,Mere
TfGM,Transport,Capital Costs - Capital Project Main Contract Works,20/04/2012,5100037871,297000,MPACT THALES
TfGM,Transport,Capital Costs - Capital Project Main Contract Works,20/04/2012,5100038045,70000,MPACT THALES
TfGM,Transport,Capital Costs - Capital Project Main Contract Works,20/04/2012,5100038046,7380,MPACT THALES
TfGM,Transport,Capital Costs - Capital Project Main Contract Works,20/04/2012,5100038047,25000,MPACT THALES
TfGM,Transport,Capital Costs - Capital Project Main Contract Works,20/04/2012,5100038048,4210,MPACT THALES
TfGM,Transport,Capital Costs - Capital Project Main Contract Works,20/04/2012,5100038049,100000,MPACT THALES
TfGM,Transport,Capital Costs - Capital Project Main Contract Works,20/04/2012,5100038050,10000,MPACT THALES
TfGM,Transport,Capital Costs - Capital Project Main Contract Works,20/04/2012,5100038051,48250.74,MPACT THALES
TfGM,Transport,Capital Costs - Capital Project Main Contract Works,20/04/2012,5100038052,3160.46,MPACT THALES
TfGM,Transport,Capital Costs - Capital Project Main Contract Works,20/04/2012,5100038053,5851.01,MPACT THALES
TfGM,Transport,Capital Costs - Capital Project Main Contract Works,20/04/2012,5100038054,4531.86,MPACT THALES
TfGM,Transport,Capital Costs - Capital Project Main Contract Works,20/04/2012,5100038055,225000,MPACT THALES
TfGM,Transport,Capital Costs - Capital Project Main Contract Works,20/04/2012,5100038056,679619.2,MPACT THALES
TfGM,Transport,Capital Costs - Capital Project Main Contract Works,20/04/2012,5100038057,7993.69,MPACT THALES
TfGM,Transport,Capital Costs - Capital Project Main Contract Works,20/04/2012,5100038058,7683.31,MPACT THALES
TfGM,Transport,Capital Costs - Capital Project Main Contract Works,20/04/2012,5100038059,740000,MPACT THALES
TfGM,Transport,Capital Costs - Capital Project Main Contract Works,20/04/2012,5100038060,310000,MPACT THALES
TfGM,Transport,Capital Costs - Capital Project Main Contract Works,20/04/2012,5100038061,7330000,MPACT THALES
TfGM,Transport,Capital Costs - Capital Project Main Contract Works,20/04/2012,5100038062,75000,MPACT THALES
TfGM,Transport,Capital Costs - Capital Project Main Contract Works,20/04/2012,5100038063,407642.78,MPACT THALES
TfGM,Transport,Capital Costs - Capital Project Main Contract Works,20/04/2012,5100038064,2346920,MPACT THALES
TfGM,Transport,Capital Costs - Capital Project Main Contract Works,20/04/2012,5100038065,2794530,MPACT THALES
TfGM,Transport,Capital Costs - Capital Project Main Contract Works,20/04/2012,5100038066,16000,MPACT THALES
TfGM,Transport,Capital Costs - Capital Project Main Contract Works,20/04/2012,5100038132,1315000,MPACT THALES
TfGM,Transport,Capital Costs - Capital Project Main Contract Works,20/04/2012,5100038133,2041000,MPACT THALES
TfGM,Transport,Capital Costs - Capital Project Main Contract Works,20/04/2012,5100038143,1115000,MPACT THALES
TfGM,Transport,Vehicle Repairs & Maintenance,20/04/2012,5100037361,-1305,OPTARE LTD
TfGM,Transport,Vehicle Repairs & Maintenance,20/04/2012,5100037362,-697.5,OPTARE LTD
TfGM,Transport,Vehicle Repairs & Maintenance,20/04/2012,5100037363,-930,OPTARE LTD
TfGM,Transport,Vehicle Repairs & Maintenance,20/04/2012,5100037365,-697.5,OPTARE LTD
TfGM,Transport,Vehicle Repairs & Maintenance,20/04/2012,5100037366,6285.8,OPTARE LTD
TfGM,Transport,Vehicle Repairs & Maintenance,20/04/2012,5100037367,1044.9,OPTARE LTD
TfGM,Transport,Capital Costs - Legal Services,20/04/2012,5100038193,1690,PANNONE AND PARTNERS
TfGM,Transport,Capital Costs - Legal Services,20/04/2012,5100038194,2957,PANNONE AND PARTNERS
TfGM,Transport,Capital Costs - Programme and Project Management Services,20/04/2012,5100038199,17456.88,PARSONS BRINCKERHOFF LTD
TfGM,Transport,Capital Costs - Programme and Project Management Services,20/04/2012,5100038200,17380,PARSONS BRINCKERHOFF LTD
TfGM,Transport,Distribution Support Services,20/04/2012,5100037693,1716,RCD
TfGM,Transport,Capital Costs - Print & Media,20/04/2012,5100038211,2267.97,SERVICEPOINT UK
TfGM,Transport,Capital Costs - Print & Media,20/04/2012,5100038212,1585.95,SERVICEPOINT UK
TfGM,Transport,Smart Ticketing,20/04/2012,5100038227,1690,SKM COLIN BUCHANAN
TfGM,Transport,Capital Costs - Planning Support Services,20/04/2012,5100037860,1718.66,STEER DAVIES GLEEVE LTD
TfGM,Transport,Property & Equipment Maintenance,20/04/2012,5100038126,1199.9,STRETFORD INDUSTRIAL SERVICE LTD
TfGM,Transport,Cleaning,20/04/2012,5100038154,685.2,TUDOR CONTRACT CLEANERS LTD
TfGM,Transport,Utilities & Energy,20/04/2012,1900020916,935.74,UNITED UTILITIES WATER PLC
TfGM,Transport,Vehicle Repairs & Maintenance,20/04/2012,5100038206,1116.3,YOURBUS LTD
TfGM,Transport,Capital Costs - Topographical Feasibility Support,24/04/2012,5100037142,1100,AECOM LTD
TfGM,Transport,Maintenance,24/04/2012,5100038233,8144.4,AGGREGATE INDUSTRIES UK LTD
TfGM,Transport,Vehicle Fuel Costs,24/04/2012,1200020249,1304.41,ALLSTAR
TfGM,Transport,Paper and Printing Consumables,24/04/2012,5100038111,723.35,ANTALIS MCNAUGHTON LTD
TfGM,Transport,Staff Uniforms,24/04/2012,5100038229,1039.6,ARCO LTD
TfGM,Transport,Metrolink Operating Costs,24/04/2012,5100038225,3742.57,ARRIVA MANCHESTER
TfGM,Transport,Metrolink Operating Costs,24/04/2012,5100038226,1899.73,ARRIVA MANCHESTER
TfGM,Transport,Capital Costs - Signage Costs,24/04/2012,5100037333,3120,ASTRA SIGNS
TfGM,Transport,Capital Costs - Property Support Services,24/04/2012,5100037653,8250,ATKINS LTD
TfGM,Corporate Services,Audit and Financial Services,24/04/2012,5100038274,7451,AUDIT COMMISSION
TfGM,Transport,Print & Media,24/04/2012,5100038224,1000,BLACKBURN DIOCESAN BD OF FINANCE
TfGM,Transport,Print & Media,24/04/2012,5100038163,717.25,BRANDZ LTD
TfGM,Corporate Services,IS Support Services,24/04/2012,5100038112,2319.27,BT ENGAGE IT
TfGM,Transport,Capital Costs - Computer & Communications Hardware,24/04/2012,5100038125,4255.9,BT ENGAGE IT
TfGM,Transport,Programme Assurance Services,24/04/2012,5100038129,4340,ERNST & YOUNG
TfGM,Corporate Services,Taxation Services,24/04/2012,5100038157,1858.1,ERNST & YOUNG
TfGM,Corporate Services,Programme Assurance Services,24/04/2012,5100038158,21124.97,ERNST & YOUNG
TfGM,Corporate Services,Programme Assurance Services,24/04/2012,5100038159,4215,ERNST & YOUNG
TfGM,Transport,Professional Services,24/04/2012,5100038234,28409,ERNST & YOUNG
TfGM,Transport,Driver Intervention Course Delivery Costs,24/04/2012,5100038272,19005,GREATER MANCHESTER POLICE
TfGM,Transport,Recruitment Services,24/04/2012,5100038265,2000,GREEN PARK INTERIM & EXEC RESOURCIN
TfGM,Transport,Rail Support Services,24/04/2012,5100038248,7796.89,HALCROW GROUP LTD
TfGM,Transport,Street Furniture Equipment,24/04/2012,5100038249,44940,HALSALL SIGNS LTD
TfGM,Transport,Planning Support Services,24/04/2012,5100037669,1180,HILTON RAIL
TfGM,Transport,Capital Costs - Legal Services,24/04/2012,5100038263,19750,IAN ALLAN ASSOCIATES (UK) LTD
TfGM,Transport,Project Management Services,24/04/2012,5100038156,1400,INCITE SOLUTIONS LTD
TfGM,Transport,Smart Ticketing,24/04/2012,5100038246,8627.5,INTELLIGENT SOLUTIONS IN TRANSPORT
TfGM,Transport,Communications Consumables,24/04/2012,5100038292,9277.2,INTER-GROUP COMMUNICATIONS LTD
TfGM,Transport,Capital Costs - Engineering Support Services,24/04/2012,5100038204,5750,MARSTON & GRUNDY LLP
TfGM,Transport,IS Support Services,24/04/2012,5100037661,1000,MILESTONE PROJECT MANAGEMENT SOLUTI
TfGM,Transport,Computer and Printing Hardware,24/04/2012,5100038166,615,MISCO
TfGM,Transport,Capital Costs - Programme and Project Management Services,24/04/2012,5100038179,1128.75,MORSON INTERNATIONAL
TfGM,Transport,Capital Costs - Programme and Project Management Services,24/04/2012,5100038180,1331.2,MORSON INTERNATIONAL
TfGM,Transport,Capital Costs - Programme and Project Management Services,24/04/2012,5100038268,1331.2,MORSON INTERNATIONAL
TfGM,Transport,Capital Costs - Mechanical & Engineering Support Services,24/04/2012,5100038202,762.81,MOTT MACDONALD LTD
TfGM,Transport,Rail Support Services,24/04/2012,5100037966,39651,NORTHERN RAIL LIMITED
TfGM,Transport,Capital Costs - Programme and Project Management Services,24/04/2012,5100037933,1400,NURTURE PEOPLE LTD
TfGM,Transport,Capital Costs - Programme and Project Management Services,24/04/2012,5100038198,1050,NURTURE PEOPLE LTD
TfGM,Transport,Capital Costs - Print & Media,24/04/2012,5100038168,675,OLDHAM EVENING CHRONICLE
TfGM,Corporate Services,Customer Communications,24/04/2012,5100038243,4000,OLDHAM MBC
TfGM,Transport,Smart Ticketing,24/04/2012,5100038161,1176.4,OSCAR ASSOCIATES (UK) LTD
TfGM,Transport,Occupational Health,24/04/2012,5100038242,5162.5,PAM OH SOLUTIONS LTD
TfGM,Transport,Capital Costs - Legal Services,24/04/2012,1900020909,4600.94,PEEL INVESTMENTS (NORTH) LTD
TfGM,Transport,Capital Costs - Engineering Support Services,24/04/2012,5100038256,1479.44,PICOW ENGINEERING GROUP
TfGM,Transport,Print & Media,24/04/2012,5100037924,480,PLAIN ENGLISH CAMPAIGN LTD
TfGM,Transport,Transport Planning & Monitoring Services,24/04/2012,5100038017,1790.68,PLUSWORK LTD
TfGM,Transport,Temporary Vacancy Cover,24/04/2012,5100038260,453.12,PLUSWORK LTD
TfGM,Transport,Capital Costs - Engineering Support Services,24/04/2012,5100038289,10900,RAIL EMC LTD
TfGM,Transport,Security Services,24/04/2012,5100037843,3066.67,ROCHDALE MBC
TfGM,Transport,Traffic Signal Works,24/04/2012,5100038127,530.2,RS COMPONENTS LTD
TfGM,Transport,Grant Audit,24/04/2012,5100038223,6360,RSM TENON LTD
TfGM,Transport,Capital Costs - Print & Media,24/04/2012,5100038213,805.81,SERVICEPOINT UK
TfGM,Transport,Computer Support and Licences,24/04/2012,5100038269,1500,SIAS LTD
TfGM,Transport,Capital Costs - Planning Support Services,24/04/2012,5100038275,1834.15,STEER DAVIES GLEEVE LTD
TfGM,Transport,Capital Costs - Planning Support Services,24/04/2012,5100038276,6840,STEER DAVIES GLEEVE LTD
TfGM,Transport,Security Services,24/04/2012,5100037862,14866,TAMESIDE MBC
TfGM,Corporate Services,Wide Area Network,24/04/2012,5100038205,716.25,THE PHONE CO OP LTD
TfGM,Transport,Capital Costs - Legal Services,24/04/2012,1900020929,3641.64,TROWERS & HAMLINS LLP
TfGM,Transport,Capital Costs - Cycle Facilities Improvement Grants,24/04/2012,1900020911,5900,UNIVERSITY OF BOLTON
TfGM,Transport,Capital Costs - Light Rail Construction Works,24/04/2012,5100037724,13961.27,UPM TILHILL
TfGM,Transport,Engineering Support Services,24/04/2012,5100037587,-7340,URBAN VISION PARTNERSHIP LTD
TfGM,Transport,Capital Costs - Project Management Services,24/04/2012,5100037831,569,URBAN VISION PARTNERSHIP LTD
TfGM,Transport,Engineering Support Services,24/04/2012,5100037904,3303,URBAN VISION PARTNERSHIP LTD
TfGM,Transport,Capital Costs - Infrastructure Support Services,24/04/2012,5100038189,7051.3,URBAN VISION PARTNERSHIP LTD
TfGM,Transport,Capital Costs - Planning Support Services,24/04/2012,5100038190,1883,URBAN VISION PARTNERSHIP LTD
TfGM,Transport,Capital Costs - Infrastructure Support Services,24/04/2012,5100038257,6841.67,URBAN VISION PARTNERSHIP LTD
TfGM,Transport,Cycling Equipment,24/04/2012,5100038295,5589.76,WHEELIES DIRECT CYCLE SOLUTIONS
TfGM,Transport,Speed Camera Support Services,24/04/2012,5100038235,709.45,WORK SOLUTIONS
TfGM,Transport,Speed Camera Support Services,24/04/2012,5100038294,567.56,WORK SOLUTIONS
TfGM,Transport,Capital Costs - Consultation Support,24/04/2012,5100038228,3404.31,WSP DEVELOPMENT AND TRANSPORTATION
TfGM,Transport,Wide Area Network,24/04/2012,5100038266,1791.24,ZEN INTERNET LTD
TfGM,Transport,Capital Costs - Capital Project Main Contract Works,25/04/2012,1900020931,8999.51,GALLIFORD TRY INFRASTRUCTURE LTD
TfGM,Transport,Capital Costs - Land Acquisition and Compensation Costs,25/04/2012,1900020905,6370.45,LAND LAW LLP
TfGM,Transport,Vehicle Repairs & Maintenance,25/04/2012,5100038118,1008.12,OPTARE LTD
TfGM,Transport,Vehicle Repairs & Maintenance,25/04/2012,5100038119,4970.02,OPTARE LTD
TfGM,Transport,Vehicle Repairs & Maintenance,25/04/2012,5100038120,4785,OPTARE LTD
TfGM,Transport,Vehicle Repairs & Maintenance,25/04/2012,5100038343,-750,OPTARE LTD
TfGM,Transport,Capital Costs - Legal Services,26/04/2012,1900020932,2400,KEVIN ASPIN LIMITED
TfGM,Transport,Capital Costs - Legal Services,26/04/2012,1900020933,1890,KEVIN ASPIN LIMITED
TfGM,Transport,Capital Costs - Legal Services,26/04/2012,1900020934,4530,KEVIN ASPIN LIMITED
TfGM,Transport,Capital Costs - Legal Services,26/04/2012,1900020935,630,KEVIN ASPIN LIMITED
TfGM,Transport,Professional Services,26/04/2012,5100038020,24825.24,PARSONS BRINCKERHOFF LTD
TfGM,Transport,Capital Costs - Programme and Project Management Services,26/04/2012,5100038037,6562.18,PARSONS BRINCKERHOFF LTD
TfGM,Transport,Capital Costs - Programme and Project Management Services,26/04/2012,5100038038,9455.73,PARSONS BRINCKERHOFF LTD
TfGM,Transport,Capital Costs - Programme and Project Management Services,26/04/2012,5100038039,12499.39,PARSONS BRINCKERHOFF LTD
TfGM,Transport,Capital Costs - Programme and Project Management Services,26/04/2012,5100038040,3749.82,PARSONS BRINCKERHOFF LTD
TfGM,Transport,Capital Costs - Programme and Project Management Services,26/04/2012,5100038041,22186.43,PARSONS BRINCKERHOFF LTD
TfGM,Transport,Capital Costs - Programme and Project Management Services,26/04/2012,5100038043,795814.44,PARSONS BRINCKERHOFF LTD
TfGM,Transport,Capital Costs - Programme and Project Management Services,26/04/2012,5100038201,17823.52,PARSONS BRINCKERHOFF LTD
TfGM,Transport,Research Services,27/04/2012,5100038252,9893.39,AECOM LTD
TfGM,Transport,Capital Costs - Architectural Services,27/04/2012,5100038408,5069,AEDAS ARCHITECTS LTD
TfGM,Transport,Capital Costs - Architectural Services,27/04/2012,5100038409,5576,AEDAS ARCHITECTS LTD
TfGM,Transport,Capital Costs - Architectural Services,27/04/2012,5100038410,2468,AEDAS ARCHITECTS LTD
TfGM,Transport,Paper and Printing Consumables,27/04/2012,5100038379,1446.7,ANTALIS MCNAUGHTON LTD
TfGM,Transport,Print & Media,27/04/2012,5100038386,450,APPIUS INTERNATIONAL LTD
TfGM,Transport,Print & Media,27/04/2012,5100038388,600,APPIUS INTERNATIONAL LTD
TfGM,Transport,Print & Media,27/04/2012,5100038389,450,APPIUS INTERNATIONAL LTD
TfGM,Transport,Capital Costs - Infrastructure Support Services,27/04/2012,5100038300,2000,APPLIED CARD TECHNOLOGIES
TfGM,Transport,Capital Costs - Programme and Project Management Services,27/04/2012,5100037874,9522.18,ARK PROJECT MANAGEMENT LTD
TfGM,Transport,Capital Costs - Computer & Communications Hardware,27/04/2012,5100038337,2230,ASTRA SIGNS
TfGM,Transport,Engineering Support Services,27/04/2012,5100037962,1400,ATKINS LTD
TfGM,Transport,Capital Costs - Environmental & Ecological Support Services,27/04/2012,5100038230,1865.5,ATKINS LTD
TfGM,Transport,Computer Support and Licences,27/04/2012,5100038241,5163.3,ATKINS LTD
TfGM,Corporate Services,Procurement Services,27/04/2012,5100038261,11280,ATKINS LTD
TfGM,Transport,Capital Costs - Engineering Support Services,27/04/2012,5100038277,8825.13,ATKINS LTD
TfGM,Transport,Capital Costs - Engineering Support Services,27/04/2012,5100038278,469.5,ATKINS LTD
TfGM,Transport,Capital Costs - Mechanical & Engineering Support Services,27/04/2012,5100038279,833.79,ATKINS LTD
TfGM,Transport,Capital Costs - Engineering Support Services,27/04/2012,5100038299,4453.06,ATKINS LTD
TfGM,Transport,Capital Costs - Project Management Services,27/04/2012,5100038422,7000,ATKINS LTD
TfGM,Transport,Capital Costs - Infrastructure Support Services,27/04/2012,5100038425,1545,ATKINS LTD
TfGM,Corporate Services,IS Software & Licences,27/04/2012,5100038330,5848,BT ENGAGE IT
TfGM,Transport,Capital Costs - Computer & Communications Hardware,27/04/2012,5100038348,8513.39,BT ENGAGE IT
TfGM,Transport,Maintenance,27/04/2012,5100038331,4250,BUILDING BLOCK VIDEO LTD
TfGM,Transport,Driver Intervention Course Delivery Costs,27/04/2012,5100038353,6240,BURY MBC
TfGM,Transport,Security Services,27/04/2012,5100038281,7049.04,CARLISLE SECURITY SERVICES LTD
TfGM,Transport,Capital Costs - Programme and Project Management Services,27/04/2012,5100038247,1096,CDI ANDERSELITE LTD
TfGM,Transport,Temporary Vacancy Cover,27/04/2012,1900020969,6474.33,COMENSURA LTD
TfGM,Transport,Capital Costs - Light Rail Rolling Stock Works,27/04/2012,5100038123,41830,DEPOT RAIL LTD
TfGM,Transport,Capital Costs - Legal Services,27/04/2012,1900020958,5400,DICKINSON DEES
TfGM,Transport,Capital Costs - Legal Services,27/04/2012,1900020953,1500,DWF LLP
TfGM,Transport,Wide Area Network,27/04/2012,5100038346,17517.24,EASYNET GLOBAL SERVICES
TfGM,Transport,Traffic Signal Works,27/04/2012,5100038296,609.99,ELECTRICITY NORTH WEST EHV
TfGM,Transport,Traffic Signal Works,27/04/2012,5100038307,494.99,ELECTRICITY NORTH WEST EHV
TfGM,Transport,Traffic Signal Works,27/04/2012,5100038308,609.99,ELECTRICITY NORTH WEST EHV
TfGM,Transport,Capital Costs - Utility & Service Diversion Costs,27/04/2012,5100038356,29913.56,ELECTRICITY NORTH WEST EHV
TfGM,Transport,Capital Costs - Utility & Service Diversion Costs,27/04/2012,5100038430,129375,ELECTRICITY NORTH WEST EHV
TfGM,Transport,Capital Costs - Utility & Service Diversion Costs,27/04/2012,5100038431,129375,ELECTRICITY NORTH WEST EHV
TfGM,Transport,Capital Projects - Cycle Facilities,27/04/2012,5100038441,3008,FALCO UK LTD
TfGM,Transport,Equipment Hire,27/04/2012,5100038319,867,FOLDERS LTD
TfGM,Transport,Bus Support Services,27/04/2012,5100038347,10418,GMATL
TfGM,Transport,Bus Support Services,27/04/2012,5100038301,2000,GMCVO
TfGM,Transport,Bus Support Services,27/04/2012,5100038302,700,GMCVO
TfGM,Transport,Capital Costs - Engineering Support Services,27/04/2012,5100038391,10000,GUTTERIDGE HASKINS AND DAVEY LTD
TfGM,Transport,Smart Ticketing,27/04/2012,5100038354,2352.96,HAYS SPECIALIST RECRUITMENT LTD
TfGM,Transport,Smart Ticketing,27/04/2012,5100038355,2352.96,HAYS SPECIALIST RECRUITMENT LTD
TfGM,Transport,Smart Ticketing,27/04/2012,5100038413,2352.96,HAYS SPECIALIST RECRUITMENT LTD
TfGM,Transport,Capital Costs - Utility & Service Diversion Costs,27/04/2012,5100037828,98463.11,HIGHWAYS AGENCY
TfGM,Transport,Capital Costs - Utility & Service Diversion Costs,27/04/2012,5100037829,98054.11,HIGHWAYS AGENCY
TfGM,Transport,Capital Costs - Utility & Service Diversion Costs,27/04/2012,5100037830,14313,HIGHWAYS AGENCY
TfGM,Transport,Printing Services,27/04/2012,5100038306,936,HUDSON AND PEARSON LTD
TfGM,Transport,Maintenance Engineering & Asset Management,27/04/2012,5100038349,2820,IHS GLOBAL LTD
TfGM,Transport,Project Management Services,27/04/2012,5100038390,1800,INCITE SOLUTIONS LTD
TfGM,Transport,Equipment Hire,27/04/2012,1200020249,8526.75,ING LEASING UK
TfGM,Corporate Services,IS Software & Licences,27/04/2012,5100037695,3064.6,KONICA MINOLTA (UK)
TfGM,Corporate Services,IS Software & Licences,27/04/2012,5100037769,2937.74,KONICA MINOLTA (UK)
TfGM,Corporate Services,IS Software & Licences,27/04/2012,5100037928,677.88,KONICA MINOLTA (UK)
TfGM,Transport,Capital Costs - Property Support Services,27/04/2012,5100038421,1335.48,LAMBERT SMITH HAMPTON
TfGM,Transport,"Rent, Rates & Service Charges",27/04/2012,1900020950,984.7,MANCHESTER CITY COUNCIL
TfGM,Transport,"Rent, Rates & Service Charges",27/04/2012,1900020954,2604.25,MANCHESTER CITY COUNCIL
TfGM,Corporate Services,Printer Consumables,27/04/2012,5100038333,1061.54,MISCO
TfGM,Transport,Street Furniture Consumables,27/04/2012,5100038271,1729,MLPS
TfGM,Transport,Capital Costs - Programme and Project Management Services,27/04/2012,5100038303,1170,MORSON INTERNATIONAL
TfGM,Transport,Property & Equipment Maintenance,27/04/2012,5100038311,24602.45,MOTT MACDONALD LTD
TfGM,Transport,Capital Costs - Project Management Services,27/04/2012,5100038312,7540,MOTT MACDONALD LTD
TfGM,Transport,Capital Costs - Engineering Support Services,27/04/2012,5100038314,11165.09,MOTT MACDONALD LTD
TfGM,Transport,Capital Costs - Mechanical & Engineering Support Services,27/04/2012,5100038315,8949.14,MOTT MACDONALD LTD
TfGM,Transport,Capital Costs - Transport Planning & Monitoring,27/04/2012,5100037800,4128.07,MVA LTD
TfGM,Transport,Rail Franchise,27/04/2012,1200020249,4778807.48,NORTHERN RAIL
TfGM,Transport,Capital Costs - Programme and Project Management Services,27/04/2012,5100038429,17823.52,PARSONS BRINCKERHOFF LTD
TfGM,Transport,Utilities & Energy,27/04/2012,1900020952,4687.49,PEEL WATER SERVICES LTD
TfGM,Transport,Transport Planning & Monitoring Services,27/04/2012,5100038323,453.12,PLUSWORK LTD
TfGM,Transport,Transport Planning & Monitoring Services,27/04/2012,5100038326,461.65,PLUSWORK LTD
TfGM,Transport,Transport Planning & Monitoring Services,27/04/2012,5100038328,3998.5,PLUSWORK LTD
TfGM,Transport,Capital Costs - Site Access,27/04/2012,1900020944,1643.84,PORTCULLIS OLDHAM LTD
TfGM,Transport,Capital Costs - Print & Media,27/04/2012,5100038270,1421,RCD
TfGM,Transport,"Rent, Rates & Service Charges",27/04/2012,1900020948,9459.54,SADDLEWORTH RANGERS
TfGM,Transport,Capital Costs - Engineering Support Services,27/04/2012,5100038280,22758.54,SCOTT WILSON LTD
TfGM,Transport,Bus Station & Shelter Consumables,27/04/2012,5100038411,794.88,SHORROCK TRICHEM
TfGM,Transport,Traffic Signal Works,27/04/2012,5100037896,223711.86,SIEMENS PLC
TfGM,Transport,Smart Ticketing,27/04/2012,5100038424,1300,SKM COLIN BUCHANAN
TfGM,Transport,Capital Costs - Consultation Support,27/04/2012,5100038371,7450,STEER DAVIES GLEEVE LTD
TfGM,Transport,Capital Costs - Consultation Support,27/04/2012,5100038372,9905.7,STEER DAVIES GLEEVE LTD
TfGM,Transport,Printing Services,27/04/2012,5100038414,3152,STEFFPRINT LTD
TfGM,Transport,Printing Services,27/04/2012,5100038415,5298,STEFFPRINT LTD
TfGM,Transport,Printing Services,27/04/2012,5100038418,3063,STEFFPRINT LTD
TfGM,Transport,Printing Services,27/04/2012,5100038419,3597,STEFFPRINT LTD
TfGM,Transport,Legal Services,27/04/2012,1900020966,2646.9,STEPHENSONS SOLICITORS LLP
TfGM,Transport,Planning Support Services,27/04/2012,1900020968,20000,TAMESIDE MBC
TfGM,Transport,Print & Media,27/04/2012,5100038176,1427.45,THE HAMILTON PROJECT
TfGM,Transport,Computer Support and Licences,27/04/2012,5100038351,2220,TRL LTD
TfGM,Transport,Utilities & Energy,27/04/2012,1900020938,1405.62,UNITED UTILITIES WATER PLC
TfGM,Transport,Capital Costs - Project Management Services,27/04/2012,5100037997,500,URBAN VISION PARTNERSHIP LTD
TfGM,Transport,Capital Costs - Project Management Services,27/04/2012,5100038309,8666.67,URBAN VISION PARTNERSHIP LTD
TfGM,Transport,Capital Costs - Project Management Services,27/04/2012,5100038310,24227.86,URBAN VISION PARTNERSHIP LTD
TfGM,Transport,"Rent, Rates & Service Charges",27/04/2012,1900020946,3011.52,WIGAN COUNCIL
TfGM,Transport,Speed Camera Support Services,27/04/2012,5100038365,567.56,WORK SOLUTIONS
TfGM,Transport,Vehicle Fuel Costs,30/04/2012,1200020276,1155.45,ALLSTAR
TfGM,Transport,Metrolink Operating Costs,30/04/2012,5100038169,6044.6,METROLINK RATP DEV LTD
TfGM,Transport,Metrolink Operating Costs,30/04/2012,5100038170,3072.12,METROLINK RATP DEV LTD
TfGM,Transport,Metrolink Operating Costs,30/04/2012,5100038171,32044.74,METROLINK RATP DEV LTD
TfGM,Transport,Revenue Protection Services,30/04/2012,5100038173,5845.92,METROLINK RATP DEV LTD
TfGM,Transport,Print & Media,30/04/2012,5100038174,2854.9,METROLINK RATP DEV LTD
TfGM,Transport,Print & Media,30/04/2012,5100038175,1215.1,METROLINK RATP DEV LTD
TfGM,Transport,Capital Costs - LRT Capital Costs,30/04/2012,5100038432,57253,METROLINK RATP DEV LTD
TfGM,Transport,Metrolink Operating Costs,30/04/2012,5100038433,443995,METROLINK RATP DEV LTD
TfGM,Transport,Metrolink Operating Costs,30/04/2012,5100038434,227773,METROLINK RATP DEV LTD
TfGM,Transport,Security Services,30/04/2012,5100038435,13370.36,METROLINK RATP DEV LTD
TfGM,Transport,Metrolink Operating Costs,30/04/2012,5100038436,1165856,METROLINK RATP DEV LTD
TfGM,Transport,Security Services,30/04/2012,5100038442,14146.76,METROLINK RATP DEV LTD
TfGM,Transport,Concessionary Reimbursement,01/05/2012,1900021100,662,5 STAR PRIVATE HIRE
TfGM,Transport,Print & Media,01/05/2012,5100038517,3855,APPIUS INTERNATIONAL LTD
TfGM,Transport,Capital Costs - Light Rail Support Services,01/05/2012,5100037957,36480,ATKINS LTD
TfGM,Transport,Capital Costs - Light Rail Support Services,01/05/2012,5100037958,31255,ATKINS LTD
TfGM,Transport,Capital Costs - Light Rail Support Services,01/05/2012,5100038008,15916.87,ATKINS LTD
TfGM,Transport,Concessionary Reimbursement,01/05/2012,1900021063,839,AUTOCARS M/C LTD
TfGM,Transport,Capital Costs - LRT Vehicles,01/05/2012,5100037873,193360.03,BOMBARDIER TRANSPORTATION UK LTD
TfGM,Transport,Capital Costs - Mechanical & Engineering Support Services,01/05/2012,5100038494,62548,BOURNE CONSTRUCTION ENGINEERING LTD
TfGM,Transport,Concessionary Reimbursement,01/05/2012,1900021091,1075,CALL A CAR PRIVATE HIRE LTD
TfGM,Transport,Print & Media,01/05/2012,5100038423,1250,E KELLY
TfGM,Transport,Traffic Signal Works,01/05/2012,5100038297,494.99,ELECTRICITY NORTH WEST EHV
TfGM,Transport,Concessionary Reimbursement,01/05/2012,1900021103,2562,GLENNYS GLOVER T/A MAINLINE DOLPHIN
TfGM,Transport,Concessionary Reimbursement,01/05/2012,1900021112,823,JR'S PRIVATE HIRE
TfGM,Transport,Concessionary Reimbursement,01/05/2012,1900021054,619,KINGS PRIVATE HIRE
TfGM,Corporate Services,Programme and Project Management Services,01/05/2012,5100038521,3674,KPMG
TfGM,Transport,Concessionary Reimbursement,01/05/2012,1900021105,2082,MAGNUM WHITELINE PRIVATE HIRE
TfGM,Transport,Supported Bus Services,01/05/2012,1900020974,30000,MAYTREE TRAVEL LTD
TfGM,Transport,Capital Costs - LRT Capital Costs,01/05/2012,5100038172,10859.51,METROLINK RATP DEV LTD
TfGM,Transport,Capital Costs - LRT Capital Costs,01/05/2012,5100038464,5325.32,METROLINK RATP DEV LTD
TfGM,Transport,Capital Costs - Light Rail Support Services,01/05/2012,5100038316,7394.88,MOTT MACDONALD LTD
TfGM,Transport,Capital Costs - Project Management Services,01/05/2012,5100038376,14502.4,MOTT MACDONALD LTD
TfGM,Transport,Capital Costs - Utility & Service Diversion Costs,01/05/2012,5100038522,39567,NATIONAL GRID PLC
TfGM,Transport,Concessionary Reimbursement,01/05/2012,1900021098,630,NEWCO
TfGM,Transport,Property & Equipment Maintenance,01/05/2012,5100038420,10000,OLDHAM MBC
TfGM,Transport,Concessionary Reimbursement,01/05/2012,1900021056,516,ORRELL CARS
TfGM,Corporate Services,Legal Services,01/05/2012,5100038483,660.8,PANNONE AND PARTNERS
TfGM,Corporate Services,Legal Services,01/05/2012,5100038484,3015.7,PANNONE AND PARTNERS
TfGM,Corporate Services,Legal Services,01/05/2012,5100038485,1067.8,PANNONE AND PARTNERS
TfGM,Corporate Services,Legal Services,01/05/2012,5100038491,2340.6,PANNONE AND PARTNERS
TfGM,Transport,Concessionary Reimbursement,01/05/2012,1900021116,683,PEMBERTON PRIVATE HIRE
TfGM,Transport,Concessionary Reimbursement,01/05/2012,1900021117,774,PEMBERTON PRIVATE HIRE
TfGM,Transport,Driver Intervention Course Delivery Costs,01/05/2012,1900020566,2300.91,RALPH HILL
TfGM,Transport,Capital Costs - Print & Media,01/05/2012,5100038003,1511.72,SERVICEPOINT UK
TfGM,Transport,Capital Costs - Planning Support Services,01/05/2012,5100038084,31580,STEER DAVIES GLEEVE LTD
TfGM,Transport,Concessionary Reimbursement,01/05/2012,1900021101,579,SWIFT RADIO CARS
TfGM,Transport,Concessionary Reimbursement,01/05/2012,1900021097,924,TOWN TAXIS
TfGM,Transport,Engineering Support Services,01/05/2012,5100037903,2202,URBAN VISION PARTNERSHIP LTD
TfGM,Transport,Engineering Support Services,01/05/2012,5100038453,6973,URBAN VISION PARTNERSHIP LTD
TfGM,Corporate Services,Legal Services,01/05/2012,5100038523,28128,WEIGHTMANS LLP
TfGM,Transport,Capital Costs - Infrastructure Support Services,04/05/2012,5100038107,8395,AECOM LTD
TfGM,Corporate Services,Professional Services,04/05/2012,5100038545,6655,AMAZE COMMUNICATION SERVICES LTD
TfGM,Transport,Financial and Contract Management Services,04/05/2012,5100038598,6418.1,AUTUS LTD
TfGM,Transport,Capital Costs - Mechanical & Engineering Support Services,04/05/2012,5100038493,50125,BOURNE CONSTRUCTION ENGINEERING LTD
TfGM,Corporate Services,IS Support & Maintenance,04/05/2012,5100038558,11972.8,BT ENGAGE IT
TfGM,Corporate Services,IS Software & Maintenance,04/05/2012,5100038559,10144.46,BT ENGAGE IT
TfGM,Transport,Concessionary Reimbursement,04/05/2012,1900021169,603,CAR 2000
TfGM,Corporate Services,Procurement Services,04/05/2012,5100038586,13705.76,CNC PERFORMANCE LTD
TfGM,Corporate Services,Cyclescheme,04/05/2012,5100038628,612.49,CYCLESCHEME LTD
TfGM,Transport,Concessionary Reimbursement,04/05/2012,1900021177,537,EASY-GO COMMUNITY TRANSPORT
TfGM,Transport,Wide Area Network,04/05/2012,5100038525,18439.2,EASYNET GLOBAL SERVICES
TfGM,Corporate Services,Wide Area Network,04/05/2012,5100038646,-586.25,EASYNET GLOBAL SERVICES
TfGM,Corporate Services,Wide Area Network,04/05/2012,5100038647,-5809.42,EASYNET GLOBAL SERVICES
TfGM,Corporate Services,Wide Area Network,04/05/2012,5100038648,-1927.3,EASYNET GLOBAL SERVICES
TfGM,Transport,Traffic Signal Works,04/05/2012,5100038583,494.99,ELECTRICITY NORTH WEST EHV
TfGM,Transport,Traffic Signal Works,04/05/2012,5100038610,520,ELECTRICITY NORTH WEST EHV
TfGM,Transport,Traffic Signal Works,04/05/2012,5100038684,609.99,ELECTRICITY NORTH WEST EHV
TfGM,Transport,Driver Intervention Course Delivery Costs,04/05/2012,5100038680,1750,ENTERPRISE SOLUTIONS (NW) LTD
TfGM,Transport,Paper and Printing Consumables,04/05/2012,5100038686,2824.54,ESP SYSTEX LTD
TfGM,Transport,Paper and Printing Consumables,04/05/2012,5100038687,10786.16,ESP SYSTEX LTD
TfGM,Transport,Paper and Printing Consumables,04/05/2012,5100038688,29096.23,ESP SYSTEX LTD
TfGM,Transport,Engineering Support Services,04/05/2012,5100038440,3000,FREMONT LTD
TfGM,Transport,Capital Costs - Traffic Signal Costs,04/05/2012,5100038466,90873.45,GREATER MANCHESTER COMBINED AUTHORI
TfGM,Transport,Capital Costs - Quantity Surveying Services,04/05/2012,5100038587,553.07,HALCROW GROUP LTD
TfGM,Transport,Capital Costs - Legal Services,04/05/2012,1900021121,4581,HMRC
TfGM,Transport,Concessionary Reimbursement,04/05/2012,1900021124,568.15,HORWICH PRIVATE HIRE LINK LIMITED
TfGM,Corporate Services,IS Support Services,04/05/2012,5100038504,27000,IGROUP LTD
TfGM,Transport,Project Management Services,04/05/2012,5100038631,2000,INCITE SOLUTIONS LTD
TfGM,Transport,Capital Costs - Quantity Surveying Services,04/05/2012,5100038151,3556.59,JACOBS UK LTD
TfGM,Transport,Capital Costs - Planning Support Services,04/05/2012,5100038152,748.17,JACOBS UK LTD
TfGM,Transport,Capital Costs - Infrastructure Support Services,04/05/2012,5100038197,21827.82,JACOBS UK LTD
TfGM,Transport,Professional Services,04/05/2012,5100038209,7972,KRG CONSULTING
TfGM,Transport,Vehicle Costs,04/05/2012,5100038608,522.89,LEX AUTOLEASE LTD
TfGM,Transport,Concessionary Reimbursement,04/05/2012,1900021180,1231,METRO CARS BOLTON
TfGM,Transport,Concessionary Reimbursement,04/05/2012,1900021170,1779,METRO TAXIS LTD
TfGM,Transport,Property & Equipment Maintenance,04/05/2012,5100038461,15000,METROLINK RATP DEV LTD
TfGM,Transport,Metrolink Operating Costs,04/05/2012,5100038605,443995,METROLINK RATP DEV LTD
TfGM,Transport,Capital Costs - LRT Capital Costs,04/05/2012,5100038606,57253,METROLINK RATP DEV LTD
TfGM,Transport,Capital Costs - Programme and Project Management Services,04/05/2012,5100038452,1128.75,MORSON INTERNATIONAL
TfGM,Transport,Driver Intervention Course Delivery Costs,04/05/2012,5100038612,240380,NDORS LTD
TfGM,Transport,Capital Costs - Heavy Rail Construction Works,04/05/2012,5100037878,10668.3,NETWORK RAIL
TfGM,Transport,Capital Costs - Capital Project Main Contract Works,04/05/2012,5100038010,110500,NETWORK RAIL
TfGM,Transport,Print & Media,04/05/2012,5100038237,1200,ORANGE BOX DESIGN
TfGM,Corporate Services,Legal Services,04/05/2012,5100038489,1512,PANNONE AND PARTNERS
TfGM,Transport,Driver Intervention Course Delivery Costs,04/05/2012,5100038005,5174,PROFESSIONAL DRIVER SERVICES LTD
TfGM,Transport,Driver Intervention Course Delivery Costs,04/05/2012,5100038006,8187,PROFESSIONAL DRIVER SERVICES LTD
TfGM,Transport,Driver Intervention Course Delivery Costs,04/05/2012,5100038273,5940,PROFESSIONAL DRIVER SERVICES LTD
TfGM,Transport,Concessionary Reimbursement,04/05/2012,1900021119,0,RADIO CABS ASHTON LTD
TfGM,Transport,Concessionary Reimbursement,04/05/2012,1900021123,-397,RADIO CABS ASHTON LTD
TfGM,Transport,Distribution Support Services,04/05/2012,5100038529,702,RCD
TfGM,Transport,Supported Bus Services,04/05/2012,1900021122,0,ROCHDALE COMMUNITY TRANSPORT
TfGM,Transport,Traffic Signal Works,04/05/2012,5100038533,2962,ROSGAL LTD
TfGM,Transport,Postage Costs,04/05/2012,100049066,1222.4,ROYAL MAIL GROUP PLC
TfGM,Transport,Capital Costs - Print & Media,04/05/2012,5100038067,2601.05,SERVICEPOINT UK
TfGM,Transport,Traffic Signal Works,04/05/2012,5100038124,7107.23,SIEMENS PLC
TfGM,Transport,Traffic Signal Works,04/05/2012,5100038177,22433.49,SIEMENS PLC
TfGM,Transport,Traffic Signal Works,04/05/2012,5100038232,19930.58,SIEMENS PLC
TfGM,Transport,Concessionary Reimbursement,04/05/2012,1900021125,0,TELECARS
TfGM,Transport,Utilities & Energy,04/05/2012,1900021126,3458.99,UNITED UTILITIES WATER PLC
TfGM,Transport,Capital Costs - Utility & Service Diversion Costs,04/05/2012,5100038622,164597.74,UNITED UTILITIES WATER PLC
TfGM,Transport,Concessionary Reimbursement,04/05/2012,1900021160,1372,VIP Taxis Ltd
TfGM,Transport,Telecommunications,04/05/2012,5100038609,1942.84,VODAFONE CONNECT LTD
TfGM,Transport,Vehicle Fuel Costs,08/05/2012,1200020497,1802.15,ALLSTAR
TfGM,Transport,Traffic Management Services,09/05/2012,5100038515,6160,AECOM LTD
TfGM,Corporate Services,IS Support Services,09/05/2012,5100038318,12675,AMBERSAIL LTD
TfGM,Transport,Paper and Printing Consumables,09/05/2012,5100038472,744.51,ANTALIS MCNAUGHTON LTD
TfGM,Transport,Property & Equipment Maintenance,09/05/2012,5100038556,697.04,BURDENS LTD
TfGM,Transport,Property & Equipment Maintenance,09/05/2012,5100038557,536.2,BURDENS LTD
TfGM,Corporate Services,Employee Reimbursed Costs,09/05/2012,5100038697,5964,CHILDCARE VOUCHERS LTD
TfGM,Transport,Temporary Vacancy Cover,09/05/2012,1900021192,3882.27,COMENSURA LTD
TfGM,Transport,Capital Costs - Project Management Services,09/05/2012,5100036856,2472.5,CORDINGLEYS
TfGM,Transport,Property & Equipment Maintenance,09/05/2012,5100038702,1000.06,ELECTRICITY NW (CONSTRUCT & MAINT)
TfGM,Transport,Property & Equipment Maintenance,09/05/2012,5100038715,1658.6,ELECTRICITY NW (CONSTRUCT & MAINT)
TfGM,Transport,IS Support Services,09/05/2012,5100038607,29937.5,EP MORRIS
TfGM,Transport,Postage Costs,09/05/2012,1200020537,3514.4,FP TELESET
TfGM,Transport,Driver Intervention Course Delivery Costs,09/05/2012,5100038718,2041.67,HOLIDAY INN MANCHESTER EAST
TfGM,Transport,Capital Costs - Capital Project Main Contract Works,09/05/2012,5100038547,424888.08,J MURPHY & SONS LTD
TfGM,Transport,Capital Costs - Mechanical & Engineering Support Services,09/05/2012,5100038239,1128.38,JACOBS UK LTD
TfGM,Transport,Capital Costs - Programme and Project Management Services,09/05/2012,5100038329,6000,JACOBS UK LTD
TfGM,Transport,Capital Costs - Programme and Project Management Services,09/05/2012,5100038615,11390,JACOBS UK LTD
TfGM,Corporate Services,Property Support Services,09/05/2012,5100038699,1600,LAMBERT SMITH HAMPTON
TfGM,Corporate Services,IS Support Services,09/05/2012,5100038691,10000,LOGICA UK LTD
TfGM,Transport,Capital Costs - Project Management Services,09/05/2012,5100038317,12000,MOTT MACDONALD LTD
TfGM,Transport,Engineering Support Services,09/05/2012,5100038465,2880,NEIL CLARKE LTD
TfGM,Transport,Smart Ticketing,09/05/2012,5100038698,13600,NORTHCLIFFE LTD
TfGM,Transport,Capital Costs - Programme and Project Management Services,09/05/2012,5100038357,1750,NURTURE PEOPLE LTD
TfGM,Transport,Printing Services,09/05/2012,5100038492,6569.1,OMEGA PRINT AND DESIGN LTD
TfGM,Transport,Smart Ticketing,09/05/2012,5100038516,1470.5,OSCAR ASSOCIATES (UK) LTD
TfGM,Transport,Capital Costs - Legal Services,09/05/2012,5100038548,900,PANNONE AND PARTNERS
TfGM,Transport,Bus Station & Shelter Consumables,09/05/2012,5100038367,1302.47,SHORROCK TRICHEM
TfGM,Transport,Traffic Signal Works,09/05/2012,5100038700,2146.01,SIEMENS PLC
TfGM,Transport,Traffic Signal Works,09/05/2012,5100038716,9211.86,SIEMENS PLC
TfGM,Transport,Traffic Signal Works,09/05/2012,5100038717,23406.06,SIEMENS PLC
TfGM,Transport,Capital Costs - Programme and Project Management Services,09/05/2012,5100038471,8835,URBAN VISION PARTNERSHIP LTD
TfGM,Transport,Supported Bus Services,10/05/2012,1900021197,15000,MAYTREE TRAVEL LTD
TfGM,Transport,Capital Costs - Planning Support Services,11/05/2012,5100038814,1044,AECOM LTD
TfGM,Transport,Capital Costs - Planning Support Services,11/05/2012,5100038815,17555.6,AECOM LTD
TfGM,Transport,Driver Intervention Course Delivery Costs,11/05/2012,1900021033,1401.4,AIM TO PASS SCHOOL OF MOTORING
TfGM,Transport,Metrolink Operating Costs,11/05/2012,5100038284,2186.74,ARRIVA MANCHESTER
TfGM,Transport,Metrolink Operating Costs,11/05/2012,5100038285,2175.84,ARRIVA MANCHESTER
TfGM,Transport,Metrolink Operating Costs,11/05/2012,5100038286,2039.32,ARRIVA MANCHESTER
TfGM,Transport,Capital Costs - LRT Vehicles,11/05/2012,5100037872,483400.08,BOMBARDIER TRANSPORTATION UK LTD
TfGM,Transport,Capital Costs - LRT Vehicles,11/05/2012,5100038637,250123.53,BOMBARDIER TRANSPORTATION UK LTD
TfGM,Transport,Capital Costs - LRT Vehicles,11/05/2012,5100038638,35848,BOMBARDIER TRANSPORTATION UK LTD
TfGM,Transport,Driver Intervention Course Delivery Costs,11/05/2012,1900020989,1166.92,BRECK SCHOOL OF MOTORING
TfGM,Transport,Capital Costs - Utility & Service Diversion Costs,11/05/2012,5100038835,95602.97,BT OPENREACH (SALFORD)
TfGM,Transport,Property & Equipment Maintenance,11/05/2012,5100038481,3150,BURY MBC
TfGM,Transport,Print & Media,11/05/2012,5100038795,11500,CHALLENGE FOR CHANGE
TfGM,Transport,Property & Equipment Maintenance,11/05/2012,5100038785,2500,CITY OF SALFORD
TfGM,Transport,Capital Costs - Capital Project Main Contract Works,11/05/2012,5100038828,7350,CITY OF SALFORD
TfGM,Transport,Driver Intervention Course Delivery Costs,11/05/2012,5100038364,1094,COLIN JEFFREY
TfGM,Transport,Temporary Vacancy Cover,11/05/2012,1900021201,5394.17,COMENSURA LTD
TfGM,Transport,Driver Intervention Course Delivery Costs,11/05/2012,1900020993,1397.88,COWLEY DRIVING SCHOOL
TfGM,Transport,Concessionary Reimbursement,11/05/2012,1900021099,521,CRESTA CAR HIRE
TfGM,Transport,Driver Intervention Course Delivery Costs,11/05/2012,1900020994,1920.56,CRUISE DRIVER TRAINING
TfGM,Transport,Driver Intervention Course Delivery Costs,11/05/2012,1900021008,1714.22,DAVID HODGKINSON
TfGM,Transport,Driver Intervention Course Delivery Costs,11/05/2012,1900021035,1738.22,DAVID WALSH
TfGM,Transport,Capital Costs - Land Acquisition and Compensation Costs,11/05/2012,5100038763,2012.8,DLA PIPER UK LLP
TfGM,Transport,Capital Costs - Land Acquisition and Compensation Costs,11/05/2012,5100038764,2405.68,DLA PIPER UK LLP
TfGM,Transport,Capital Costs - Land Acquisition and Compensation Costs,11/05/2012,5100038792,3424.95,DLA PIPER UK LLP
TfGM,Transport,Driver Intervention Course Delivery Costs,11/05/2012,1900021019,1277.35,DRAGON DRIVING
TfGM,Transport,Driver Intervention Course Delivery Costs,11/05/2012,1900021022,2236.6,DRIVER ACADEMY
TfGM,Transport,Driver Intervention Course Delivery Costs,11/05/2012,1900020991,547,DRIVERSKILLS
TfGM,Transport,Driver Intervention Course Delivery Costs,11/05/2012,1900021037,1811.15,DS WILLIAMS LTD
TfGM,Transport,Driver Intervention Course Delivery Costs,11/05/2012,1900021023,1616.68,DSM SCHOOL OF MOTORING
TfGM,Corporate Services,Programme Assurance Services,11/05/2012,5100038778,15430,EC HARRIS LLP
TfGM,Transport,Driver Intervention Course Delivery Costs,11/05/2012,1900020986,1944.88,GARY CAMPBELL LTD
TfGM,Corporate Services,IS Software & Maintenance,11/05/2012,5100038845,3140,GBM DIGITAL TECHNOLOGIES LTD
TfGM,Transport,Driver Intervention Course Delivery Costs,11/05/2012,1900020990,1823.32,GRAHAM CLIFFE
TfGM,Transport,Driver Intervention Course Delivery Costs,11/05/2012,1900021007,1766.07,HOGHTON DRIVING SCHOOL
TfGM,Transport,Driver Intervention Course Delivery Costs,11/05/2012,1900021005,1166.92,INSIGHT 2 DRIVE
TfGM,Corporate Services,Procurement Services,11/05/2012,5100038793,8500,J BENSON ASSOCIATES LTD
TfGM,Transport,Capital Costs - Capital Project Main Contract Works,11/05/2012,5100038520,163047,J MURPHY & SONS LTD
TfGM,Transport,Design Services,11/05/2012,5100038443,3300,JACOBS UK LTD
TfGM,Transport,Driver Intervention Course Delivery Costs,11/05/2012,1900021024,587,JANET RIGGS
TfGM,Transport,Driver Intervention Course Delivery Costs,11/05/2012,1900020981,1875.48,JOHN AIREY
TfGM,Transport,Driver Intervention Course Delivery Costs,11/05/2012,1900021014,1276.32,JOHN MCGREAL
TfGM,Transport,"Rent, Rates & Service Charges",11/05/2012,5100038827,9469.03,MANCHESTER AIRPORT PLC
TfGM,Transport,Driver Intervention Course Delivery Costs,11/05/2012,1900020985,1641,MARK BRENNAN
TfGM,Transport,Driver Intervention Course Delivery Costs,11/05/2012,1900020984,1604.52,MICHAEL BOLTON DRIVER TRAINING
TfGM,Transport,IS Support Services,11/05/2012,5100038456,4000,MILESTONE PROJECT MANAGEMENT SOLUTI
TfGM,Corporate Services,IS Consumables,11/05/2012,5100038527,1482.49,MISCO
TfGM,Transport,Maintenance,11/05/2012,5100038581,569.75,MITIE CLEANING & SUPPORT SERVS LTD
TfGM,Transport,Driver Intervention Course Delivery Costs,11/05/2012,1900021020,2398.16,MOORTOWN SCHOOL OF MOTORING
TfGM,Transport,Capital Costs - Programme and Project Management Services,11/05/2012,5100038469,1664,MORSON INTERNATIONAL
TfGM,Transport,Capital Costs - Programme and Project Management Services,11/05/2012,5100038470,1881.25,MORSON INTERNATIONAL
TfGM,Transport,Capital Costs - Programme and Project Management Services,11/05/2012,5100038473,1950,MORSON INTERNATIONAL
TfGM,Transport,Capital Costs - Light Rail Construction Works,11/05/2012,5100038840,500900.23,PARK SIGNALLING LTD
TfGM,Transport,Driver Intervention Course Delivery Costs,11/05/2012,1900021028,1969.2,PAS DRIVING
TfGM,Transport,Driver Intervention Course Delivery Costs,11/05/2012,1900020988,1100.44,PAUL CLARKE
TfGM,Transport,Traffic Signal Works,11/05/2012,5100038820,2218.29,PEEK TRAFFIC LTD
TfGM,Transport,Traffic Signal Works,11/05/2012,5100038821,1349.08,PEEK TRAFFIC LTD
TfGM,Transport,Insurance,11/05/2012,1900021221,461.69,PEEL LAND AND PROPERTY PORTS LTD
TfGM,Transport,Insurance,11/05/2012,1900021222,2728.13,PEEL SOUTH EAST LTD
TfGM,Transport,Driver Intervention Course Delivery Costs,11/05/2012,1900021003,1227.71,PETER HARGREAVES SCHOOL OF MOTORING
TfGM,Transport,Driver Intervention Course Delivery Costs,11/05/2012,1900021029,753.63,PETERS DRIVING SCHOOL
TfGM,Transport,Temporary Vacancy Cover,11/05/2012,5100038501,566.4,PLUSWORK LTD
TfGM,Transport,Transport Planning & Monitoring Services,11/05/2012,5100038508,566.4,PLUSWORK LTD
TfGM,Transport,Transport Planning & Monitoring Services,11/05/2012,5100038509,676.06,PLUSWORK LTD
TfGM,Transport,Transport Planning & Monitoring Services,11/05/2012,5100038512,508.9,PLUSWORK LTD
TfGM,Transport,Transport Planning & Monitoring Services,11/05/2012,5100038514,4853.96,PLUSWORK LTD
TfGM,Transport,Capital Costs - Legal Services,11/05/2012,1900021217,5496,QUASTEL MIDGEN LLP
TfGM,Transport,Driver Intervention Course Delivery Costs,11/05/2012,1900021006,1446.48,RALPH HILL
TfGM,Transport,Capital Costs - Architectural Services,11/05/2012,5100038439,4316.41,ROCHDALE MBC
TfGM,Transport,Driver Intervention Course Delivery Costs,11/05/2012,1900021002,2082.6,ROY GREENOUGH
TfGM,Transport,Driver Intervention Course Delivery Costs,11/05/2012,1900020987,656.39,S M CHARLSON
TfGM,Transport,Driver Intervention Course Delivery Costs,11/05/2012,1900021021,1522.96,SHELLIS SCHOOL OF MOTORING
TfGM,Transport,Driver Intervention Course Delivery Costs,11/05/2012,1900021001,656.39,SHIRLEYS DRIVING SCHOOL
TfGM,Transport,Computer Support and Licences,11/05/2012,5100038809,1950,SIAS LTD
TfGM,Transport,Computer Support and Licences,11/05/2012,5100038810,1950,SIAS LTD
TfGM,Transport,Traffic Signal Works,11/05/2012,5100038534,4879.12,SIEMENS PLC
TfGM,Transport,Traffic Signal Works,11/05/2012,5100038811,7635.67,SIEMENS PLC
TfGM,Transport,Traffic Signal Works,11/05/2012,5100038812,8679.31,SIEMENS PLC
TfGM,Transport,Traffic Signal Works,11/05/2012,5100038822,14245.37,SIEMENS PLC
TfGM,Transport,Traffic Signal Works,11/05/2012,5100038856,-2042.42,SIEMENS PLC
TfGM,Transport,Traffic Signal Works,11/05/2012,5100038857,-2042.42,SIEMENS PLC
TfGM,Corporate Services,Project Support Services,11/05/2012,5100038838,26775,SLATER MCINTYRE LTD
TfGM,Transport,Planning Support Services,11/05/2012,5100038393,1212.75,STEER DAVIES GLEEVE LTD
TfGM,Transport,Driver Intervention Course Delivery Costs,11/05/2012,1900021009,1726.07,STEVEN LLOYD APPROVED SCHOOL OF MOT
TfGM,Transport,Driver Intervention Course Delivery Costs,11/05/2012,1900021025,1859.8,TOM RIMMER
TfGM,Transport,Computer Support and Licences,11/05/2012,5100038482,2152.8,TRL LTD
TfGM,Transport,Cleaning,11/05/2012,5100038850,4936.28,TUDOR CONTRACT CLEANERS LTD
TfGM,Transport,Cleaning,11/05/2012,5100038851,770.85,TUDOR CONTRACT CLEANERS LTD
TfGM,Transport,Utilities & Energy,11/05/2012,1900021224,1300.53,UNITED UTILITIES WATER PLC
TfGM,Transport,Capital Costs - Design Support Services,11/05/2012,5100038799,963,URBAN VISION PARTNERSHIP LTD
TfGM,Transport,Capital Costs - Design Support Services,11/05/2012,5100038800,3102.5,URBAN VISION PARTNERSHIP LTD
TfGM,Transport,Capital Costs - Programme and Project Management Services,11/05/2012,5100038847,8835,URBAN VISION PARTNERSHIP LTD
TfGM,Transport,Driver Intervention Course Delivery Costs,11/05/2012,1900021000,1592.36,VINCENT'S DRIVING SCHOOL
TfGM,Transport,Vehicle Repairs & Maintenance,11/05/2012,5100038772,942.5,Walton Summit Truck Centre
TfGM,Transport,Capital Costs - Environmental Feasibility Support,11/05/2012,5100038499,601.48,WIGAN COUNCIL
TfGM,Transport,Vehicle Fuel Costs,14/05/2012,1200020537,1416.71,ALLSTAR
TfGM,Transport,Capital Costs - Land Acquisition and Compensation Costs,14/05/2012,1900021337,4503.87,KUIT STEINART LEVY LLP
TfGM,Transport,Other Operational Costs,15/05/2012,5100038937,633.2,1ST FOOD & DRINK
TfGM,Transport,Supported Bus Services,15/05/2012,1900021317,2433.33,5 STAR PRIVATE HIRE
TfGM,Transport,Vehicle Costs,15/05/2012,5100038626,500,ACTIA UK LTD
TfGM,Transport,Capital Costs - Programme and Project Management Services,15/05/2012,5100038537,9522.3,ACUITY PROGRAMME MANAGEMENT LTD
TfGM,Transport,Capital Costs - Programme and Project Management Services,15/05/2012,5100038602,6270,ACUITY PROGRAMME MANAGEMENT LTD
TfGM,Transport,Capital Costs - Light Rail Support Services,15/05/2012,5100038594,7800,AD2 LTD
TfGM,Transport,Capital Costs - Planning Support Services,15/05/2012,5100038984,2160,AECOM LTD
TfGM,Corporate Services,Professional Services,15/05/2012,5100038773,4832.5,AMAZE COMMUNICATION SERVICES LTD
TfGM,Transport,Smart Ticketing,15/05/2012,5100038997,10900,AMSACOM LIMITED
TfGM,Transport,Paper and Printing Consumables,15/05/2012,5100038627,1446.7,ANTALIS MCNAUGHTON LTD
TfGM,Transport,Paper and Printing Consumables,15/05/2012,5100038875,723.35,ANTALIS MCNAUGHTON LTD
TfGM,Transport,Print & Media,15/05/2012,5100038787,450,APPIUS INTERNATIONAL LTD
TfGM,Transport,Print & Media,15/05/2012,5100038789,600,APPIUS INTERNATIONAL LTD
TfGM,Transport,Print & Media,15/05/2012,5100038790,450,APPIUS INTERNATIONAL LTD
TfGM,Transport,Print & Media,15/05/2012,5100038916,975,APPIUS INTERNATIONAL LTD
TfGM,Transport,Supported Bus Services,15/05/2012,1900021319,580819.16,ARRIVA MANCHESTER
TfGM,Transport,Programme Management Services,15/05/2012,5100038535,18972.45,ATKINS LTD
TfGM,Transport,Property & Equipment Maintenance,15/05/2012,5100038582,3961,ATKINS LTD
TfGM,Corporate Services,Audit and Financial Services,15/05/2012,5100038874,7451,AUDIT COMMISSION
TfGM,Transport,Driver Intervention Course Delivery Costs,15/05/2012,1900020996,1507.27,AVRILS DRIVING SCHOOL
TfGM,Transport,Supported Bus Services,15/05/2012,1900021308,8846.6,BAKERS COACHES
TfGM,Transport,Supported Bus Services,15/05/2012,1900021302,67687.32,BELLE VUE (MANCHESTER) LTD
TfGM,Transport,Capital Costs - Legal Services,15/05/2012,5100038639,4941,BIRCHAM DYSON BELL
TfGM,Transport,Capital Costs - Legal Services,15/05/2012,5100038640,14058.5,BIRCHAM DYSON BELL
TfGM,Transport,Capital Costs - Computer & Communications Hardware,15/05/2012,5100038438,1194.4,BLUE NETWORK SOLUTIONS LTD
TfGM,Transport,Supported Bus Services,15/05/2012,1900021323,147392.66,BLUEBIRD BUS AND COACH
TfGM,Transport,Printing Services,15/05/2012,5100038738,6876,BLUETREE DESIGN AND PRINT LTD
TfGM,Transport,Other Operational Costs,15/05/2012,5100038720,708.82,BRAKE BROS LTD
TfGM,Corporate Services,IS Consumables,15/05/2012,5100038692,900,BT ENGAGE IT
TfGM,Corporate Services,IS Support & Maintenance,15/05/2012,5100038693,500,BT ENGAGE IT
TfGM,Corporate Services,IS Support & Maintenance,15/05/2012,5100038722,1679,BT ENGAGE IT
TfGM,Corporate Services,IS Support & Maintenance,15/05/2012,5100038723,10571.02,BT ENGAGE IT
TfGM,Transport,Capital Costs - IS Support Services,15/05/2012,5100038880,5640.01,BT ENGAGE IT
TfGM,Transport,Supported Bus Services,15/05/2012,1900021325,2020.83,BULLITT CARS
TfGM,Transport,Supported Bus Services,15/05/2012,1900021315,17135.67,BULLOCKS
TfGM,Transport,Supported Bus Services,15/05/2012,1900021304,14247,BURNLEY AND PENDLE
TfGM,Transport,Utilities & Energy,15/05/2012,5100038681,770.81,CARLTON FUELS
TfGM,Transport,Capital Costs - Programme and Project Management Services,15/05/2012,5100038445,1370,CDI ANDERSELITE LTD
TfGM,Transport,Capital Costs - Programme and Project Management Services,15/05/2012,5100038791,1370,CDI ANDERSELITE LTD
TfGM,Transport,Supported Bus Services,15/05/2012,1900021328,14788.54,CENTREBUS LTD
TfGM,Transport,Driver Intervention Course Delivery Costs,15/05/2012,5100038455,1900.8,CF VENDING LTD
TfGM,Corporate Services,IS Services,15/05/2012,5100038882,12320,CHALMERS BROWN
TfGM,Transport,Printing Services,15/05/2012,5100038685,845.5,CHAPEL PRESS LTD
TfGM,Transport,Printing Services,15/05/2012,5100038694,520,CHAPEL PRESS LTD
TfGM,Transport,Supported Bus Services,15/05/2012,1900021286,19001.25,CHECKMATE TRANSPORT LTD
TfGM,Transport,Supported Bus Services,15/05/2012,1900021327,10821.41,CHESTERS COACHES
TfGM,Transport,Supported Bus Services,15/05/2012,1900021326,9606.64,CI WALLEY TA RINGWAY MINIBUS HIRE
TfGM,Transport,"Rent, Rates & Service Charges",15/05/2012,1900021347,7000.12,CITY OF SALFORD
TfGM,Transport,"Rent, Rates & Service Charges",15/05/2012,1900021348,7000.12,CITY OF SALFORD
TfGM,Transport,Supported Bus Services,15/05/2012,1900021297,888,COACH SERVICES
TfGM,Transport,Supported Bus Services,15/05/2012,1900021310,3000,COURTESY COACHES
TfGM,Transport,Transport Planning & Monitoring Services,15/05/2012,5100038553,3414,CRANBORNE DATA COUNT
TfGM,Transport,Transport Planning & Monitoring Services,15/05/2012,5100038896,2019.5,CRANBORNE DATA COUNT
TfGM,Transport,Concessionary Reimbursement,15/05/2012,1900021392,1006,CROMPTON AND ROYTON CARS
TfGM,Transport,Maintenance,15/05/2012,5100038500,21550.45,D.H.Welton & Co. Ltd
TfGM,Transport,Capital Costs - Land Acquisition and Compensation Costs,15/05/2012,5100038012,3424.95,DLA PIPER UK LLP
TfGM,Transport,Capital Costs - Legal Services,15/05/2012,5100038635,17673.6,DLA PIPER UK LLP
TfGM,Transport,Capital Costs - Legal Services,15/05/2012,5100038914,14460.57,DLA PIPER UK LLP
TfGM,Transport,Capital Costs - Legal Services,15/05/2012,5100038915,8904.73,DLA PIPER UK LLP
TfGM,Transport,Wide Area Network,15/05/2012,5100038867,614.64,EASYNET GLOBAL SERVICES
TfGM,Transport,Wide Area Network,15/05/2012,5100038901,53820,EASYNET GLOBAL SERVICES
TfGM,Transport,Computer Support and Licences,15/05/2012,5100038817,6024.12,EP MORRIS
TfGM,Transport,Supported Bus Services,15/05/2012,1900021335,9225.66,EUROBUS
TfGM,Transport,Concessionary Reimbursement,15/05/2012,1900021092,947,FAREBAY LTD
TfGM,Transport,Supported Bus Services,15/05/2012,1900021300,14504,FE FINCH
TfGM,Transport,Supported Bus Services,15/05/2012,1900021288,126707.92,FINGLANDS
TfGM,Transport,Supported Bus Services,15/05/2012,1900021313,7719,FIRST CALDERLINE
TfGM,Transport,Supported Bus Services,15/05/2012,1900021333,8011,FIRST HUDDERSFIELD
TfGM,Transport,Supported Bus Services,15/05/2012,1900021314,1117591.04,FIRST MANCHESTER
TfGM,Transport,Engineering Support Services,15/05/2012,5100038918,2700,FREMONT LTD
TfGM,Transport,Street Furniture Equipment,15/05/2012,5100038895,7067.5,G & J SEDDON
TfGM,Transport,"Rent, Rates & Service Charges",15/05/2012,1900021349,1500,GARETH AND VERA ASPEY
TfGM,Transport,Supported Bus Services,15/05/2012,1900021330,22186.01,GB COACHES
TfGM,Transport,Driver Intervention Course Delivery Costs,15/05/2012,5100038816,1373.56,GEOFF WEBSTER
TfGM,Transport,Concessionary Reimbursement,15/05/2012,1900021053,506,GMATL
TfGM,Transport,Supported Bus Services,15/05/2012,1900021296,16136.93,GMATL
TfGM,Transport,Accessible Transport,15/05/2012,1200020537,450000,GMATT
TfGM,Transport,Supported Bus Services,15/05/2012,1900021294,142639.27,GO GOODWINS COACHES LTD
TfGM,Transport,Supported Bus Services,15/05/2012,1900021324,172367.94,GREEN TRIANGLE BUSES LTD
TfGM,Transport,Street Furniture Equipment,15/05/2012,5100038830,2320,HALSALL SIGNS LTD
TfGM,Transport,Street Furniture Equipment,15/05/2012,5100038831,44940,HALSALL SIGNS LTD
TfGM,Transport,Street Furniture Equipment,15/05/2012,5100038832,7308.84,HALSALL SIGNS LTD
TfGM,Transport,Street Furniture Equipment,15/05/2012,5100038833,7458,HALSALL SIGNS LTD
TfGM,Transport,Property & Equipment Maintenance,15/05/2012,5100038913,3768,HALSALL SIGNS LTD
TfGM,Transport,Smart Ticketing,15/05/2012,5100038877,2941.2,HAYS SPECIALIST RECRUITMENT LTD
TfGM,Transport,Smart Ticketing,15/05/2012,5100038878,2941.2,HAYS SPECIALIST RECRUITMENT LTD
TfGM,Transport,Driver Intervention Course Delivery Costs,15/05/2012,5100038589,1225,HOLIDAY INN MANCHESTER CENTRAL PARK
TfGM,Transport,Driver Intervention Course Delivery Costs,15/05/2012,5100038679,1458.33,HOLIDAY INN MANCHESTER EAST
TfGM,Transport,Supported Bus Services,15/05/2012,1900021290,3233.33,HORWICH PRIVATE HIRE LINK LIMITED
TfGM,Transport,Supported Bus Services,15/05/2012,1900021311,2099,HULME HALL COACHES
TfGM,Transport,Capital Costs - Environmental & Ecological Support Services,15/05/2012,5100038505,756.87,HYDER LTD
TfGM,Transport,Capital Costs - Environmental Feasibility Support,15/05/2012,5100038507,2690.24,HYDER LTD
TfGM,Transport,Driver Intervention Course Delivery Costs,15/05/2012,1900020997,2297.4,IAN DUFF
TfGM,Corporate Services,IS Support Services,15/05/2012,5100038611,2037,IGROUP LTD
TfGM,Transport,Smart Ticketing,15/05/2012,5100038824,2677.5,INTELLIGENT SOLUTIONS IN TRANSPORT
TfGM,Corporate Services,Computer Support and Licences,15/05/2012,5100038829,6565,ITSO LTD
TfGM,Transport,Capital Costs - Design Support Services,15/05/2012,5100038444,10783.5,JACOBS UK LTD
TfGM,Transport,Supported Bus Services,15/05/2012,1900021321,54577.54,JIM STONES COACHES
TfGM,Transport,Supported Bus Services,15/05/2012,1900021318,100514.37,JP EXECUTIVE
TfGM,Transport,Capital Costs - Programme and Project Management Services,15/05/2012,5100038603,8100,JSLM PROGRAMME SERVICES LTD
TfGM,Transport,Supported Bus Services,15/05/2012,1900021316,18183.11,LAINTON COACHES LTD
TfGM,Transport,Supported Bus Services,15/05/2012,1900021291,17025,LANCASHIRE UTD
TfGM,Transport,Supported Bus Services,15/05/2012,1900021301,3295.64,LEISURE TRAVEL
TfGM,Transport,Capital Costs - Land Acquisition and Compensation Costs,15/05/2012,5100038798,1228,LESLIE ROBERTS AND CO LTD
TfGM,Transport,Vehicle Costs,15/05/2012,5100038823,1029.88,LEX AUTOLEASE LTD
TfGM,Transport,Capital Costs - Light Rail Support Services,15/05/2012,5100038447,4920,LIGHT RAIL LTD
TfGM,Transport,Capital Costs - Light Rail Support Services,15/05/2012,5100038854,2767.5,LIGHT RAIL LTD
TfGM,Transport,Supported Bus Services,15/05/2012,1900021305,40024.17,M TRAVEL
TfGM,Transport,Capital Costs - Project Management Services,15/05/2012,5100038623,8550,MACE LTD
TfGM,Transport,Capital Costs - Programme and Project Management Services,15/05/2012,5100038740,4675,MACE LTD
TfGM,Transport,Supported Bus Services,15/05/2012,1900021292,207735.7,MANCHESTER COMMUNITY TRANSPORT
TfGM,Transport,Property & Equipment Maintenance,15/05/2012,5100038675,21761.19,MANCHESTER WORKING LTD
TfGM,Corporate Services,IS Support Services,15/05/2012,5100038550,5400,MAPSAR LTD
TfGM,Transport,Smart Ticketing,15/05/2012,5100038996,5250,MARBLE LTD
TfGM,Transport,Capital Costs - Light Rail Support Services,15/05/2012,5100038597,11700,MASON LTD
TfGM,Transport,Supported Bus Services,15/05/2012,1900021306,122750.74,MAYTREE TRAVEL LTD
TfGM,Transport,Capital Costs - Print & Media,15/05/2012,5100038980,653.85,MEN MEDIA
TfGM,Transport,IS Consumables,15/05/2012,5100038625,854.91,MISCO
TfGM,Transport,Capital Costs - IS Support Services,15/05/2012,5100038755,1990,MISCO
TfGM,Transport,Computer and Printing Hardware,15/05/2012,5100038991,615,MISCO
TfGM,Transport,Cleaning,15/05/2012,5100038570,535.82,MITIE CLEANING & SUPPORT SERVS LTD
TfGM,Transport,Cleaning,15/05/2012,5100038573,7734.61,MITIE CLEANING & SUPPORT SERVS LTD
TfGM,Transport,Capital Costs - Programme and Project Management Services,15/05/2012,5100038747,1170,MORSON INTERNATIONAL
TfGM,Transport,Capital Costs - Programme and Project Management Services,15/05/2012,5100038781,1881.25,MORSON INTERNATIONAL
TfGM,Transport,Capital Costs - Programme and Project Management Services,15/05/2012,5100038782,1664,MORSON INTERNATIONAL
TfGM,Transport,Capital Costs - Programme and Project Management Services,15/05/2012,5100038923,1560,MORSON INTERNATIONAL
TfGM,Transport,Capital Costs - Programme and Project Management Services,15/05/2012,5100038924,1664,MORSON INTERNATIONAL
TfGM,Transport,Capital Costs - Programme and Project Management Services,15/05/2012,5100038925,1505,MORSON INTERNATIONAL
TfGM,Transport,Capital Costs - Design Support Services,15/05/2012,1700013811,-1394.7,MOTT MACDONALD LTD
TfGM,Transport,Capital Costs - Project Management Services,15/05/2012,5100038806,8400,MOTT MACDONALD LTD
TfGM,Transport,Capital Costs - Mechanical & Engineering Support Services,15/05/2012,5100038903,17490.27,MOTT MACDONALD LTD
TfGM,Transport,Capital Costs - Mechanical & Engineering Support Services,15/05/2012,5100038904,3965.33,MOTT MACDONALD LTD
TfGM,Transport,Capital Costs - Mechanical & Engineering Support Services,15/05/2012,5100038905,13762,MOTT MACDONALD LTD
TfGM,Transport,Capital Costs - Mechanical & Engineering Support Services,15/05/2012,5100038906,10693.2,MOTT MACDONALD LTD
TfGM,Transport,Capital Costs - Mechanical & Engineering Support Services,15/05/2012,5100038907,506.66,MOTT MACDONALD LTD
TfGM,Transport,Capital Costs - Mechanical & Engineering Support Services,15/05/2012,5100038908,1185.47,MOTT MACDONALD LTD
TfGM,Transport,Capital Costs - Mechanical & Engineering Support Services,15/05/2012,5100038909,21813.57,MOTT MACDONALD LTD
TfGM,Transport,Programme Assurance Services,15/05/2012,5100038526,4170,National Quality Assurance Limited
TfGM,Transport,Engineering Support Services,15/05/2012,5100038538,2240,NEIL CLARKE LTD
TfGM,Transport,"Rent, Rates & Service Charges",15/05/2012,1900021350,1367.75,OLDHAM MBC
TfGM,Transport,Supported Bus Services,15/05/2012,1900021295,40740.56,OLYMPIA TRAVEL
TfGM,Corporate Services,IS Software & Maintenance,15/05/2012,5100037290,8800,OMNIBUS
TfGM,Transport,Smart Ticketing,15/05/2012,5100038690,2941,OSCAR ASSOCIATES (UK) LTD
TfGM,Transport,Smart Ticketing,15/05/2012,5100038765,1470.5,OSCAR ASSOCIATES (UK) LTD
TfGM,Transport,Traffic Signal Services,15/05/2012,5100038682,840,P J MARKHAM ELECTRONICS MAINTENANCE
TfGM,Transport,Traffic Signal Services,15/05/2012,5100038683,1265,P J MARKHAM ELECTRONICS MAINTENANCE
TfGM,Transport,Capital Costs - Legal Services,15/05/2012,5100038613,1568,PANNONE AND PARTNERS
TfGM,Transport,Paper and Printing Consumables,15/05/2012,5100038528,800,PAPERGRAPHICS LTD
TfGM,Transport,Printing Services,15/05/2012,5100038743,15220.79,PARAGON GROUP UK LTD (A/CS REC)
TfGM,Transport,Printing Services,15/05/2012,5100038744,7815.1,PARAGON GROUP UK LTD (A/CS REC)
TfGM,Transport,Driver Intervention Course Delivery Costs,15/05/2012,1900021030,1969.18,PATRICIA STANDRING
TfGM,Transport,Supported Bus Services,15/05/2012,1900021303,1294,PIONEER TRAVEL
TfGM,Transport,Transport Planning & Monitoring Services,15/05/2012,5100038708,566.4,PLUSWORK LTD
TfGM,Transport,Transport Planning & Monitoring Services,15/05/2012,5100038709,676.06,PLUSWORK LTD
TfGM,Transport,Transport Planning & Monitoring Services,15/05/2012,5100038710,3405.63,PLUSWORK LTD
TfGM,Transport,Transport Planning & Monitoring Services,15/05/2012,5100038712,585.23,PLUSWORK LTD
TfGM,Transport,Transport Planning & Monitoring Services,15/05/2012,5100038714,5205.18,PLUSWORK LTD
TfGM,Transport,Temporary Vacancy Cover,15/05/2012,5100038731,566.4,PLUSWORK LTD
TfGM,Transport,Transport Planning & Monitoring Services,15/05/2012,5100038929,4667.34,PLUSWORK LTD
TfGM,Transport,Transport Planning & Monitoring Services,15/05/2012,5100038931,508.9,PLUSWORK LTD
TfGM,Transport,Transport Planning & Monitoring Services,15/05/2012,5100038933,1962.55,PLUSWORK LTD
TfGM,Transport,Transport Planning & Monitoring Services,15/05/2012,5100038934,566.4,PLUSWORK LTD
TfGM,Transport,Transport Planning & Monitoring Services,15/05/2012,5100038935,676.06,PLUSWORK LTD
TfGM,Transport,Temporary Vacancy Cover,15/05/2012,5100038989,566.4,PLUSWORK LTD
TfGM,Transport,Driver Intervention Course Delivery Costs,15/05/2012,5100038801,6629,PROFESSIONAL DRIVER SERVICES LTD
TfGM,Transport,Driver Intervention Course Delivery Costs,15/05/2012,5100038802,13342,PROFESSIONAL DRIVER SERVICES LTD
TfGM,Transport,Supported Bus Services,15/05/2012,1900021336,16127.04,R S TYRER LTD
TfGM,Transport,Supported Bus Services,15/05/2012,1900021293,35544.67,RADIO CABS ASHTON LTD
TfGM,Transport,Concessionary Reimbursement,15/05/2012,1900021378,1265,RADIO CABS ASHTON LTD
TfGM,Transport,Concessionary Reimbursement,15/05/2012,1900021395,999,RCTS
TfGM,Transport,Driver Intervention Course Delivery Costs,15/05/2012,5100038584,1531.6,RICHARD JOHN MOTT
TfGM,Transport,Driver Intervention Course Delivery Costs,15/05/2012,5100038549,1434.34,RICHARD LORD
TfGM,Transport,Supported Bus Services,15/05/2012,1900021289,31918.44,ROCHDALE COMMUNITY TRANSPORT
TfGM,Transport,Supported Bus Services,15/05/2012,1900021322,20946,ROJAY SERVICES LTD T/A WIGAN COACHW
TfGM,Transport,Supported Bus Services,15/05/2012,1900021298,294520.78,ROSSENDALE TRANSPORT
TfGM,Transport,Capital Costs - IS Support Services,15/05/2012,5100038920,9999.99,SATISNET LIMITED
TfGM,Transport,Capital Costs - Light Rail Support Services,15/05/2012,5100038636,9030,SB PROJECT MANAGEMENT LTD
TfGM,Transport,Supported Bus Services,15/05/2012,1900021331,42255.42,SELWYNS TRAVEL LTD
TfGM,Transport,Capital Costs - LRT Capital Costs,15/05/2012,5100038739,14232.35,SERCO LTD
TfGM,Transport,Capital Costs - Print & Media,15/05/2012,5100038756,1778.53,SERVICEPOINT UK
TfGM,Transport,Traffic Signal Works,15/05/2012,5100038703,3446.93,SIEMENS PLC
TfGM,Transport,Traffic Signal Works,15/05/2012,5100038707,9342.87,SIEMENS PLC
TfGM,Transport,Traffic Signal Works,15/05/2012,5100038859,5903.1,SIEMENS PLC
TfGM,Corporate Services,Computer Support and Licences,15/05/2012,5100038633,985.08,SQUIDCARD LTD
TfGM,Transport,Supported Bus Services,15/05/2012,1900021309,1963665.97,STAGECOACH SERVICES LTD
TfGM,Transport,Capital Costs - Health & Safety Support Services,15/05/2012,5100038596,2250,STEPHEN J FIRTH
TfGM,Transport,Supported Bus Services,15/05/2012,1900021332,56145.47,STOTTS TOURS
TfGM,Transport,Driver Intervention Course Delivery Costs,15/05/2012,5100038754,4500,SUITE HOTEL KNOWSLEY
TfGM,Transport,Concessionary Reimbursement,15/05/2012,1900021405,2721,SUPERCABS
TfGM,Transport,Supported Bus Services,15/05/2012,1900021320,14435.33,TELECARS
TfGM,Transport,Print & Media,15/05/2012,5100038480,10175,THE IMAGE GROUP
TfGM,Transport,Equipment Maintenance,15/05/2012,5100038616,2805,TNS UK LTD
TfGM,Transport,Equipment Maintenance,15/05/2012,5100038617,825,TNS UK LTD
TfGM,Transport,Concessionary Reimbursement,15/05/2012,1900021386,671,TOWN TAXIS
TfGM,Transport,Supported Bus Services,15/05/2012,1900021285,10061.89,TRAVELMASTER MCR LTD
TfGM,Transport,Concessionary Reimbursement,15/05/2012,1900021390,540,TRINITY PRIVATE HIRE
TfGM,Transport,Cleaning,15/05/2012,5100038540,1361.88,TUDOR CONTRACT CLEANERS LTD
TfGM,Transport,Cleaning,15/05/2012,5100038541,679.49,TUDOR CONTRACT CLEANERS LTD
TfGM,Transport,Cleaning,15/05/2012,5100038543,685.2,TUDOR CONTRACT CLEANERS LTD
TfGM,Transport,Cleaning,15/05/2012,5100038590,587.31,TUDOR CONTRACT CLEANERS LTD
TfGM,Transport,Cleaning,15/05/2012,5100038604,4290.16,TUDOR CONTRACT CLEANERS LTD
TfGM,Transport,Cleaning,15/05/2012,5100038654,830.04,TUDOR CONTRACT CLEANERS LTD
TfGM,Transport,Cleaning,15/05/2012,5100038657,443.55,TUDOR CONTRACT CLEANERS LTD
TfGM,Transport,Cleaning,15/05/2012,5100038658,532.26,TUDOR CONTRACT CLEANERS LTD
TfGM,Transport,Cleaning,15/05/2012,5100038661,532.26,TUDOR CONTRACT CLEANERS LTD
TfGM,Transport,Cleaning,15/05/2012,5100038665,622.53,TUDOR CONTRACT CLEANERS LTD
TfGM,Transport,Cleaning,15/05/2012,5100038666,12666.5,TUDOR CONTRACT CLEANERS LTD
TfGM,Transport,Cleaning,15/05/2012,5100038668,804,TUDOR CONTRACT CLEANERS LTD
TfGM,Transport,Cleaning,15/05/2012,5100038900,8709.71,TUDOR CONTRACT CLEANERS LTD
TfGM,Transport,Cleaning,15/05/2012,5100038981,725.17,TUDOR CONTRACT CLEANERS LTD
TfGM,Transport,Supported Bus Services,15/05/2012,1900021287,18040.03,TYRER TOURS LTD
TfGM,Transport,Capital Costs - Project Management Services,15/05/2012,5100038531,569,URBAN VISION PARTNERSHIP LTD
TfGM,Transport,Capital Costs - Engineering Support Services,15/05/2012,5100038532,12578.34,URBAN VISION PARTNERSHIP LTD
TfGM,Transport,Capital Costs - Project Management Services,15/05/2012,5100038910,4325,URBAN VISION PARTNERSHIP LTD
TfGM,Transport,Capital Costs - Project Management Services,15/05/2012,5100038911,8734,URBAN VISION PARTNERSHIP LTD
TfGM,Transport,Supported Bus Services,15/05/2012,1900021307,2153,VALE OF LLANGOLLEN TRAVEL LTD
TfGM,Transport,Supported Bus Services,15/05/2012,1900021312,3786.72,VIKING COACHES
TfGM,Transport,Vehicle Repairs & Maintenance,15/05/2012,5100038766,729.32,Walton Summit Truck Centre
TfGM,Transport,Vehicle Repairs & Maintenance,15/05/2012,5100038767,1930.53,Walton Summit Truck Centre
TfGM,Transport,Vehicle Repairs & Maintenance,15/05/2012,5100038770,1231.94,Walton Summit Truck Centre
TfGM,Transport,Supported Bus Services,15/05/2012,1900021299,11577,WARRINGTON BOROUGH TRANSPORT LTD
TfGM,Transport,Supported Bus Services,15/05/2012,1900021329,37294.02,WIGAN BUSES LTD
TfGM,Transport,Supported Bus Services,15/05/2012,1900021284,6533.17,WIGAN COMMUNITY TRANSPORT
TfGM,Transport,Speed Camera Support Services,15/05/2012,5100038629,709.45,WORK SOLUTIONS
TfGM,Transport,Capital Costs - Consultation Support,15/05/2012,5100038630,2149.99,WSP DEVELOPMENT AND TRANSPORTATION
TfGM,Transport,Printing Services,15/05/2012,5100038689,3461,WYNDEHAM GAIT LTD
TfGM,Transport,Capital Costs - Programme and Project Management Services,17/05/2012,5100039038,4400,ACUITY PROGRAMME MANAGEMENT LTD
TfGM,Transport,Metrolink Maintenance & Improvements,17/05/2012,5100038784,520,APPIUS INTERNATIONAL LTD
TfGM,Transport,Capital Costs - Programme and Project Management Services,17/05/2012,5100038872,13230,ATKINS LTD
TfGM,Transport,Property & Equipment Maintenance,17/05/2012,5100039034,14418,BOLTON METROPOLITAN BOROUGH COUNCIL
TfGM,Transport,Telecommunications,17/05/2012,5100039046,11215.77,BT REDCARE
TfGM,Transport,Driver Intervention Course Delivery Costs,17/05/2012,1900021038,1470.8,CENTURION DRIVER TRAINING
TfGM,Transport,Capital Costs - Legal Services,17/05/2012,1900021418,2844.72,COBBETTS LLP
TfGM,Transport,Temporary Vacancy Cover,17/05/2012,1900021416,4485.53,COMENSURA LTD
TfGM,Transport,Capital Costs - Planning Support Services,17/05/2012,5100038446,28600,DEPARTMENT FOR TRANSPORT - CENTRAL
TfGM,Transport,Property & Equipment Maintenance,17/05/2012,5100039043,494.99,ELECTRICITY NORTH WEST EHV
TfGM,Transport,Traffic Signal Works,17/05/2012,5100039044,609.99,ELECTRICITY NORTH WEST EHV
TfGM,Transport,Postage Costs,17/05/2012,1200020584,1028.8,FP TELESET
TfGM,Transport,Supported Bus Services,17/05/2012,5100038926,18750,GMATL
TfGM,Transport,Capital Costs - Legal Services,17/05/2012,1900021419,750,KINGS CHAMBERS
TfGM,Transport,Capital Costs - Programme and Project Management Services,17/05/2012,5100038676,10500,LINKPLAN LTD
TfGM,Corporate Services,Insurance,17/05/2012,5100039015,132500,LOCKTON LTD
TfGM,Corporate Services,Insurance,17/05/2012,5100039016,60376.32,LOCKTON LTD
TfGM,Corporate Services,Insurance,17/05/2012,5100039017,746678.24,LOCKTON LTD
TfGM,Corporate Services,Insurance,17/05/2012,5100039018,217928.58,LOCKTON LTD
TfGM,Corporate Services,Insurance,17/05/2012,5100039019,4269.68,LOCKTON LTD
TfGM,Corporate Services,Insurance,17/05/2012,5100039020,6890,LOCKTON LTD
TfGM,Corporate Services,Insurance,17/05/2012,5100039021,2915,LOCKTON LTD
TfGM,Corporate Services,Insurance,17/05/2012,5100039022,36814.86,LOCKTON LTD
TfGM,Corporate Services,Insurance,17/05/2012,5100039023,572.4,LOCKTON LTD
TfGM,Corporate Services,Insurance,17/05/2012,5100039024,2280.27,LOCKTON LTD
TfGM,Corporate Services,Insurance,17/05/2012,5100039025,5911.74,LOCKTON LTD
TfGM,Corporate Services,Insurance,17/05/2012,5100039026,4085.18,LOCKTON LTD
TfGM,Corporate Services,Insurance,17/05/2012,5100039027,2729.5,LOCKTON LTD
TfGM,Corporate Services,Payroll Support Services,17/05/2012,5100039000,2023.75,LOGICA UK LTD
TfGM,Corporate Services,Payroll Support Services,17/05/2012,5100039001,932.64,LOGICA UK LTD
TfGM,Transport,Street Furniture Equipment,17/05/2012,5100039028,2730,METFAST LTD
TfGM,Transport,Paper and Printing Consumables,17/05/2012,5100039029,7625,METFAST LTD
TfGM,Transport,Street Furniture Equipment,17/05/2012,5100039030,8440,METFAST LTD
TfGM,Transport,Capital Costs - Demolition,17/05/2012,5100039058,11409.5,MJ FINNIGAN LTD
TfGM,Transport,Vehicle Repairs & Maintenance,17/05/2012,5100038873,18083.25,OPTARE LTD
TfGM,Transport,Traffic Signal Works,17/05/2012,5100039011,15000,ROSGAL LTD
TfGM,Transport,Traffic Signal Works,17/05/2012,5100039014,16619.97,ROSGAL LTD
TfGM,Transport,Postage Costs,17/05/2012,5100039042,1532.16,ROYAL MAIL GROUP PLC
TfGM,Transport,Capital Costs - Print & Media,17/05/2012,5100038362,1810.65,SERVICEPOINT UK
TfGM,Transport,Traffic Signal Works,17/05/2012,5100039010,2815.65,SIEMENS PLC
TfGM,Transport,Traffic Signal Works,17/05/2012,5100039012,11855.17,SIEMENS PLC
TfGM,Transport,Traffic Signal Works,17/05/2012,5100039013,7613.31,SIEMENS PLC
TfGM,Transport,Bus Support Services,17/05/2012,5100038998,750,SO COACHES
TfGM,Transport,Bus Support Services,17/05/2012,5100038999,700,SO COACHES
TfGM,Transport,Capital Costs - LRT Vehicles,17/05/2012,5100038551,650,TES LTD
TfGM,Transport,Capital Costs - Passenger Shelters,17/05/2012,1900021423,193282.64,TRUEFORM ENGINEERING LTD
TfGM,Transport,Cleaning,17/05/2012,5100039035,759.43,TUDOR CONTRACT CLEANERS LTD
TfGM,Transport,Cleaning,17/05/2012,5100039037,8709.71,TUDOR CONTRACT CLEANERS LTD
TfGM,Transport,Capital Costs - Utility & Service Diversion Costs,17/05/2012,5100037264,13780.65,VTESSE NETWORKS
TfGM,Transport,Postage Costs,21/05/2012,1200020584,3514.4,FP TELESET
TfGM,Transport,Capital Costs - Programme and Project Management Services,22/05/2012,5100039114,2640,ACUITY PROGRAMME MANAGEMENT LTD
TfGM,Transport,Capital Costs - Planning Support Services,22/05/2012,5100039031,13520.89,AECOM LTD
TfGM,Transport,Capital Costs - Planning Support Services,22/05/2012,5100039032,1781.5,AECOM LTD
TfGM,Transport,Capital Costs - Planning Support Services,22/05/2012,5100039033,2392.5,AECOM LTD
TfGM,Transport,Traffic Management Services,22/05/2012,5100039196,4480,AECOM LTD
TfGM,Transport,Vehicle Fuel Costs,22/05/2012,1200020584,1486.72,ALLSTAR
TfGM,Transport,Metrolink Operating Costs,22/05/2012,5100039119,450,APPIUS INTERNATIONAL LTD
TfGM,Corporate Services,Computer Support and Licences,22/05/2012,5100039060,590,APPLIED CARD TECHNOLOGIES
TfGM,Transport,Capital Costs - Property Support Services,22/05/2012,5100039189,7049.76,ARDENT MANAGEMENT LTD
TfGM,Transport,Capital Costs - Programme and Project Management Services,22/05/2012,5100038672,9048.25,ARK PROJECT MANAGEMENT LTD
TfGM,Transport,Capital Costs - Engineering Support Services,22/05/2012,5100038863,1920.5,ATKINS LTD
TfGM,Transport,Capital Costs - Project Management Services,22/05/2012,5100039101,5250,ATKINS LTD
TfGM,Transport,Concessionary Reimbursement,22/05/2012,1900021433,697,BLUESTAR TAXIS
TfGM,Transport,Concessionary Reimbursement,22/05/2012,1900021473,755,BLUESTAR TAXIS
TfGM,Transport,Capital Costs - Printing Services,22/05/2012,5100038737,5210,BLUETREE DESIGN AND PRINT LTD
TfGM,Transport,Driver Intervention Course Delivery Costs,22/05/2012,5100039185,4840,BOLTON MIDDLEBROOK LEISURE TRUST
TfGM,Transport,Driver Intervention Course Delivery Costs,22/05/2012,5100039186,4590,BOLTON MIDDLEBROOK LEISURE TRUST
TfGM,Transport,Capital Costs - LRT Vehicles,22/05/2012,5100038670,193360.03,BOMBARDIER TRANSPORTATION UK LTD
TfGM,Transport,Capital Costs - Mechanical & Engineering Support Services,22/05/2012,5100039078,313750,BOURNE CONSTRUCTION ENGINEERING LTD
TfGM,Corporate Services,Print & Stationery ,22/05/2012,5100039104,5090.66,BOX IT
TfGM,Corporate Services,IS Support & Maintenance,22/05/2012,5100039004,15539.49,BT ENGAGE IT
TfGM,Corporate Services,IS Support & Maintenance,22/05/2012,5100039005,1331.5,BT ENGAGE IT
TfGM,Transport,Communications Consumables,22/05/2012,5100039062,4500,BT ENGAGE IT
TfGM,Transport,Concessionary Reimbursement,22/05/2012,1900021479,5719,CALL A CAR
TfGM,Transport,Capital Costs - Light Rail Support Services,22/05/2012,5100038917,931.6,CDI ANDERSELITE LTD
TfGM,Transport,Capital Costs - Light Rail Support Services,22/05/2012,5100039125,1096,CDI ANDERSELITE LTD
TfGM,Transport,Research Services,22/05/2012,5100039142,991.98,CENTRO WMPTE
TfGM,Transport,Concessionary Reimbursement,22/05/2012,1900021484,1592,CHADDERTON CARS
TfGM,Transport,Transport Planning & Monitoring Services,22/05/2012,5100039098,822,CRANBORNE DATA COUNT
TfGM,Transport,Telecommunications,22/05/2012,5100039059,1330.1,DAISY COMMUNICATIONS
TfGM,Transport,Capital Costs - Land Acquisition and Compensation Costs,22/05/2012,5100039124,1221.23,DLA PIPER UK LLP
TfGM,Transport,Traffic Signal Works,22/05/2012,5100039045,864.99,ELECTRICITY NORTH WEST EHV
TfGM,Transport,Print & Media,22/05/2012,5100039061,1080,FAT MEDIA
TfGM,Transport,Bus Support Services,22/05/2012,5100039068,10418,GMATL
TfGM,Transport,Concessionary Reimbursement,22/05/2012,1900021444,521,H SHAKERI T/A EUROLYNX TAXIS
TfGM,Transport,Rail Support Services,22/05/2012,5100039055,1508.33,HALCROW GROUP LTD
TfGM,Transport,Street Furniture Equipment,22/05/2012,5100039070,3336,HALSALL SIGNS LTD
TfGM,Transport,Street Furniture Equipment,22/05/2012,5100039071,8350,HALSALL SIGNS LTD
TfGM,Transport,Project Management Services,22/05/2012,5100039115,3600,INCITE SOLUTIONS LTD
TfGM,Transport,Concessionary Reimbursement,22/05/2012,1900021458,773,KINGSWAY CARS HAZELBASE LTD
TfGM,Transport,Concessionary Reimbursement,22/05/2012,1900021488,2193,KINGSWAY CARS HAZELBASE LTD
TfGM,Corporate Services,Programme and Project Management Services,22/05/2012,5100039168,89632,KPMG
TfGM,Corporate Services,Programme and Project Management Services,22/05/2012,5100039169,128143,KPMG
TfGM,Corporate Services,Programme and Project Management Services,22/05/2012,5100039170,80173,KPMG
TfGM,Transport,Capital Costs - Property Support Services,22/05/2012,1900021422,1500,LAMBERT SMITH HAMPTON
TfGM,Transport,Print & Media,22/05/2012,5100039149,650,Lesley Chalmers Photography
TfGM,Transport,Estates Services,22/05/2012,5100039155,2185,LESLIE ROBERTS AND CO LTD
TfGM,Transport,Driver Intervention Course Delivery Costs,22/05/2012,5100039151,1422.18,LISA ATKINSON DTS
TfGM,Corporate Services,Training,22/05/2012,5100039079,950,MAH ASSOCIATES LTD
TfGM,Transport,Capital Costs - Legal Services,22/05/2012,1900021431,750,MANCHESTER CITY COUNCIL
TfGM,Transport,Property & Equipment Maintenance,22/05/2012,5100039144,21761.19,MANCHESTER WORKING LTD
TfGM,Transport,Customer Communications,22/05/2012,5100039194,4780.89,Mere
TfGM,Transport,Print & Media,22/05/2012,5100039195,4950,Mere
TfGM,Transport,Concessionary Reimbursement,22/05/2012,1900021442,2100,METRO TAXIS LTD
TfGM,Transport,Concessionary Reimbursement,22/05/2012,1900021443,2111,METRO TAXIS LTD
TfGM,Transport,Concessionary Reimbursement,22/05/2012,1900021476,523,METRO TAXIS LTD
TfGM,Transport,Metrolink Operating Costs,22/05/2012,5100038460,432625.11,METROLINK RATP DEV LTD
TfGM,Transport,Metrolink Operating Costs,22/05/2012,5100038463,426595.93,METROLINK RATP DEV LTD
TfGM,Transport,Metrolink Operating Costs,22/05/2012,5100039192,-395000,METROLINK RATP DEV LTD
TfGM,Transport,Metrolink Operating Costs,22/05/2012,5100039193,419836.25,METROLINK RATP DEV LTD
TfGM,Transport,Computer and Printing Hardware,22/05/2012,5100038986,4946.16,MISCO
TfGM,Transport,Computer and Printing Hardware,22/05/2012,5100038987,1103.88,MISCO
TfGM,Corporate Services,Printer Consumables,22/05/2012,5100039067,1130.2,MISCO
TfGM,Transport,Bus Station & Shelter Consumables,22/05/2012,5100039008,2277.6,MLPS
TfGM,Transport,Capital Costs - Programme and Project Management Services,22/05/2012,5100039091,1331.2,MORSON INTERNATIONAL
TfGM,Transport,Capital Costs - Programme and Project Management Services,22/05/2012,5100039092,1170,MORSON INTERNATIONAL
TfGM,Transport,Capital Costs - Programme and Project Management Services,22/05/2012,5100039093,1128.75,MORSON INTERNATIONAL
TfGM,Transport,Property & Equipment Maintenance,22/05/2012,5100038862,2638.5,MOTT MACDONALD LTD
TfGM,Transport,Equipment Maintenance,22/05/2012,5100039056,14597,MOTT MACDONALD LTD
TfGM,Transport,Metrolink Operating Costs,22/05/2012,5100037868,19898.05,MPACT THALES
TfGM,Transport,Transport Planning & Monitoring Services,22/05/2012,5100039097,2028.15,MVA LTD
TfGM,Transport,Driver Intervention Course Delivery Costs,22/05/2012,5100038797,193220,NDORS LTD
TfGM,Transport,Engineering Support Services,22/05/2012,5100038892,1920,NEIL CLARKE LTD
TfGM,Transport,Capital Costs - Programme and Project Management Services,22/05/2012,5100039133,1750,NURTURE PEOPLE LTD
TfGM,Transport,Smart Ticketing,22/05/2012,5100039166,1176.4,OSCAR ASSOCIATES (UK) LTD
TfGM,Transport,Occupational Health,22/05/2012,5100039041,5162.5,PAM OH SOLUTIONS LTD
TfGM,Transport,Concessionary Reimbursement,22/05/2012,1900021491,1142,PARKSHIELD LTD (ABACUS TRAVEL SRVS)
TfGM,Transport,Capital Costs - Programme and Project Management Services,22/05/2012,5100039127,2036.16,PARSONS BRINCKERHOFF LTD
TfGM,Transport,Capital Costs - Programme and Project Management Services,22/05/2012,5100039128,14220,PARSONS BRINCKERHOFF LTD
TfGM,Transport,Capital Costs - Land Acquisition and Compensation Costs,22/05/2012,1900021503,1250,PERSIMMON PLC
TfGM,Transport,Transport Planning & Monitoring Services,22/05/2012,5100039083,483.45,PLUSWORK LTD
TfGM,Transport,Transport Planning & Monitoring Services,22/05/2012,5100039085,3940.51,PLUSWORK LTD
TfGM,Transport,Transport Planning & Monitoring Services,22/05/2012,5100039086,540.85,PLUSWORK LTD
TfGM,Transport,Transport Planning & Monitoring Services,22/05/2012,5100039087,453.12,PLUSWORK LTD
TfGM,Transport,Transport Planning & Monitoring Services,22/05/2012,5100039089,500.02,PLUSWORK LTD
TfGM,Transport,Temporary Vacancy Cover,22/05/2012,5100039183,453.12,PLUSWORK LTD
TfGM,Transport,Professional Services,22/05/2012,5100038836,5000,PORTOBELLO PARTNERSHIP LTD
TfGM,Corporate Services,Training,22/05/2012,5100039164,472,QA LTD
TfGM,Corporate Services,Training,22/05/2012,5100039165,472,QA LTD
TfGM,Transport,Capital Costs - Engineering Support Services,22/05/2012,5100038848,1650,RAIL EMC LTD
TfGM,Transport,Capital Costs - Engineering Support Services,22/05/2012,5100038849,4300,RAIL EMC LTD
TfGM,Transport,Traffic Signal Works,22/05/2012,5100038860,17929.83,SIEMENS PLC
TfGM,Transport,Transport Planning & Monitoring Services,22/05/2012,5100039147,2094.2,SKY HIGH PLC
TfGM,Transport,Capital Costs - Planning Support Services,22/05/2012,5100039002,7225,STEER DAVIES GLEEVE LTD
TfGM,Transport,Capital Costs - Planning Support Services,22/05/2012,5100039003,9798.75,STEER DAVIES GLEEVE LTD
TfGM,Transport,Smart Ticketing,22/05/2012,5100039191,10200,TRANSPORT REVENUE CONSULTANTS
TfGM,Transport,IS Support & Maintenance,22/05/2012,5100039054,560,TRAPEZE GROUP (UK) LTD
TfGM,Transport,Cleaning,22/05/2012,5100038865,679.49,TUDOR CONTRACT CLEANERS LTD
TfGM,Transport,Engineering Support Services,22/05/2012,5100039122,4404,URBAN VISION PARTNERSHIP LTD
TfGM,Transport,Capital Costs - Project Management Services,22/05/2012,5100039156,500.12,WIGAN COUNCIL
TfGM,Transport,Print & Media,23/05/2012,5100039203,1085.6,BREEZE LTD
TfGM,Transport,Maintenance,25/05/2012,5100039232,57758.52,A E YATES LTD
TfGM,Transport,Concessionary Reimbursement,25/05/2012,1900021583,859,ABID MALIK
TfGM,Transport,Capital Costs - Engineering Support Services,25/05/2012,5100039230,1254,AECOM LTD
TfGM,Transport,Capital Costs - Infrastructure Support Services,25/05/2012,5100039231,2681.67,AECOM LTD
TfGM,Transport,Metrolink Maintenance & Improvements,25/05/2012,5100039120,520,APPIUS INTERNATIONAL LTD
TfGM,Transport,Capital Costs - Signage Costs,25/05/2012,5100038290,33355,ASTRA SIGNS
TfGM,Transport,Capital Costs - Signage Costs,25/05/2012,5100038448,-7500,ASTRA SIGNS
TfGM,Transport,Capital Costs - Engineering Support Services,25/05/2012,5100038592,4600,ASTRA SIGNS
TfGM,Transport,Concessionary Reimbursement,25/05/2012,1900021575,518,AUTOCARS M/C LTD
TfGM,Transport,Other Operational Costs,25/05/2012,5100039228,1350.32,BRAKE BROS LTD
TfGM,Transport,Concessionary Reimbursement,25/05/2012,1900021581,1224,CASTLEROYLE PRIVATE HIRE
TfGM,Corporate Services,Insurance,25/05/2012,1900021518,5000,CHARTIS INSURANCE UK LTD
TfGM,Corporate Services,Insurance,25/05/2012,1900021519,5000,CHARTIS INSURANCE UK LTD
TfGM,Transport,Capital Costs - Legal Services,25/05/2012,5100039240,24636,DLA PIPER UK LLP
TfGM,Transport,Capital Costs - Engineering Support Services,25/05/2012,5100038775,4771.77,EC HARRIS LLP
TfGM,Transport,Capital Costs - Engineering Support Services,25/05/2012,5100038779,10354.36,EC HARRIS LLP
TfGM,Transport,Capital Costs - Engineering Support Services,25/05/2012,5100038888,666.7,EC HARRIS LLP
TfGM,Transport,Capital Costs - Engineering Support Services,25/05/2012,5100038889,1973.21,EC HARRIS LLP
TfGM,Transport,Engineering Support Services,25/05/2012,5100039239,1500,FREMONT LTD
TfGM,Transport,Capital Costs - Bus Fleet Costs,25/05/2012,5100039249,1710,GR LABELS LTD
TfGM,Transport,Project Management Services,25/05/2012,5100039235,2000,INCITE SOLUTIONS LTD
TfGM,Transport,Capital Costs - Engineering Support Services,25/05/2012,5100038238,6816,JACOBS UK LTD
TfGM,Transport,Concessionary Reimbursement,25/05/2012,1900021582,1256,LEVER CARS
TfGM,Transport,Concessionary Reimbursement,25/05/2012,1900021557,3095,MAGNUM WHITELINE PRIVATE HIRE
TfGM,Transport,Concessionary Reimbursement,25/05/2012,1900021574,656,MAGNUM WHITELINE PRIVATE HIRE
TfGM,Transport,Concessionary Reimbursement,25/05/2012,1900021568,515,MANTAX RADIO TAXIS LTD
TfGM,Transport,Capital Costs - Mechanical & Engineering Support Services,25/05/2012,5100039209,2193.42,MOTT MACDONALD LTD
TfGM,Transport,Capital Costs - Project Management Services,25/05/2012,5100039211,10130.67,MOTT MACDONALD LTD
TfGM,Transport,Rail Franchise,25/05/2012,1200020584,4778807.48,NORTHERN RAIL
TfGM,Transport,Capital Costs - Computer & Communications Hardware,25/05/2012,5100039217,639.5,PASSCOMM LTD
TfGM,Transport,Concessionary Reimbursement,25/05/2012,1900021540,919,RADIO CABS ASHTON LTD
TfGM,Transport,Concessionary Reimbursement,25/05/2012,1900021570,526,RADIO CABS ASHTON LTD
TfGM,Transport,Traffic Signal Works,25/05/2012,5100038858,2186.95,SIEMENS PLC
TfGM,Transport,Concessionary Reimbursement,25/05/2012,1900021553,672,SWINTON PRIVATE HIRE
TfGM,Corporate Services,Legal Services,25/05/2012,5100039241,48159.16,WEIGHTMANS LLP
TfGM,Transport,Vehicle Fuel Costs,28/05/2012,1200020635,1221.32,ALLSTAR
TfGM,Transport,Capital Costs - Legal Services,28/05/2012,1900021587,945,KEVIN ASPIN LIMITED
TfGM,Transport,Capital Costs - Legal Services,28/05/2012,1900021588,1890,KEVIN ASPIN LIMITED
TfGM,Transport,Capital Costs - Engineering Support Services,29/05/2012,5100039233,1008.5,AECOM LTD
TfGM,Transport,Transport Planning & Monitoring Services,29/05/2012,5100039265,3920,CTS TRAFFIC & TRANSPORTATION
TfGM,Transport,Capital Costs - Land Acquisition and Compensation Costs,29/05/2012,1900021590,485000,DLA PIPER UK LLP
TfGM,Transport,Wide Area Network,29/05/2012,5100039277,18131.88,EASYNET GLOBAL SERVICES
TfGM,Transport,Traffic Signal Works,29/05/2012,5100039276,494.99,ELECTRICITY NORTH WEST EHV
TfGM,Corporate Services,Computer Support and Licences,29/05/2012,5100039266,4940,GBM DIGITAL TECHNOLOGIES LTD
TfGM,Transport,Capital Costs - Engineering Support Services,29/05/2012,5100039187,28000,HIGHWAYS AGENCY
TfGM,Transport,Capital Costs - Programme and Project Management Services,29/05/2012,5100039221,1400,NURTURE PEOPLE LTD
TfGM,Transport,"Rent, Rates & Service Charges",29/05/2012,1900021507,3750,OLDHAM MBC
TfGM,Transport,Traffic Signal Works,29/05/2012,5100039274,21416.98,SIEMENS PLC
TfGM,Transport,Telecommunications,29/05/2012,5100039273,1836.21,VODAFONE CONNECT LTD
TfGM,Transport,Capital Costs - Infrastructure Support Services,01/06/2012,5100039081,6205,AECOM LTD
TfGM,Transport,Concessionary Reimbursement,01/06/2012,1900021640,555,ALPHA CARS
TfGM,Transport,Capital Costs - Legal Services,01/06/2012,1900021650,1273.36,ANDREW WILSON & CO
TfGM,Transport,Protective Clothing,01/06/2012,5100039305,453.6,ARCO LTD
TfGM,Transport,Concessionary Reimbursement,01/06/2012,1900021601,540,BLUELINE PRIVATE HIRE
TfGM,Transport,Concessionary Reimbursement,01/06/2012,1900021602,503,BLUELINE PRIVATE HIRE
TfGM,Transport,Concessionary Reimbursement,01/06/2012,1900021595,979,CALL A CAR PRIVATE HIRE LTD
TfGM,Transport,Security Services,01/06/2012,5100039399,7024.5,CARLISLE SECURITY SERVICES LTD
TfGM,Corporate Services,Procurement Services,01/06/2012,5100039402,14400,CNC PERFORMANCE LTD
TfGM,Transport,Temporary Vacancy Cover,01/06/2012,1900021655,3941.82,COMENSURA LTD
TfGM,Transport,Print & Media,01/06/2012,5100039340,1875,E KELLY
TfGM,Transport,Wide Area Network,01/06/2012,5100039103,52923,EASYNET GLOBAL SERVICES
TfGM,Corporate Services,Programme Assurance Services,01/06/2012,5100039339,18330,ERNST & YOUNG
TfGM,Transport,Property & Equipment Maintenance,01/06/2012,5100039136,57894.38,G & J SEDDON
TfGM,Transport,Concessionary Reimbursement,01/06/2012,1900021629,540,HARVEYS BURY CARS HARVEYS TRANSPORT
TfGM,Transport,Concessionary Reimbursement,01/06/2012,1900021632,876,HASTINGS PRIVATE HIRE
TfGM,Transport,Project Management Services,01/06/2012,5100039398,2000,INCITE SOLUTIONS LTD
TfGM,Transport,Concessionary Reimbursement,01/06/2012,1900021635,2275,Iqbal Chohan T/A STAR CARS
TfGM,Transport,Capital Costs - Programme and Project Management Services,01/06/2012,5100039157,8880,JACOBS UK LTD
TfGM,Corporate Services,Computer Support and Licences,01/06/2012,5100037664,4308,LBI LIMITED
TfGM,Transport,Capital Costs - QBC Support Services,01/06/2012,5100039099,9688.98,MANCHESTER CITY COUNCIL
TfGM,Transport,Capital Costs - Design Support Services,01/06/2012,5100039251,5903.51,MANCHESTER CITY COUNCIL
TfGM,Transport,Supported Bus Services,01/06/2012,1900021646,30000,MAYTREE TRAVEL LTD
TfGM,Transport,Print & Media,01/06/2012,1900021584,1712.94,METROLINK RATP DEV LTD
TfGM,Transport,Property & Equipment Maintenance,01/06/2012,5100039242,-16545.8,METROLINK RATP DEV LTD
TfGM,Transport,Metrolink Operating Costs,01/06/2012,5100039279,712.86,METROLINK RATP DEV LTD
TfGM,Transport,Metrolink Operating Costs,01/06/2012,5100039405,1165856,METROLINK RATP DEV LTD
TfGM,Transport,Metrolink Operating Costs,01/06/2012,5100039406,227773,METROLINK RATP DEV LTD
TfGM,Corporate Services,IS Software & Maintenance,01/06/2012,5100039270,6950,MOBILE SOLUTIONS LTD
TfGM,Transport,Capital Costs - Engineering Support Services,01/06/2012,5100039212,2959.81,MOTT MACDONALD LTD
TfGM,Transport,Capital Costs - Capital Project Main Contract Works,01/06/2012,5100038967,111473,MPACT THALES
TfGM,Transport,Capital Costs - Engineering Support Services,01/06/2012,5100039337,1025,OLDHAM MBC
TfGM,Transport,Vehicle Repairs & Maintenance,01/06/2012,5100039223,4785,OPTARE LTD
TfGM,Transport,Vehicle Repairs & Maintenance,01/06/2012,5100039224,2475,OPTARE LTD
TfGM,Transport,Vehicle Repairs & Maintenance,01/06/2012,5100039225,2333.32,OPTARE LTD
TfGM,Transport,Vehicle Repairs & Maintenance,01/06/2012,5100039226,3960,OPTARE LTD
TfGM,Transport,Capital Costs - Programme and Project Management Services,01/06/2012,5100039106,10936.97,PARSONS BRINCKERHOFF LTD
TfGM,Transport,Capital Costs - Programme and Project Management Services,01/06/2012,5100039107,20334.82,PARSONS BRINCKERHOFF LTD
TfGM,Transport,Capital Costs - Programme and Project Management Services,01/06/2012,5100039108,5937.22,PARSONS BRINCKERHOFF LTD
TfGM,Transport,Capital Costs - Programme and Project Management Services,01/06/2012,5100039109,19999.04,PARSONS BRINCKERHOFF LTD
TfGM,Transport,Capital Costs - Programme and Project Management Services,01/06/2012,5100039110,9374.55,PARSONS BRINCKERHOFF LTD
TfGM,Transport,Capital Costs - Programme and Project Management Services,01/06/2012,5100039111,58749.13,PARSONS BRINCKERHOFF LTD
TfGM,Transport,Capital Costs - Programme and Project Management Services,01/06/2012,5100039112,11874.43,PARSONS BRINCKERHOFF LTD
TfGM,Transport,Capital Costs - Programme and Project Management Services,01/06/2012,5100039113,9455.73,PARSONS BRINCKERHOFF LTD
TfGM,Transport,Financial and Commercial Support Services,01/06/2012,5100039105,8953.75,PEAK PERFORMANCE PROFESSIONAL CONTR
TfGM,Transport,Capital Costs - Utility & Service Diversion Costs,01/06/2012,5100039159,1571,ST MODWEN
TfGM,Transport,Concessionary Reimbursement,01/06/2012,1900021620,673,TRAFFORD CARS LTD
TfGM,Transport,Concessionary Reimbursement,01/06/2012,1900021636,3075,TRAFFORD CARS LTD
TfGM,Transport,Concessionary Reimbursement,01/06/2012,1900021637,814,TRAFFORD CARS LTD
TfGM,Transport,Cleaning,01/06/2012,5100039353,16472.06,TUDOR CONTRACT CLEANERS LTD
TfGM,Transport,Cleaning,01/06/2012,5100039391,12894.75,TUDOR CONTRACT CLEANERS LTD
TfGM,Transport,Cleaning,01/06/2012,5100039392,-507.46,TUDOR CONTRACT CLEANERS LTD
TfGM,Transport,Utilities & Energy,01/06/2012,1900021651,816.66,UNITED UTILITIES WATER PLC
TfGM,Transport,Vehicle Fuel Costs,04/06/2012,1200020813,1511.18,ALLSTAR
TfGM,Transport,Research Services,08/06/2012,5100039247,15449,AECOM LTD
TfGM,Transport,Research Services,08/06/2012,5100039294,8423.39,AECOM LTD
TfGM,Transport,Capital Costs - Infrastructure Support Services,08/06/2012,5100039419,1380,AECOM LTD
TfGM,Transport,Driver Intervention Course Delivery Costs,08/06/2012,1900021750,1531.59,AIM TO PASS SCHOOL OF MOTORING
TfGM,Transport,Driver Intervention Course Delivery Costs,08/06/2012,1900021752,1203.4,ALDENE WOODWARD
TfGM,Transport,Smart Ticketing,08/06/2012,5100039504,9200,AMSACOM LIMITED
TfGM,Transport,Print & Media,08/06/2012,5100039489,450,APPIUS INTERNATIONAL LTD
TfGM,Transport,Print & Media,08/06/2012,5100039490,600,APPIUS INTERNATIONAL LTD
TfGM,Transport,Print & Media,08/06/2012,5100039535,450,APPIUS INTERNATIONAL LTD
TfGM,Corporate Services,Procurement Services,08/06/2012,5100039162,7680,ATKINS LTD
TfGM,Transport,Capital Costs - Programme and Project Management Services,08/06/2012,5100039306,7087.5,ATKINS LTD
TfGM,Transport,Capital Costs - Project Management Services,08/06/2012,5100039307,1141.88,ATKINS LTD
TfGM,Transport,Capital Costs - Project Management Services,08/06/2012,5100039308,669.38,ATKINS LTD
TfGM,Transport,Capital Costs - Project Management Services,08/06/2012,5100039309,1023.75,ATKINS LTD
TfGM,Transport,Capital Costs - Project Management Services,08/06/2012,5100039465,1260,ATKINS LTD
TfGM,Transport,Financial and Contract Management Services,08/06/2012,5100039447,10212.5,AUTUS LTD
TfGM,Transport,Driver Intervention Course Delivery Costs,08/06/2012,1900021715,2139.35,AVRILS DRIVING SCHOOL
TfGM,Transport,Driver Intervention Course Delivery Costs,08/06/2012,1900021730,607.75,BERNARD LONERGAN
TfGM,Transport,Printing Services,08/06/2012,5100039296,1143,BLUETREE DESIGN AND PRINT LTD
TfGM,Transport,Capital Costs - Printing Services,08/06/2012,5100039297,1094,BLUETREE DESIGN AND PRINT LTD
TfGM,Transport,Other Operational Costs,08/06/2012,5100039507,896.7,BRAKE BROS LTD
TfGM,Transport,Driver Intervention Course Delivery Costs,08/06/2012,1900021708,2005.64,BRECK SCHOOL OF MOTORING
TfGM,Corporate Services,IS Support & Maintenance,08/06/2012,5100039300,2830.19,BT ENGAGE IT
TfGM,Transport,Telecommunications,08/06/2012,5100039562,35019.16,BT GLOBAL SERVICES
TfGM,Transport,Staff Uniforms,08/06/2012,5100039351,1000.98,BURLINGTON UNIFORMS LTD
TfGM,Transport,Driver Intervention Course Delivery Costs,08/06/2012,5100038208,7385,CARRINGTON BUSINESS PARK (CBPK)
TfGM,Transport,Driver Intervention Course Delivery Costs,08/06/2012,5100039537,4690,CARRINGTON BUSINESS PARK (CBPK)
TfGM,Transport,Printing Services,08/06/2012,5100039345,727,CHAPEL PRESS LTD
TfGM,Transport,Printing Services,08/06/2012,5100039584,586,CHAPEL PRESS LTD
TfGM,Transport,Printing Services,08/06/2012,5100039585,1403,CHAPEL PRESS LTD
TfGM,Transport,Driver Intervention Course Delivery Costs,08/06/2012,5100039502,768.6,COLIN JEFFREY
TfGM,Corporate Services,IS Software & Maintenance,08/06/2012,5100039227,1570,CONDECO LTD
TfGM,Transport,Driver Intervention Course Delivery Costs,08/06/2012,1900021731,1799,CORRIE MACCORMACK
TfGM,Transport,Driver Intervention Course Delivery Costs,08/06/2012,1900021712,1726.07,COWLEY DRIVING SCHOOL
TfGM,Transport,Transport Planning & Monitoring Services,08/06/2012,5100039215,1248,CRANBORNE DATA COUNT
TfGM,Transport,Transport Planning & Monitoring Services,08/06/2012,5100039327,2530,CRANBORNE DATA COUNT
TfGM,Transport,Concessionary Reimbursement,08/06/2012,1900021779,1136,CRESTA CAR HIRE
TfGM,Transport,Driver Intervention Course Delivery Costs,08/06/2012,1900021713,2188,CRUISE DRIVER TRAINING
TfGM,Transport,Maintenance,08/06/2012,5100039524,6915.1,D.H.Welton & Co. Ltd
TfGM,Transport,Maintenance,08/06/2012,5100039525,5606,D.H.Welton & Co. Ltd
TfGM,Transport,Driver Intervention Course Delivery Costs,08/06/2012,1900021727,1799,DAVID HODGKINSON
TfGM,Transport,Driver Intervention Course Delivery Costs,08/06/2012,1900021751,741.47,DAVID WALSH
TfGM,Corporate Services,Legal Services,08/06/2012,5100039418,7852.5,DLA PIPER UK LLP
TfGM,Transport,Driver Intervention Course Delivery Costs,08/06/2012,1900021738,1684.4,DRAGON DRIVING
TfGM,Transport,Driver Intervention Course Delivery Costs,08/06/2012,1900021741,2321.66,DRIVER ACADEMY
TfGM,Transport,Driver Intervention Course Delivery Costs,08/06/2012,1900021710,984.6,DRIVERSKILLS
TfGM,Transport,Driver Intervention Course Delivery Costs,08/06/2012,1900021753,2005.64,DS WILLIAMS LTD
TfGM,Transport,Driver Intervention Course Delivery Costs,08/06/2012,1900021742,2029.96,DSM SCHOOL OF MOTORING
TfGM,Transport,Capital Costs - Engineering Support Services,08/06/2012,5100039426,8199.74,EC HARRIS LLP
TfGM,Transport,Property & Equipment Maintenance,08/06/2012,5100039579,540,ELECTRICITY NW (CONSTRUCT & MAINT)
TfGM,Transport,Driver Intervention Course Delivery Costs,08/06/2012,5100039448,2100,ENTERPRISE SOLUTIONS (NW) LTD
TfGM,Transport,IS Support Services,08/06/2012,5100039278,3562.5,EP MORRIS
TfGM,Transport,Concessionary Support Services,08/06/2012,5100039260,485,ESP SYSTEX LTD
TfGM,Transport,Capital Projects - Cycle Facilities,08/06/2012,5100039632,3008,FALCO UK LTD
TfGM,Corporate Services,IS Software & Maintenance,08/06/2012,5100039475,33320.79,FRONTLINE BUS SERVS L
TfGM,Transport,Driver Intervention Course Delivery Costs,08/06/2012,1900021705,1422.2,GARY CAMPBELL LTD
TfGM,Transport,Driver Intervention Course Delivery Costs,08/06/2012,5100039540,984.6,GARY WHITWORTH
TfGM,Transport,Driver Intervention Course Delivery Costs,08/06/2012,5100039428,1069.68,GEOFF WEBSTER
TfGM,Transport,Driver Intervention Course Delivery Costs,08/06/2012,1900021745,1179.08,GILLIAN ROBINSON
TfGM,Transport,Driver Intervention Course Delivery Costs,08/06/2012,1900021709,1616.68,GRAHAM CLIFFE
TfGM,Transport,Concessionary Reimbursement,08/06/2012,1900021778,1248,H SHAKERI T/A EUROLYNX TAXIS
TfGM,Transport,Street Furniture Equipment,08/06/2012,5100039541,2895.5,HALSALL SIGNS LTD
TfGM,Transport,Smart Ticketing,08/06/2012,5100039542,588.24,HAYS SPECIALIST RECRUITMENT LTD
TfGM,Transport,Smart Ticketing,08/06/2012,5100039543,588.24,HAYS SPECIALIST RECRUITMENT LTD
TfGM,Transport,Smart Ticketing,08/06/2012,5100039612,1764.72,HAYS SPECIALIST RECRUITMENT LTD
TfGM,Transport,Driver Intervention Course Delivery Costs,08/06/2012,1900021726,2589.11,HOGHTON DRIVING SCHOOL
TfGM,Transport,Driver Intervention Course Delivery Costs,08/06/2012,5100039615,1225,HOLIDAY INN MANCHESTER CENTRAL PARK
TfGM,Transport,Driver Intervention Course Delivery Costs,08/06/2012,5100039466,1604.17,HOLIDAY INN MANCHESTER EAST
TfGM,Transport,Printing Services,08/06/2012,5100039521,515,HUDSON AND PEARSON LTD
TfGM,Transport,Capital Costs - Environmental Feasibility Support,08/06/2012,5100039467,2625.8,HYDER LTD
TfGM,Transport,Capital Costs - Environmental & Ecological Support Services,08/06/2012,5100039469,1056,HYDER LTD
TfGM,Transport,Capital Costs - Environmental & Ecological Support Services,08/06/2012,5100039470,758.37,HYDER LTD
TfGM,Transport,Driver Intervention Course Delivery Costs,08/06/2012,1900021716,2078.6,IAN DUFF
TfGM,Transport,Driver Intervention Course Delivery Costs,08/06/2012,1900021724,1944.87,INSIGHT 2 DRIVE
TfGM,Transport,Design Services,08/06/2012,5100039271,3400,JACOBS UK LTD
TfGM,Transport,Capital Costs - Health & Safety Support Services,08/06/2012,5100039609,1317.22,JACOBS UK LTD
TfGM,Transport,Driver Intervention Course Delivery Costs,08/06/2012,1900021743,875.2,JANET RIGGS
TfGM,Transport,Driver Intervention Course Delivery Costs,08/06/2012,1900021735,607.75,JOHN A MILNE
TfGM,Transport,Driver Intervention Course Delivery Costs,08/06/2012,1900021700,1604.52,JOHN AIREY
TfGM,Transport,Driver Intervention Course Delivery Costs,08/06/2012,1900021733,2345.98,JOHN MCGREAL
TfGM,Transport,Capital Costs - Programme and Project Management Services,08/06/2012,5100039451,9675,JSLM PROGRAMME SERVICES LTD
TfGM,Corporate Services,Property Support Services,08/06/2012,5100039420,3200,LAMBERT SMITH HAMPTON
TfGM,Transport,Vehicle Costs,08/06/2012,5100039587,1552.77,LEX AUTOLEASE LTD
TfGM,Transport,Driver Intervention Course Delivery Costs,08/06/2012,5100039503,2516.2,LISA ATKINSON DTS
TfGM,Transport,Capital Costs - Project Management Services,08/06/2012,5100039341,9900,MACE LTD
TfGM,Transport,Capital Costs - Programme and Project Management Services,08/06/2012,5100039520,6050,MACE LTD
TfGM,Transport,Traffic Signal Works,08/06/2012,5100038884,13230.67,MANCHESTER CITY COUNCIL
TfGM,Transport,Driver Intervention Course Delivery Costs,08/06/2012,1900021704,2188,MARK BRENNAN
TfGM,Transport,Supported Bus Services,08/06/2012,1900021772,20000,MAYTREE TRAVEL LTD
TfGM,Transport,Rail Support Services,08/06/2012,5100039530,5000,MDS TRANSMODAL LTD
TfGM,Transport,Concessionary Reimbursement,08/06/2012,1900021777,2019,METRO TAXIS LTD
TfGM,Transport,Metrolink Operating Costs,08/06/2012,5100039407,437553.52,METROLINK RATP DEV LTD
TfGM,Transport,Metrolink Operating Costs,08/06/2012,5100039410,644,METROLINK RATP DEV LTD
TfGM,Transport,Metrolink Operating Costs,08/06/2012,5100039411,1252,METROLINK RATP DEV LTD
TfGM,Transport,Metrolink Operating Costs,08/06/2012,5100039412,3288,METROLINK RATP DEV LTD
TfGM,Transport,Metrolink Operating Costs,08/06/2012,5100039414,1196542,METROLINK RATP DEV LTD
TfGM,Transport,Driver Intervention Course Delivery Costs,08/06/2012,1900021703,1835.48,MICHAEL BOLTON DRIVER TRAINING
TfGM,Transport,Print & Media,08/06/2012,5100039505,2430,MIRAGE DISPLAY LTD
TfGM,Transport,Print & Media,08/06/2012,5100039506,881.8,MIRAGE DISPLAY LTD
TfGM,Corporate Services,Computer and Printing Hardware,08/06/2012,5100039282,539.94,MISCO
TfGM,Corporate Services,IS Consumables,08/06/2012,5100039431,1330.74,MISCO
TfGM,Transport,Cleaning,08/06/2012,5100039588,7734.61,MITIE CLEANING & SUPPORT SERVS LTD
TfGM,Transport,Capital Costs - Demolition,08/06/2012,5100039267,105895.55,MJ FINNIGAN LTD
TfGM,Transport,Driver Intervention Course Delivery Costs,08/06/2012,1900021739,1835.48,MOORTOWN SCHOOL OF MOTORING
TfGM,Transport,Driver Intervention Course Delivery Costs,08/06/2012,1900021736,607.75,MORRIS SCHOOL OF MOTORING
TfGM,Transport,Capital Costs - Programme and Project Management Services,08/06/2012,5100039283,1950,MORSON INTERNATIONAL
TfGM,Transport,Capital Costs - Programme and Project Management Services,08/06/2012,5100039284,1505,MORSON INTERNATIONAL
TfGM,Transport,Capital Costs - Programme and Project Management Services,08/06/2012,5100039421,1664,MORSON INTERNATIONAL
TfGM,Transport,Capital Costs - Programme and Project Management Services,08/06/2012,5100039461,1881.25,MORSON INTERNATIONAL
TfGM,Transport,Capital Costs - Programme and Project Management Services,08/06/2012,5100039462,1950,MORSON INTERNATIONAL
TfGM,Transport,Capital Costs - Project Management Services,08/06/2012,5100039572,11020,MOTT MACDONALD LTD
TfGM,Transport,Engineering Support Services,08/06/2012,5100039416,4160,NEIL CLARKE LTD
TfGM,Transport,Engineering Support Services,08/06/2012,5100039450,3200,NEIL CLARKE LTD
TfGM,Transport,Capital Costs - Topographical Feasibility Support,08/06/2012,5100038642,-3529.12,NETWORK RAIL
TfGM,Transport,Capital Costs - Heavy Rail Construction Works,08/06/2012,5100038652,-10668.3,NETWORK RAIL
TfGM,Transport,Capital Costs - Heavy Rail Support Services,08/06/2012,5100039556,15360.75,NETWORK RAIL
TfGM,Transport,Print & Media,08/06/2012,5100039269,937,NEWSPAPER LICENSING AGENCY LTD
TfGM,Transport,Capital Costs - Computer & Communications Hardware,08/06/2012,5100039293,7516.63,NIMANS LTD
TfGM,Transport,Capital Costs - Capital Project Main Contract Works,08/06/2012,5100039248,116530.18,NORTHERN RAIL LIMITED
TfGM,Transport,Capital Costs - Programme and Project Management Services,08/06/2012,5100039222,1225,NURTURE PEOPLE LTD
TfGM,Transport,Capital Costs - Programme and Project Management Services,08/06/2012,5100039400,1575,NURTURE PEOPLE LTD
TfGM,Transport,Print & Stationery ,08/06/2012,5100039446,1709,ORION SECURE PRINT SYSTEMS
TfGM,Transport,Smart Ticketing,08/06/2012,5100039629,10000,OSCAR ASSOCIATES (UK) LTD
TfGM,Transport,Traffic Signal Services,08/06/2012,5100039560,805,P J MARKHAM ELECTRONICS MAINTENANCE
TfGM,Transport,Traffic Signal Services,08/06/2012,5100039561,1270,P J MARKHAM ELECTRONICS MAINTENANCE
TfGM,Corporate Services,Legal Services,08/06/2012,5100039252,439.7,PANNONE AND PARTNERS
TfGM,Corporate Services,Legal Services,08/06/2012,5100039253,1200,PANNONE AND PARTNERS
TfGM,Transport,Legal Services,08/06/2012,5100039487,3538.7,PANNONE AND PARTNERS
TfGM,Transport,Capital Costs - Programme and Project Management Services,08/06/2012,5100039126,16203.2,PARSONS BRINCKERHOFF LTD
TfGM,Transport,Capital Costs - Programme and Project Management Services,08/06/2012,5100039234,599359.64,PARSONS BRINCKERHOFF LTD
TfGM,Transport,Driver Intervention Course Delivery Costs,08/06/2012,1900021747,2625.6,PAS DRIVING
TfGM,Transport,Driver Intervention Course Delivery Costs,08/06/2012,1900021707,1897.79,PAUL CLARKE
TfGM,Transport,Financial and Commercial Support Services,08/06/2012,5100039471,13276.25,PEAK PERFORMANCE PROFESSIONAL CONTR
TfGM,Transport,Driver Intervention Course Delivery Costs,08/06/2012,1900021722,2017.8,PETER HARGREAVES SCHOOL OF MOTORING
TfGM,Transport,Driver Intervention Course Delivery Costs,08/06/2012,5100039473,1264.16,PETERS DRIVING SCHOOL
TfGM,Transport,Transport Planning & Monitoring Services,08/06/2012,5100039318,4395.17,PLUSWORK LTD
TfGM,Transport,Transport Planning & Monitoring Services,08/06/2012,5100039320,508.9,PLUSWORK LTD
TfGM,Transport,Transport Planning & Monitoring Services,08/06/2012,5100039322,1321.78,PLUSWORK LTD
TfGM,Transport,Transport Planning & Monitoring Services,08/06/2012,5100039323,676.06,PLUSWORK LTD
TfGM,Transport,Transport Planning & Monitoring Services,08/06/2012,5100039324,566.4,PLUSWORK LTD
TfGM,Transport,Transport Planning & Monitoring Services,08/06/2012,5100039325,2559,PLUSWORK LTD
TfGM,Transport,Transport Planning & Monitoring Services,08/06/2012,5100039511,2685.25,PLUSWORK LTD
TfGM,Transport,Transport Planning & Monitoring Services,08/06/2012,5100039512,566.4,PLUSWORK LTD
TfGM,Transport,Transport Planning & Monitoring Services,08/06/2012,5100039513,676.06,PLUSWORK LTD
TfGM,Transport,Transport Planning & Monitoring Services,08/06/2012,5100039514,2512.55,PLUSWORK LTD
TfGM,Transport,Transport Planning & Monitoring Services,08/06/2012,5100039517,508.9,PLUSWORK LTD
TfGM,Transport,Transport Planning & Monitoring Services,08/06/2012,5100039519,4587.22,PLUSWORK LTD
TfGM,Transport,Temporary Vacancy Cover,08/06/2012,5100039608,566.4,PLUSWORK LTD
TfGM,Transport,Temporary Vacancy Cover,08/06/2012,5100039618,566.4,PLUSWORK LTD
TfGM,Transport,Concessionary Reimbursement,08/06/2012,1900021758,0,RADIO CABS ASHTON LTD
TfGM,Transport,Driver Intervention Course Delivery Costs,08/06/2012,1900021725,1981.3,RALPH HILL
TfGM,Transport,Capital Costs - Distribution Support Services,08/06/2012,5100039432,490,RCD
TfGM,Transport,Capital Costs - Distribution Support Services,08/06/2012,5100039433,1485,RCD
TfGM,Transport,Capital Costs - Distribution Support Services,08/06/2012,5100039444,588,RCD
TfGM,Transport,Driver Intervention Course Delivery Costs,08/06/2012,5100039474,1859.8,RICHARD JOHN MOTT
TfGM,Transport,Print & Stationery,08/06/2012,5100039558,1358.96,RICOH UK LTD
TfGM,Transport,Supported Bus Services,08/06/2012,1900021696,0,ROCHDALE COMMUNITY TRANSPORT
TfGM,Transport,Traffic Signal Works,08/06/2012,5100039478,3025.97,ROSGAL LTD
TfGM,Transport,Driver Intervention Course Delivery Costs,08/06/2012,1900021721,2139.35,ROY GREENOUGH
TfGM,Corporate Services,Audit and Financial Services,08/06/2012,5100039626,3850,RUSHTON INTERNATIONAL
TfGM,Transport,Driver Intervention Course Delivery Costs,08/06/2012,1900021706,1641,S M CHARLSON
TfGM,Corporate Services,IS Software & Maintenance,08/06/2012,5100039429,4535.55,SEC1 LTD
TfGM,Transport,Driver Intervention Course Delivery Costs,08/06/2012,1900021728,1203.4,SHAUN HUNT DRIVER TRAINING
TfGM,Transport,Driver Intervention Course Delivery Costs,08/06/2012,1900021740,1531.6,SHELLIS SCHOOL OF MOTORING
TfGM,Transport,Driver Intervention Course Delivery Costs,08/06/2012,1900021720,1641,SHIRLEYS DRIVING SCHOOL
TfGM,Transport,Traffic Signal Works,08/06/2012,5100039312,5994.65,SIEMENS PLC
TfGM,Transport,Traffic Signal Works,08/06/2012,5100039313,7439.85,SIEMENS PLC
TfGM,Transport,Traffic Signal Works,08/06/2012,5100039317,260778.01,SIEMENS PLC
TfGM,Transport,Traffic Signal Works,08/06/2012,5100039352,4884.88,SIEMENS PLC
TfGM,Transport,Traffic Signal Works,08/06/2012,5100039480,7557.02,SIEMENS PLC
TfGM,Transport,Traffic Signal Works,08/06/2012,5100039481,7331.34,SIEMENS PLC
TfGM,Transport,Traffic Signal Works,08/06/2012,5100039482,8831.23,SIEMENS PLC
TfGM,Transport,Traffic Signal Works,08/06/2012,5100039483,11891.35,SIEMENS PLC
TfGM,Transport,Traffic Signal Works,08/06/2012,5100039484,11425.32,SIEMENS PLC
TfGM,Transport,Traffic Signal Works,08/06/2012,5100039485,18841.71,SIEMENS PLC
TfGM,Transport,Traffic Signal Works,08/06/2012,5100039486,5094.34,SIEMENS PLC
TfGM,Transport,Traffic Signal Works,08/06/2012,5100039488,111046.64,SIEMENS PLC
TfGM,Transport,Traffic Signal Works,08/06/2012,5100039509,3036.74,SIEMENS PLC
TfGM,Transport,Traffic Signal Works,08/06/2012,5100039613,27982.63,SIEMENS PLC
TfGM,Transport,Traffic Signal Works,08/06/2012,5100039614,-6571.8,SIEMENS PLC
TfGM,Corporate Services,Computer Support and Licences,08/06/2012,5100039449,985.05,SQUIDCARD LTD
TfGM,Transport,Printing Services,08/06/2012,5100039586,513,STEFFPRINT LTD
TfGM,Transport,Driver Intervention Course Delivery Costs,08/06/2012,1900021729,2868.68,STEVEN LLOYD APPROVED SCHOOL OF MOT
TfGM,Transport,Concessionary Reimbursement,08/06/2012,1900021776,799,SWINTON PRIVATE HIRE
TfGM,Transport,Capital Costs - Architectural Services,08/06/2012,1900021774,5179.69,The Impact Partnership
TfGM,Transport,Driver Intervention Course Delivery Costs,08/06/2012,1900021744,1531.6,TOM RIMMER
TfGM,Transport,Training,08/06/2012,5100039280,1125,TRAFFORD COLLEGE
TfGM,Transport,Capital Costs - Passenger Shelters,08/06/2012,5100039424,28123,TRUEFORM ENGINEERING LTD
TfGM,Transport,IS Software & Maintenance,08/06/2012,5100039443,1037.2,TRUSTMARQUE SOLUTIONS
TfGM,Transport,Cleaning,08/06/2012,5100039361,725.17,TUDOR CONTRACT CLEANERS LTD
TfGM,Transport,Cleaning,08/06/2012,5100039363,759.43,TUDOR CONTRACT CLEANERS LTD
TfGM,Transport,Cleaning,08/06/2012,5100039364,685.2,TUDOR CONTRACT CLEANERS LTD
TfGM,Transport,Cleaning,08/06/2012,5100039366,1707.29,TUDOR CONTRACT CLEANERS LTD
TfGM,Transport,Cleaning,08/06/2012,5100039367,2662.42,TUDOR CONTRACT CLEANERS LTD
TfGM,Transport,Cleaning,08/06/2012,5100039368,443.95,TUDOR CONTRACT CLEANERS LTD
TfGM,Transport,Cleaning,08/06/2012,5100039371,829.92,TUDOR CONTRACT CLEANERS LTD
TfGM,Transport,Property & Equipment Maintenance,08/06/2012,5100039383,671,TUDOR CONTRACT CLEANERS LTD
TfGM,Transport,Cleaning,08/06/2012,5100039386,622.53,TUDOR CONTRACT CLEANERS LTD
TfGM,Transport,Cleaning,08/06/2012,5100039387,531.96,TUDOR CONTRACT CLEANERS LTD
TfGM,Transport,Cleaning,08/06/2012,5100039394,587.31,TUDOR CONTRACT CLEANERS LTD
TfGM,Transport,Utilities & Energy,08/06/2012,1900021766,1206.89,UNITED UTILITIES WATER PLC
TfGM,Transport,Capital Costs - Project Management Services,08/06/2012,5100039533,10737.93,URBAN VISION PARTNERSHIP LTD
TfGM,Transport,Driver Intervention Course Delivery Costs,08/06/2012,1900021719,1713.91,VINCENT'S DRIVING SCHOOL
TfGM,Transport,Property & Equipment Maintenance,08/06/2012,5100039445,455,VIVID LAMINATING TECHNOLOGIES LTD
TfGM,Transport,Vehicle Repairs & Maintenance,08/06/2012,5100039458,667.82,Walton Summit Truck Centre
TfGM,Transport,Capital Costs - Project Management Services,08/06/2012,5100039472,8887.84,WIGAN COUNCIL
TfGM,Transport,Speed Camera Support Services,08/06/2012,5100039219,709.45,WORK SOLUTIONS
TfGM,Transport,Speed Camera Support Services,08/06/2012,5100039220,709.45,WORK SOLUTIONS
TfGM,Transport,Speed Camera Support Services,08/06/2012,5100039395,709.45,WORK SOLUTIONS
TfGM,Transport,Vehicle Fuel Costs,11/06/2012,1200020843,911.59,ALLSTAR
TfGM,Corporate Services,Employee Reimbursed Costs,11/06/2012,5100039646,6167,CHILDCARE VOUCHERS LTD
TfGM,Transport,Capital Costs - Architectural Services,12/06/2012,5100039672,7236,AEDAS ARCHITECTS LTD
TfGM,Transport,Capital Costs - Architectural Services,12/06/2012,5100039673,10027.5,AEDAS ARCHITECTS LTD
TfGM,Transport,Capital Costs - Architectural Services,12/06/2012,5100039674,3750,AEDAS ARCHITECTS LTD
TfGM,Transport,Print & Media,12/06/2012,5100039198,6550,ARCO LTD
TfGM,Transport,Print & Media,12/06/2012,5100039199,1250,ARCO LTD
TfGM,Transport,Capital Costs - Project Management Services,12/06/2012,5100039659,4134.38,ATKINS LTD
TfGM,Transport,Capital Costs - Mechanical & Engineering Support Services,12/06/2012,5100039662,1260,ATKINS LTD
TfGM,Transport,Printing Services,12/06/2012,5100039756,1586,BLUETREE DESIGN AND PRINT LTD
TfGM,Transport,Printing Services,12/06/2012,5100039757,939,BLUETREE DESIGN AND PRINT LTD
TfGM,Transport,Capital Costs - LRT Vehicles,12/06/2012,5100038671,483400.08,BOMBARDIER TRANSPORTATION UK LTD
TfGM,Transport,Capital Costs - LRT Vehicles,12/06/2012,5100039818,1121692,BOMBARDIER TRANSPORTATION UK LTD
TfGM,Transport,Driver Intervention Course Delivery Costs,12/06/2012,5100039656,4820,BURY MBC
TfGM,Transport,Computer Support and Licences,12/06/2012,5100039654,2587.5,CACI LTD
TfGM,Transport,Transport Planning & Monitoring Services,12/06/2012,5100039439,2450,CTS TRAFFIC & TRANSPORTATION
TfGM,Transport,Property & Equipment Maintenance,12/06/2012,100050688,2969.91,ELECTRICITY NORTH WEST EHV
TfGM,Transport,Paper and Printing Consumables,12/06/2012,5100039763,3890.54,ESP SYSTEX LTD
TfGM,Transport,Paper and Printing Consumables,12/06/2012,5100039764,2259.13,ESP SYSTEX LTD
TfGM,Transport,Paper and Printing Consumables,12/06/2012,5100039816,22779.8,ESP SYSTEX LTD
TfGM,Transport,Engineering Support Services,12/06/2012,5100039495,3000,FREMONT LTD
TfGM,Transport,Capital Costs - Property Support Services,12/06/2012,5100039652,3200,LAMBERT SMITH HAMPTON
TfGM,Transport,Capital Costs - Programme and Project Management Services,12/06/2012,5100039733,11700,LINKPLAN LTD
TfGM,Transport,Capital Costs - LRT Capital Costs,12/06/2012,5100039408,58760,METROLINK RATP DEV LTD
TfGM,Transport,Metrolink Operating Costs,12/06/2012,5100039413,233769,METROLINK RATP DEV LTD
TfGM,Transport,Print & Stationery ,12/06/2012,5100039675,14598,PINDAR CREATIVE
TfGM,Transport,Signage Costs,12/06/2012,5100039676,8770,PINDAR CREATIVE
TfGM,Transport,Print & Stationery ,12/06/2012,5100039677,1985,PINDAR CREATIVE
TfGM,Transport,Capital Costs - Engineering Support Services,12/06/2012,5100039648,15947.4,SCOTT WILSON LTD
TfGM,Transport,Print & Media,13/06/2012,5100039821,79600,HEMISPHERE DESIGN & MRKTNG 
TfGM,Transport,Capital Costs - Capital Project Main Contract Works,13/06/2012,1900021825,8000000,MPACT THALES
TfGM,Transport,Capital Costs - LRT Vehicles,14/06/2012,5100039135,3373017.75,BOMBARDIER TRANSPORTATION UK LTD
TfGM,Transport,Postage Costs,14/06/2012,1200020843,3014.4,FP TELESET
TfGM,Transport,Other Operational Costs,15/06/2012,5100039860,818.59,1ST FOOD & DRINK
TfGM,Transport,Supported Bus Services,15/06/2012,1900021915,2433.33,5 STAR PRIVATE HIRE
TfGM,Transport,Capital Costs - Programme and Project Management Services,15/06/2012,5100039851,3230,ACUITY PROGRAMME MANAGEMENT LTD
TfGM,Transport,Capital Costs - Programme and Project Management Services,15/06/2012,5100039852,2090,ACUITY PROGRAMME MANAGEMENT LTD
TfGM,Transport,Capital Costs - Programme and Project Management Services,15/06/2012,5100039854,1520,ACUITY PROGRAMME MANAGEMENT LTD
TfGM,Transport,Capital Costs - Programme and Project Management Services,15/06/2012,5100039855,9240,ACUITY PROGRAMME MANAGEMENT LTD
TfGM,Corporate Services,IS Software & Maintenance,15/06/2012,5100039583,3995,ALBANY SOFTWARE LTD
TfGM,Transport,Capital Costs - IS Support Services,15/06/2012,5100038674,3078.75,APPIUS INTERNATIONAL LTD
TfGM,Corporate Services,IS Software & Maintenance,15/06/2012,5100038894,14318.78,APPLIED CARD TECHNOLOGIES
TfGM,Transport,Capital Costs - Programme and Project Management Services,15/06/2012,5100039619,8600.51,ARK PROJECT MANAGEMENT LTD
TfGM,Transport,Supported Bus Services,15/06/2012,1700014008,-31100,ARRIVA MANCHESTER
TfGM,Transport,Supported Bus Services,15/06/2012,1900021803,15921,ARRIVA MANCHESTER
TfGM,Transport,Concessionary Reimbursement,15/06/2012,1900021848,368516,ARRIVA MANCHESTER
TfGM,Transport,Supported Bus Services,15/06/2012,1900021917,114146.65,ARRIVA MANCHESTER
TfGM,Transport,Supported Bus Services,15/06/2012,1900021918,111558.18,ARRIVA MANCHESTER
TfGM,Transport,Supported Bus Services,15/06/2012,1900021928,5560.75,ARRIVA MANCHESTER
TfGM,Transport,Capital Costs - Light Rail Support Services,15/06/2012,5100038009,6843.99,ATKINS LTD
TfGM,Transport,Capital Costs - Programme and Project Management Services,15/06/2012,5100038891,9900,ATKINS LTD
TfGM,Transport,Capital Costs - Health & Safety Support Services,15/06/2012,5100039181,618,ATKINS LTD
TfGM,Transport,Engineering Support Services,15/06/2012,5100039257,18644.1,ATKINS LTD
TfGM,Transport,Capital Costs - Quantity Surveying Services,15/06/2012,5100039342,1054.94,ATKINS LTD
TfGM,Transport,Capital Costs - Quantity Surveying Services,15/06/2012,5100039343,1810.62,ATKINS LTD
TfGM,Transport,Capital Costs - Project Management Services,15/06/2012,5100039899,1968.75,ATKINS LTD
TfGM,Transport,Concessionary Reimbursement,15/06/2012,1900021849,5232,BAKERS COACHES
TfGM,Transport,Supported Bus Services,15/06/2012,1900021905,4595.83,BAKERS COACHES
TfGM,Transport,Supported Bus Services,15/06/2012,1900021900,77285.27,BELLE VUE (MANCHESTER) LTD
TfGM,Transport,Supported Bus Services,15/06/2012,1900021805,738,BLUEBIRD BUS AND COACH
TfGM,Transport,Concessionary Reimbursement,15/06/2012,1900021850,33649,BLUEBIRD BUS AND COACH
TfGM,Transport,Supported Bus Services,15/06/2012,1900021922,3302,BLUEBIRD BUS AND COACH
TfGM,Transport,Supported Bus Services,15/06/2012,1900021923,107505.62,BLUEBIRD BUS AND COACH
TfGM,Corporate Services,IS Support Services,15/06/2012,5100039440,4500,BT ENGAGE IT
TfGM,Corporate Services,IS Support & Maintenance,15/06/2012,5100039441,11250,BT ENGAGE IT
TfGM,Corporate Services,IS Support Services,15/06/2012,5100039460,950,BT ENGAGE IT
TfGM,Corporate Services,IS Support Services,15/06/2012,5100039523,900,BT ENGAGE IT
TfGM,Transport,Supported Bus Services,15/06/2012,1900021926,2020.83,BULLITT CARS
TfGM,Transport,Supported Bus Services,15/06/2012,1900021911,15591.82,BULLOCKS
TfGM,Transport,Supported Bus Services,15/06/2012,1900021912,1269.55,BULLOCKS
TfGM,Transport,Concessionary Reimbursement,15/06/2012,1900021851,14247,BURNLEY AND PENDLE
TfGM,Transport,Capital Costs - Engineering Support Services,15/06/2012,5100039815,3231,Capcis (Intertek)
TfGM,Transport,Capital Costs - Light Rail Support Services,15/06/2012,5100039268,822,CDI ANDERSELITE LTD
TfGM,Transport,Concessionary Reimbursement,15/06/2012,1900021853,15092,CENTREBUS LTD
TfGM,Transport,Driver Intervention Course Delivery Costs,15/06/2012,1900021754,1385.71,CENTURION DRIVER TRAINING
TfGM,Corporate Services,IS Services,15/06/2012,5100039837,12320,CHALMERS BROWN
TfGM,Transport,Concessionary Reimbursement,15/06/2012,1900021854,3261,CHECKMATE TRANSPORT LTD
TfGM,Transport,Supported Bus Services,15/06/2012,1900021885,10147.62,CHECKMATE TRANSPORT LTD
TfGM,Transport,Supported Bus Services,15/06/2012,1900021929,12090.81,CHESTERS COACHES
TfGM,Transport,Supported Bus Services,15/06/2012,1900021927,7981.64,CI WALLEY TA RINGWAY MINIBUS HIRE
TfGM,Transport,Temporary Vacancy Cover,15/06/2012,1900021939,6679.5,COMENSURA LTD
TfGM,Transport,Temporary Vacancy Cover,15/06/2012,1900021940,2021.85,COMENSURA LTD
TfGM,Transport,Concessionary Reimbursement,15/06/2012,1900021852,1000,COURTESY COACHES
TfGM,Transport,Supported Bus Services,15/06/2012,5100039639,18200.91,DERBYSHIRE COUNTY COUNCIL
TfGM,Transport,Capital Costs - Engineering Support Services,15/06/2012,5100038887,26329.9,EC HARRIS LLP
TfGM,Transport,Capital Costs - Engineering Support Services,15/06/2012,5100038890,13915.35,EC HARRIS LLP
TfGM,Transport,Capital Costs - Engineering Support Services,15/06/2012,5100039177,2685.91,EC HARRIS LLP
TfGM,Transport,Capital Costs - Engineering Support Services,15/06/2012,5100039178,1367.97,EC HARRIS LLP
TfGM,Transport,Concessionary Reimbursement,15/06/2012,1900021855,7500,EUROBUS
TfGM,Transport,Concessionary Reimbursement,15/06/2012,1900021859,3171,FE FINCH
TfGM,Transport,Supported Bus Services,15/06/2012,1900021806,730,FINGLANDS
TfGM,Transport,Concessionary Reimbursement,15/06/2012,1900021856,24000,FINGLANDS
TfGM,Transport,Supported Bus Services,15/06/2012,1900021887,56601.67,FINGLANDS
TfGM,Transport,Concessionary Reimbursement,15/06/2012,1900021858,7000,FIRST CALDERLINE
TfGM,Transport,Concessionary Reimbursement,15/06/2012,1900021857,5834,FIRST HUDDERSFIELD
TfGM,Transport,Supported Bus Services,15/06/2012,1700014007,-90900,FIRST MANCHESTER
TfGM,Transport,Supported Bus Services,15/06/2012,1900021807,47040,FIRST MANCHESTER
TfGM,Transport,Concessionary Reimbursement,15/06/2012,1900021860,150000,FIRST MANCHESTER
TfGM,Transport,Supported Bus Services,15/06/2012,1900021909,430636.13,FIRST MANCHESTER
TfGM,Transport,Supported Bus Services,15/06/2012,1900021910,376810.83,FIRST MANCHESTER
TfGM,Transport,Supported Bus Services,15/06/2012,1900021932,22269.83,GB COACHES
TfGM,Transport,Supported Bus Services,15/06/2012,1900021933,1733.33,GB COACHES
TfGM,Transport,Supported Bus Services,15/06/2012,1900021895,3023.83,GMATL
TfGM,Transport,Supported Bus Services,15/06/2012,1900021896,9194.5,GMATL
TfGM,Transport,Accessible Transport,15/06/2012,1200020843,450000,GMATT
TfGM,Transport,Supported Bus Services,15/06/2012,1900021828,3000,GO GOODWINS COACHES LTD
TfGM,Transport,Supported Bus Services,15/06/2012,1900021892,36428.36,GO GOODWINS COACHES LTD
TfGM,Transport,Supported Bus Services,15/06/2012,1900021893,102649.67,GO GOODWINS COACHES LTD
TfGM,Transport,Concessionary Reimbursement,15/06/2012,1900021861,77000,GREEN TRIANGLE BUSES LTD
TfGM,Transport,Supported Bus Services,15/06/2012,1900021924,38989.73,GREEN TRIANGLE BUSES LTD
TfGM,Transport,Supported Bus Services,15/06/2012,1900021925,63403.44,GREEN TRIANGLE BUSES LTD
TfGM,Transport,Capital Costs - Engineering Support Services,15/06/2012,5100039841,15009.1,GUTTERIDGE HASKINS AND DAVEY LTD
TfGM,Transport,Capital Costs - Quantity Surveying Services,15/06/2012,5100039422,621.29,HALCROW GROUP LTD
TfGM,Transport,Capital Costs - Legal Services,15/06/2012,1900022006,1790,HILL DICKINSON
TfGM,Transport,Concessionary Reimbursement,15/06/2012,1900021842,900,HORWICH PRIVATE HIRE LINK LIMITED
TfGM,Transport,Supported Bus Services,15/06/2012,1900021889,2333.33,HORWICH PRIVATE HIRE LINK LIMITED
TfGM,Transport,Capital Costs - Environmental & Ecological Support Services,15/06/2012,5100039468,1299.3,HYDER LTD
TfGM,Transport,Concessionary Reimbursement,15/06/2012,1900021862,28778,JIM STONES COACHES
TfGM,Transport,Supported Bus Services,15/06/2012,1900021920,9332.64,JIM STONES COACHES
TfGM,Transport,Supported Bus Services,15/06/2012,1900021921,10529.1,JIM STONES COACHES
TfGM,Transport,Supported Bus Services,15/06/2012,1900021808,931,JP EXECUTIVE
TfGM,Transport,Concessionary Reimbursement,15/06/2012,1900021863,48114,JP EXECUTIVE
TfGM,Transport,Supported Bus Services,15/06/2012,1900021916,46322.2,JP EXECUTIVE
TfGM,Corporate Services,Programme and Project Management Services,15/06/2012,5100039879,1900,KPMG
TfGM,Corporate Services,Programme and Project Management Services,15/06/2012,5100039880,3040,KPMG
TfGM,Corporate Services,Programme and Project Management Services,15/06/2012,5100039881,13403,KPMG
TfGM,Transport,Supported Bus Services,15/06/2012,1900021913,7772.73,LAINTON COACHES LTD
TfGM,Transport,Supported Bus Services,15/06/2012,1900021914,2418.18,LAINTON COACHES LTD
TfGM,Transport,Concessionary Reimbursement,15/06/2012,1900021864,17025,LANCASHIRE UTD
TfGM,Transport,Supported Bus Services,15/06/2012,1900021899,2771.64,LEISURE TRAVEL
TfGM,Transport,Capital Costs - IS Support Services,15/06/2012,5100039663,6000,LOGICA UK LTD
TfGM,Corporate Services,Payroll Support Services,15/06/2012,5100039857,929.08,LOGICA UK LTD
TfGM,Transport,Concessionary Reimbursement,15/06/2012,1900021980,768,LYNCH PRIVATE HIRE
TfGM,Transport,Supported Bus Services,15/06/2012,1900021812,2840,M TRAVEL
TfGM,Transport,Supported Bus Services,15/06/2012,1900021901,25084.35,M TRAVEL
TfGM,Transport,Supported Bus Services,15/06/2012,1900021902,19680,M TRAVEL
TfGM,Transport,Concessionary Reimbursement,15/06/2012,1900021982,1597,MAGNUM WHITELINE PRIVATE HIRE
TfGM,Transport,Concessionary Reimbursement,15/06/2012,1900021844,5000,MANCHESTER COMMUNITY TRANSPORT
TfGM,Transport,Concessionary Reimbursement,15/06/2012,1900021868,16000,MANCHESTER COMMUNITY TRANSPORT
TfGM,Transport,Supported Bus Services,15/06/2012,1900021890,161859.67,MANCHESTER COMMUNITY TRANSPORT
TfGM,Transport,Security Services,15/06/2012,5100038978,712.5,MARPOL SECURITY LIMITED
TfGM,Transport,Property & Equipment Maintenance,15/06/2012,5100039554,1000,MARSTON & GRUNDY LLP
TfGM,Transport,Capital Costs - Light Rail Support Services,15/06/2012,5100039610,1300,MASON LTD
TfGM,Transport,Supported Bus Services,15/06/2012,1700014058,-50000,MAYTREE TRAVEL LTD
TfGM,Transport,Supported Bus Services,15/06/2012,1900021813,4678,MAYTREE TRAVEL LTD
TfGM,Transport,Concessionary Reimbursement,15/06/2012,1900021870,47614,MAYTREE TRAVEL LTD
TfGM,Transport,Supported Bus Services,15/06/2012,1900021903,54046.42,MAYTREE TRAVEL LTD
TfGM,Transport,Supported Bus Services,15/06/2012,1900021904,86543.58,MAYTREE TRAVEL LTD
TfGM,Transport,Concessionary Reimbursement,15/06/2012,5100039173,1095,MERLINCO LTD
TfGM,Transport,Supported Bus Services,15/06/2012,5100039694,16124.61,MERSEYTRAVEL
TfGM,Transport,Property & Equipment Maintenance,15/06/2012,5100038979,14274.57,METROLINK RATP DEV LTD
TfGM,Transport,Print & Media,15/06/2012,5100039695,1427.45,METROLINK RATP DEV LTD
TfGM,Transport,Metrolink Operating Costs,15/06/2012,5100039699,455682,METROLINK RATP DEV LTD
TfGM,Transport,Computer and Printing Hardware,15/06/2012,5100039739,595,MISCO
TfGM,Transport,Cleaning,15/06/2012,5100039589,535.82,MITIE CLEANING & SUPPORT SERVS LTD
TfGM,Transport,Bus Station & Shelter Consumables,15/06/2012,5100039761,1729,MLPS
TfGM,Transport,Capital Costs - Project Management Services,15/06/2012,5100039210,4199.65,MOTT MACDONALD LTD
TfGM,Transport,Property & Equipment Maintenance,15/06/2012,5100039434,1406.57,MOTT MACDONALD LTD
TfGM,Transport,Capital Costs - Engineering Support Services,15/06/2012,5100039568,2302.05,MOTT MACDONALD LTD
TfGM,Transport,Capital Costs - Mechanical & Engineering Support Services,15/06/2012,5100039569,876.19,MOTT MACDONALD LTD
TfGM,Transport,Capital Costs - Mechanical & Engineering Support Services,15/06/2012,5100039570,15521.57,MOTT MACDONALD LTD
TfGM,Transport,Capital Costs - Project Management Services,15/06/2012,5100039571,5861.39,MOTT MACDONALD LTD
TfGM,Transport,Metrolink Operating Costs,15/06/2012,5100037869,41599.73,MPACT THALES
TfGM,Transport,Transport Planning & Monitoring Services,15/06/2012,5100039213,18854.76,MVA LTD
TfGM,Transport,Transport Planning & Monitoring Services,15/06/2012,5100039526,6365.97,MVA LTD
TfGM,Transport,"Rent, Rates & Service Charges",15/06/2012,1900021949,1250,NETWORK RAIL
TfGM,Transport,Capital Costs - Heavy Rail Support Services,15/06/2012,5100039707,113717.25,NETWORK RAIL
TfGM,Transport,Supported Bus Services,15/06/2012,1900021894,45024.66,OLYMPIA TRAVEL
TfGM,Transport,Printing Services,15/06/2012,5100039735,3557.4,OMEGA PRINT AND DESIGN LTD
TfGM,Transport,Driver Intervention Course Delivery Costs,15/06/2012,5100039765,16916,PROFESSIONAL DRIVER SERVICES LTD
TfGM,Transport,Driver Intervention Course Delivery Costs,15/06/2012,5100039766,8126,PROFESSIONAL DRIVER SERVICES LTD
TfGM,Transport,Computer Support and Licences,15/06/2012,5100039842,1810.88,QAS LTD
TfGM,Transport,Supported Bus Services,15/06/2012,1900021938,19690.92,R S TYRER LTD
TfGM,Transport,Concessionary Reimbursement,15/06/2012,1900021845,4127,RADIO CABS ASHTON LTD
TfGM,Transport,Supported Bus Services,15/06/2012,1900021891,31262.67,RADIO CABS ASHTON LTD
TfGM,Transport,Capital Costs - Distribution Support Services,15/06/2012,5100039863,686,RCD
TfGM,Transport,Supported Bus Services,15/06/2012,1900021888,28031.24,ROCHDALE COMMUNITY TRANSPORT
TfGM,Transport,Concessionary Reimbursement,15/06/2012,1900021881,2763,ROJAY SERVICES LTD T/A WIGAN COACHW
TfGM,Transport,Traffic Signal Works,15/06/2012,5100039877,18891.75,ROSGAL LTD
TfGM,Transport,Traffic Signal Works,15/06/2012,5100039883,40000,ROSGAL LTD
TfGM,Transport,Traffic Signal Works,15/06/2012,5100039884,15000,ROSGAL LTD
TfGM,Transport,Supported Bus Services,15/06/2012,1900021810,2785,ROSSENDALE TRANSPORT
TfGM,Transport,Concessionary Reimbursement,15/06/2012,1900021872,97751,ROSSENDALE TRANSPORT
TfGM,Transport,Supported Bus Services,15/06/2012,1900021897,123450.05,ROSSENDALE TRANSPORT
TfGM,Transport,Supported Bus Services,15/06/2012,1900021898,46686.7,ROSSENDALE TRANSPORT
TfGM,Transport,Concessionary Reimbursement,15/06/2012,1900022002,1925,S&D PRIVATE HIRE
TfGM,Transport,Concessionary Reimbursement,15/06/2012,1900022003,1483,SALTAX LTD
TfGM,Transport,"Rent, Rates & Service Charges",15/06/2012,1900021947,6250,SEGRO FINANCE PLC
TfGM,Transport,Supported Bus Services,15/06/2012,1900021934,44308.01,SELWYNS TRAVEL LTD
TfGM,Transport,Supported Bus Services,15/06/2012,1900021935,1160.25,SELWYNS TRAVEL LTD
TfGM,Transport,Traffic Signal Works,15/06/2012,5100039876,25951.7,SIEMENS PLC
TfGM,Transport,Traffic Signal Works,15/06/2012,5100039878,8198.12,SIEMENS PLC
TfGM,Transport,Traffic Signal Works,15/06/2012,5100039885,23840.19,SIEMENS PLC
TfGM,Transport,Traffic Signal Works,15/06/2012,5100039886,22881.79,SIEMENS PLC
TfGM,Transport,Transport Planning & Monitoring Services,15/06/2012,5100039797,6010,SKY HIGH PLC
TfGM,Transport,Supported Bus Services,15/06/2012,1900021811,27143,STAGECOACH SERVICES LTD
TfGM,Transport,Pass Withdrawal Scheme,15/06/2012,1900021835,540,STAGECOACH SERVICES LTD
TfGM,Transport,Concessionary Reimbursement,15/06/2012,1900021874,1242060,STAGECOACH SERVICES LTD
TfGM,Transport,Concessionary Reimbursement,15/06/2012,1900021875,20000,STAGECOACH SERVICES LTD
TfGM,Transport,Supported Bus Services,15/06/2012,1900021906,291160,STAGECOACH SERVICES LTD
TfGM,Transport,Supported Bus Services,15/06/2012,1900021907,187193.24,STAGECOACH SERVICES LTD
TfGM,Transport,Supported Bus Services,15/06/2012,1900021936,29718.82,STOTTS TOURS
TfGM,Transport,Supported Bus Services,15/06/2012,1900021937,42375.05,STOTTS TOURS
TfGM,Transport,Traffic Signal Works,15/06/2012,5100039666,2400,TDC SYSTEMS LTD
TfGM,Transport,Traffic Signal Works,15/06/2012,5100039667,9000,TDC SYSTEMS LTD
TfGM,Transport,Traffic Signal Works,15/06/2012,5100039669,23250,TDC SYSTEMS LTD
TfGM,Transport,Traffic Signal Works,15/06/2012,5100039670,11500,TDC SYSTEMS LTD
TfGM,Transport,Traffic Signal Works,15/06/2012,5100039898,52745,TDC SYSTEMS LTD
TfGM,Transport,Concessionary Reimbursement,15/06/2012,1900021846,2630,TELECARS
TfGM,Transport,Supported Bus Services,15/06/2012,1900021919,11958.33,TELECARS
TfGM,Transport,Capital Costs - LRT Vehicles,15/06/2012,5100039581,2600,TES LTD
TfGM,Transport,Capital Costs - LRT Vehicles,15/06/2012,5100039582,1300,TES LTD
TfGM,Transport,"Rent, Rates & Service Charges",15/06/2012,1900021953,540,TOWN CENTRE CAR PARKS LTD
TfGM,Transport,Supported Bus Services,15/06/2012,1900021814,1000,TRAVELMASTER MCR LTD
TfGM,Transport,Supported Bus Services,15/06/2012,1900021883,5872.72,TRAVELMASTER MCR LTD
TfGM,Transport,Supported Bus Services,15/06/2012,1900021884,4967.5,TRAVELMASTER MCR LTD
TfGM,Transport,Street Furniture Equipment,15/06/2012,5100039875,1600,TRUEFORM ENGINEERING LTD
TfGM,Transport,Cleaning,15/06/2012,5100039375,532.48,TUDOR CONTRACT CLEANERS LTD
TfGM,Transport,Cleaning,15/06/2012,5100039381,8709.71,TUDOR CONTRACT CLEANERS LTD
TfGM,Transport,Supported Bus Services,15/06/2012,100050904,2000,TYRER TOURS LTD
TfGM,Transport,Concessionary Reimbursement,15/06/2012,1900021876,6967,TYRER TOURS LTD
TfGM,Transport,Supported Bus Services,15/06/2012,1900021886,12847.92,TYRER TOURS LTD
TfGM,Transport,Capital Costs - Mechanical & Engineering Support Services,15/06/2012,5100039180,40993.66,URBAN VISION PARTNERSHIP LTD
TfGM,Transport,Capital Costs - Topographical Feasibility Support,15/06/2012,5100039531,980,URBAN VISION PARTNERSHIP LTD
TfGM,Transport,Capital Costs - Project Management Services,15/06/2012,5100039532,1250,URBAN VISION PARTNERSHIP LTD
TfGM,Transport,Engineering Support Services,15/06/2012,5100039752,6606,URBAN VISION PARTNERSHIP LTD
TfGM,Transport,Capital Costs - Project Management Services,15/06/2012,5100039827,2496.72,URBAN VISION PARTNERSHIP LTD
TfGM,Transport,Concessionary Reimbursement,15/06/2012,1900021877,1466,VALE OF LLANGOLLEN TRAVEL LTD
TfGM,Transport,Supported Bus Services,15/06/2012,1900021908,3272.72,VIKING COACHES
TfGM,Transport,Vehicle Repairs & Maintenance,15/06/2012,5100039454,1102.4,Walton Summit Truck Centre
TfGM,Transport,Vehicle Repairs & Maintenance,15/06/2012,5100039456,622.61,Walton Summit Truck Centre
TfGM,Transport,Vehicle Repairs & Maintenance,15/06/2012,5100039457,563.95,Walton Summit Truck Centre
TfGM,Transport,Vehicle Repairs & Maintenance,15/06/2012,5100039459,1186.58,Walton Summit Truck Centre
TfGM,Transport,Concessionary Reimbursement,15/06/2012,1900021879,11410,WARRINGTON BOROUGH TRANSPORT LTD
TfGM,Transport,Supported Bus Services,15/06/2012,1900021816,1195,WIGAN BUSES LTD
TfGM,Transport,Supported Bus Services,15/06/2012,1900021829,1000,WIGAN BUSES LTD
TfGM,Transport,Concessionary Reimbursement,15/06/2012,1900021880,2000,WIGAN BUSES LTD
TfGM,Transport,Supported Bus Services,15/06/2012,1900021930,16073.17,WIGAN BUSES LTD
TfGM,Transport,Supported Bus Services,15/06/2012,1900021931,20234.67,WIGAN BUSES LTD
TfGM,Transport,Supported Bus Services,15/06/2012,1900021882,6533.17,WIGAN COMMUNITY TRANSPORT
TfGM,Transport,Speed Camera Support Services,15/06/2012,5100039845,709.45,WORK SOLUTIONS
TfGM,Transport,Vehicle Costs,20/06/2012,5100039427,500,ACTIA UK LTD
TfGM,Transport,Capital Costs - Topographical Feasibility Support,20/06/2012,5100039930,1305,AECOM LTD
TfGM,Transport,Capital Costs - Engineering Support Services,20/06/2012,5100039931,990,AECOM LTD
TfGM,Transport,Capital Costs - Architectural Services,20/06/2012,5100039918,18075,AEDAS ARCHITECTS LTD
TfGM,Transport,Vehicle Fuel Costs,20/06/2012,1200020859,1532.95,ALLSTAR
TfGM,Corporate Services,IS Support Services,20/06/2012,5100039927,3500,ANS GROUP PLC
TfGM,Transport,Capital Costs - Computer & Communications Hardware,20/06/2012,5100039928,6625,ANS GROUP PLC
TfGM,Transport,Paper and Printing Consumables,20/06/2012,5100039932,8372.1,ANTALIS MCNAUGHTON LTD
TfGM,Transport,Capital Costs - Print & Media,20/06/2012,5100038459,525,ASTRA SIGNS
TfGM,Transport,Signage Costs,20/06/2012,5100038893,22043.38,ASTRA SIGNS
